{"text_format":"1","workbook":"xlsx","n_sheets":11,"sheets":["Registro de cambios","configuracion","DIGITADOR","DATOS","referentes","Otras referencias","AGD_MUESTREOS","AGD_PARAMETRO","AGD_MUESTRAS","AGD_MUESTRAS_VARIABLES","AGD_AUTORIAS"],"not_rendered":{"charts":0,"images":0,"macros":1,"external_links":1,"defined_names":22,"comments":3,"pivot_tables":0},"unopened":[],"bounds":{"document_bytes":16777216,"sheet_cells":100000,"rows_first":2000,"rows_last":500,"rows_between":2000,"halvings":0,"cell_chars":16384,"cell_head_chars":4096},"cells_cut":0,"cells_raw":0,"read":"whole","date_system":"1900"}

{"sheet":"Registro de cambios","index":0,"n_rows":8,"n_cols":7,"rows_kept":8,"cut":false,"hidden":true,"merged":[[2,3,2,6]]}
[]
[]
[null,null,null,"REGISTRO DE CAMBIOS"]
[null,null,null,"VERSIÓN No.","CAMBIO REALIZADO","AUTOR","VIGENTE DESDE\n(DD/MM/AAAA)"]
[null,null,null,"20241010i","Actualización del código de la macro\nSe eliminó la URL de la antigua API de Portete: http://portete.invemar.org.co:7003/ArgosWebServices-RESTWebService-context-root/rest/1.0\n\nEsta fue reemplazada por la nueva URL de la API de ARGOS: https://argos.invemar.org.co/api/\n\nLa API actual proporciona Endpoints que permiten un mayor control y facilitan la descarga de datos relevantes, como listas de usuarios, estaciones, especies, entre otros, filtradas según criterios específicos, como el proyecto utilizado en la plantilla. Esto evita la descarga de información innecesaria.\n\nAdemás, la API permite la carga de información directamente en la base de datos del INVEMAR.\n\nLa macro extrae los Endpoints desde la hoja \"Configuración\", a través de una tabla denominada \"Configuración referentes\", en la que se pueden modificar o agregar nuevas rutas de la API. Cabe destacar que también es posible \"quemar\" directamente los Endpoints dentro de la macro cuando sea necesario.                                                                                                                                               Para asegurar que recibieran los datos correctos de las celdas correspondientes. También se incorporaron nuevos campos en la hoja \"Digitador\" y se ajustaron las fórmulas en la hoja \"Datos\" para garantizar la correcta manipulación y procesamiento de la información.","Juan Muñoz","2024-10-10"]
[null,null,null,"20231012m","Se agregó una nueva especie a la lista de referentes.","Kevin Moreno","2023-10-12"]
[null,null,null,"20230815i","Se actualizó el listado de especies en la tabla AG_ESPECIES de la BDD, se corrigieron las fórmulas que involucran estos valores para que los tomara por completo.","Kevin Moreno","15/8/2023"]
[null,null,null,"20230814i","Se creó la plantilla de cero (0), los elementos que componen la plantilla funcionan para la temática de VEGETACION.\n\nSe modificó la hoja de DIGITADOR añadiendo listas de valores, entre otros tal como observaciones generales.\n\nSe crearon todas las columnas que componente la hoja de DATOS, se obtienen valores como la fecha, estación, especie, DAP, altura, etc .\n\nSe mapeó toda la hoja de CONFIGURACIÓN para tomar los valores de los muestreos y muestras y generar las tablas que sirven para subir la información al sistema.\n","Kevin Moreno","14/8/2023"]

{"sheet":"configuracion","index":1,"n_rows":71,"n_cols":14,"rows_kept":71,"cut":false,"hidden":true,"merged":[[45,5,45,7],[61,0,61,2],[23,0,26,0],[0,0,2,0],[3,0,5,0],[7,0,8,0],[9,0,15,0],[17,0,21,0],[60,0,60,1],[28,0,35,0],[37,0,42,0],[45,0,45,1]]}
["general","urlServicio","https://argos.invemar.org.co/api/"]
[null,"fila de inicio",4]
[null,"fila de fin",304]
["metodologias","Metodologias",{"$f":"DIGITADOR!B4","v":873}]
[null,"Referentes",300]
[null,"Cantidad maxima de referentes ",300]
["estaciones/investigadores","proyectos",3572]
["Lista especies","metodologias",{"$f":"DIGITADOR!B4","v":873}]
[null,"proyectos",3572]
["MUESTREOS","ID_MUESTREO","DATOS,B"]
[null,"ID_ESTACION","DATOS,E"]
[null,"ID_PROYECTO",3572]
[null,"ID_METODOLOGIA",{"$f":"DIGITADOR!B4","v":873}]
[null,"ID_TEMATICAS",{"$f":"IF(C4=\"\",\"\",VLOOKUP(C4,'Otras referencias'!N7:P10,2,FALSE))","v":270}]
[null,"FECHA","DATOS,G"]
[null,"NOTAS","DIGITADOR,B,28"]
[null,"cantidad",304]
["parametro muestreo","ID_MUESTREO","DATOS,B","DATOS,B","DATOS,B","DATOS,B"]
[null,"ID_PARAMETRO",1169,1055,1170,127]
[null,"ID_METODOLOGIA",{"$f":"DIGITADOR!$B$4","v":873},{"$f":"DIGITADOR!$B$4","v":873},{"$f":"DIGITADOR!$B$4","v":873},{"$f":"DIGITADOR!$B$4","v":873}]
[null,"ID_UNIDAD_MEDIDA",100,100,100,100]
[null,"VALOR","DIGITADOR,B,14","DIGITADOR,B,7","DIGITADOR,B,13","DIGITADOR,B,12"]
[null,"cantidad",304,304,304,304]
["muestra","ID_MUESTRA","DATOS,D"]
[null,"ID_MUESTREO","DATOS,C"]
[null,"NOTAS","DATOS,AO"]
[null,"ES_REPLICA",1]
[null,"cantidad",304]
["muestra variable","ID_PARAMETRO",860,1755,1754,1181,263,270,1752,1753,843,1665,581,1175]
[null,"ID_METODOLOGIA",{"$f":"DIGITADOR!$B$4","v":873},{"$f":"DIGITADOR!$B$4","v":873},{"$f":"DIGITADOR!$B$4","v":873},{"$f":"DIGITADOR!$B$4","v":873},{"$f":"DIGITADOR!$B$4","v":873},{"$f":"DIGITADOR!$B$4","v":873},{"$f":"DIGITADOR!$B$4","v":873},{"$f":"DIGITADOR!$B$4","v":873},{"$f":"DIGITADOR!$B$4","v":873},{"$f":"DIGITADOR!$B$4","v":873},{"$f":"DIGITADOR!$B$4","v":873},{"$f":"DIGITADOR!$B$4","v":873}]
[null,"ID_UNIDAD_MEDIDA",100,100,100,100,10,11,100,100,100,100,100,100]
[null,"ID_MUESTRA","DATOS,D","DATOS,D","DATOS,D","DATOS,D","DATOS,D","DATOS,D","DATOS,D","DATOS,D","DATOS,D","DATOS,D","DATOS,D","DATOS,D"]
[null,"ID_METODO"]
[null,"VALOR","DATOS,K","DATOS,L","DATOS,M","DATOS,P","DATOS,R","DATOS,T","DATOS,V","DATOS,W","DATOS,X","DATOS,Y","DATOS,AG","DATOS,AN"]
[null,"QUALITY_FLAG"]
[null,"PRECISION"]
[null,"cantidad",304,304,304,304,304,304,304,304,304,304,304,304]
["autoria","ID_FUNCIONARIO","DIGITADOR,B,2","DIGITADOR,B,18","DIGITADOR,B,20","DIGITADOR,B,22","DIGITADOR,B,24"]
[null,"ID_TAREA",5,"DIGITADOR,A,18","DIGITADOR,A,20","DIGITADOR,A,22","DIGITADOR,A,24"]
[null,"ORDEN",1,2,3,4,5]
[null,"FECHA","DIGITADOR,B,9","DATOS,G","DATOS,G","DATOS,G","DATOS,G"]
[null,"ID_MUESTREO","DATOS,B","DATOS,B","DATOS,B","DATOS,B","DATOS,B"]
[null,"ENTIDAD","DIGITADOR,B,6","DIGITADOR,B,6","DIGITADOR,B,6","DIGITADOR,B,6","DIGITADOR,B,6"]
[null,"cantidad",304,304,304,304,304]
[]
["REGISTROS GENERADOS",null,"REGISTROS CARGADOS",null,null,"PLAYAS VEGETACION - METODOLOGIA 873"]
["MUESTREOS",null,null,null,null,"ID_PARAMETRO","NOMBRE_COLUMNA","ID_UNIDAD_MEDIDA"]
["parametro muestreo",null,null,null,null,860,"TAMANO_PARCELA",100]
["muestra",null,null,null,null,1755,"SUBCUADRANTE",100]
["muestra variable",null,null,null,null,1181,"ESPECIE",100]
["autoria",null,null,null,null,1754,"NUMERO_INDIVIDUO",100]
["registros correctos",null,null,null,null,263,"DAP",10]
["Fecha de carga",null,null,null,null,270,"ALTURA",11]
["json error",null,null,null,null,1752,"COPA_X",100]
["error",null,null,null,null,1753,"COPA_Y",100]
[null,null,null,null,null,843,"COBERTURA",100]
[null,null,null,null,null,1665,"NUMERO_COLECTA",100]
["Atributo","Descripción","Código",null,null,581,"MICROHABITATS_ASOCIADOS",100]
["Tipo Nodo","Estaciones",{"$f":"VLOOKUP($B$59,'Otras referencias'!D23:F33,2,FALSE)","v":40},null,null,1175,"ESTADO_PLAYA",100]
[null,null,null,null,null,1169,"URL_METADATO",100]
[null,null,null,null,null,1055,"VERSION_PLANTILLA",100]
["CONFIGURACION REFERENTES",null,null,null,null,1170,"ARCHIVO_FUENTE",100]
["Ruta de la API","Endpoint","Descripción",null,null,127,"PROYECTO_FINANCIO",100]
["URL - AGM Campo",{"$f":"CONCATENATE(\"parametros/agmcampo/\",$C$4,\"\")","v":"parametros/agmcampo/873"},"Listado de referentes AGM_CAMPO"]
["URL - Especies",{"$f":"IF($C$8=\"\",\"\",CONCATENATE(\"especies/filt/\",$C$9,\",\",$C$8,\"/\"))","v":"especies/filt/3572,873/"},"Especies por proyecto\n(No todos los proyectos tienen asociados una lista de especies)"]
["URL - Estaciones",{"$f":"CONCATENATE(\"estaciones/\", $C$59, \"/\",$C$9,\"\")","v":"estaciones/40/3572"},"Estaciones/parcelas por proyecto, cambia dependiendo del Tipo de Nodo, cuyo estado sea VIGENTE."]
["URL - Usuarios",{"$f":"CONCATENATE(\"parametros/usersByProject/\",$C$7,\"\")","v":"parametros/usersByProject/3572"},"Usuarios por proyecto."]
["URL - Entidades","estaciones/get-entidades","Listado de entidades."]
["Atributos de la API","codigo_in","nombre_in"]
["Rango de atributos de la API","B69:C70","nombre_in"]
["URL - Plantillas","plantillas/","Endpoint para la carga de datos al sistema."]

{"sheet":"DIGITADOR","index":2,"n_rows":38,"n_cols":4,"rows_kept":38,"cut":false,"hidden":false,"merged":[[37,1,37,2],[36,1,36,2],[0,0,0,1],[15,3,15,9],[16,3,16,9],[1,3,9,9],[10,3,14,9],[7,0,8,0],[26,0,26,1],[29,0,29,1]]}
["Recolección de Datos Monitoreo\nPlayas Y Dunas - Vegetación KFW"]
["Código Digitador",{"$f":"IF(B3=\"\",\"\",INDEX(referentes!$Y$2:$Z$60,MATCH(DIGITADOR!B3,referentes!$Z$2:$Z$60,0),1))","v":""},null,"Recomendaciones generales: \n¡Precaución! No inserte Filas o Columnas.\nEn los casos en que falte un valor a ingresar que provenga de la hoja de referencias, informe para que el administrador del sistema haga las adiciones necesarias.\nEsta es una plantilla programada. Las columnas de color oscuro se llenan automaticamente, principalmente a partir de los contenidos de la hoja de referencias. \nNO UTILICE PUNTO Y COMA (;) en ningun campo, por ser el separador de variables (columnas). Las unidades de medida son las especificadas en la cabecera de la hoja.\nPara el correcto funcionamiento de la hoja debe estar activa la opcion de Excel de ejecutar macros (al abrir la hoja acepte la opcion habilitar macros, mensaje de Excel que aparece en la parte superior de la hoja en un recuadro amarillo). La extensión del archivo debe ser .xlsm.. \nAl finalizar, renombre el archivo de modo que su contenido sea claro, ejemplo:\ncorporacion_estacion_anocuatrodigitosmesmuestreo.xlsm. El nombre no debe tener espacios en blanco vocales tildadas o ñ."]
["Nombre del responsable",null,{"$f":"IF(G3=\"\",\"\",CONCATENATE(DIGITADOR!$M$1,G3,E3))","v":""}]
["Código Monitoreo",{"$f":"IF(B5=\"\",\"\",INDEX('Otras referencias'!$K$7:$L$9,MATCH(DIGITADOR!B5,'Otras referencias'!$L$7:$L$9,0),1))","v":873}]
["Monitoreo","Playas - VEGETACION"]
["Entidad","Instituto de Investigaciones Marinas y Costeras"]
["Versión de la plantilla",{"$f":"'Registro de cambios'!$D$5","v":"20241010i"}]
["Fecha en la que ingresa los datos en esta hoja","DD/MM/AAAA"]
[null,"3000-12-12"]
[]
["Código del proyecto",{"$f":"IF(B12=\"\",\"\",INDEX('Otras referencias'!$D$7:$E$7,MATCH(DIGITADOR!B12,'Otras referencias'!$E$7:$E$7,0),1))","v":3572},null,"Previamente a iniciar el llenado de la plantilla, debe presionar el botón \"Descargar referentes\" para que los referentes de ésta plantilla sean actualizados. \nLuego de llenar completamente la plantilla verifique que:\na. No haya celdas con valores como \"#N/A\" o \"#¡REF!\".\nb. No se estén aplicando filtros en la hoja de datos.\nEnvíe la plantilla diligenciada al correo kevin.moreno@invemar.org.co"]
["Proyecto que financia","KFW"]
["Nombre del Archivo",{"$f":"MID(CELL(\"FILENAME\",N63),FIND(\"[\",CELL(\"FILENAME\",N63))+1,   FIND(\"]\",CELL(\"FILENAME\",N63))-FIND(\"[\",CELL(\"FILENAME\",N63))-1)","v":"KFW_PLAYAS_VEGETACION_20241010im.xlsm"}]
["DOI Metadato"]
["Fuente Plantilla ","http://cinto.invemar.org.co/download/Plantillas_ARGOS_Plus/"]
[null,null,null,"Si requiere ayuda contacte a:\nKevin S. Moreno (kevin.moreno@invemar.org.co)"]
["ROLES INVOLUCRADOS","NOMBRE DE LA PERSONA",null,"El custodio de los datos es el único autorizado para distribuir este conjunto de datos. El observador y el digitador se comprometen a tomar las medidas necesarias para salvaguardar este conjunto de datos de modo que copia de los mismos no sean obtenidas y/o usadas por terceros no relacionados con el propósito para la cual se recolectó."]
[{"$f":"IF(A19=\"\",\"\",INDEX('Otras referencias'!$H$6:$I$9,MATCH(DIGITADOR!A19,'Otras referencias'!$I$6:$I$9,0),1))","v":""},{"$f":"IF(B19=\"\",\"\",INDEX(referentes!$Y$2:$Z$60,MATCH(DIGITADOR!B19,referentes!$Z$2:$Z$60,0),1))","v":""}]
[]
[{"$f":"IF(A21=\"\",\"\",INDEX('Otras referencias'!$H$6:$I$9,MATCH(DIGITADOR!A21,'Otras referencias'!$I$6:$I$9,0),1))","v":""},{"$f":"IF(B21=\"\",\"\",INDEX(referentes!$Y$2:$Z$60,MATCH(DIGITADOR!B21,referentes!$Z$2:$Z$60,0),1))","v":""}]
[]
[{"$f":"IF(A23=\"\",\"\",INDEX('Otras referencias'!$H$6:$I$9,MATCH(DIGITADOR!A23,'Otras referencias'!$I$6:$I$9,0),1))","v":""},{"$f":"IF(B23=\"\",\"\",INDEX(referentes!$S$2:$T$60,MATCH(DIGITADOR!B23,referentes!$T$2:$T$60,0),1))","v":""}]
[]
[{"$f":"IF(A25=\"\",\"\",INDEX('Otras referencias'!$H$6:$I$9,MATCH(DIGITADOR!A25,'Otras referencias'!$I$6:$I$9,0),1))","v":""},{"$f":"IF(B25=\"\",\"\",INDEX(referentes!$S$2:$T$60,MATCH(DIGITADOR!B25,referentes!$T$2:$T$60,0),1))","v":""}]
[]
[]
["ATRIBUTOS ADICIONALES"]
["Observaciones generales"]
[]
["REGISTROS GENERADOS",null,"CARGADOS"]
["Muestreos",{"$f":"IF(configuracion!B47=\"\",\"\",configuracion!B47)","v":""},{"$f":"IF(configuracion!C47=\"\",\"\",configuracion!C47)","v":""}]
["Parámetros del muestreo",{"$f":"IF(configuracion!B48=\"\",\"\",configuracion!B48)","v":""},{"$f":"IF(configuracion!C48=\"\",\"\",configuracion!C48)","v":""}]
["Registros",{"$f":"IF(configuracion!B49=\"\",\"\",configuracion!B49)","v":""},{"$f":"IF(configuracion!C49=\"\",\"\",configuracion!C49)","v":""}]
["Variables",{"$f":"IF(configuracion!B50=\"\",\"\",configuracion!B50)","v":""},{"$f":"IF(configuracion!C50=\"\",\"\",configuracion!C50)","v":""}]
["Autorías",{"$f":"IF(configuracion!B51=\"\",\"\",configuracion!B51)","v":""},{"$f":"IF(configuracion!C51=\"\",\"\",configuracion!C51)","v":""}]
["Registros correctos",{"$f":"IF(configuracion!B52=\"\",\"\",configuracion!B52)","v":""},{"$f":"IF(configuracion!C52=\"\",\"\",configuracion!C52)","v":""}]
["json error",{"$f":"IF(C41=\"\",\"\",IF(C41=0,0,IF(B41-C41=0,C41,\"Fallaron \"&B41-C41&\" registros\")))","v":""}]
["error",{"$f":"IF(C42=\"\",\"\",IF(C42=0,0,IF(B42-C42=0,C42,\"Fallaron \"&B42-C42&\" registros\")))","v":""}]

{"sheet":"DATOS","index":3,"n_rows":304,"n_cols":41,"rows_kept":304,"cut":false,"hidden":false,"merged":[[0,5,1,9],[2,25,2,31],[0,10,1,40],[2,33,2,38]]}
[null,null,null,null,null,"MUESTREO ",null,null,null,null,"MUESTRA"]
[]
[{"$f":"TEXT(DIGITADOR!$B$9,\"yyyymmdd\")","v":"30001212"},"AGM MUESTREO","ID MUESTREO","ID MUESTRA","ID ESTACION","Estación","Fecha\n(DD/MM/AAAA)",null,null,null,"Tamaño Parcela (m²)\n(132/28/1)","Subcuadrante","Número de Individuo (Abundancia)",null,null,"ID ESPECIE","Especie (Riqueza)","DAP","Unidad DAP","Altura","Unidad Altura","Copa X","Copa Y","Cobertura (%)","Número de Colecta","Microhábitats asociados,Microhábitats asociados\nElija los microhábitats.",null,null,null,null,null,null,"COD MICROHABITATS","Estado de la Playa/Duna",null,null,null,null,null,"COD ESTADO_PLAYA","Observaciones"]
[null,{"$f":"IF(C4=\"\",\"\",IF(COUNTIF($C$4:C4, C4)>1, \"\", C4))","v":""},{"$f":"IF(G4=\"\",\"\",IF(F4=\"\",\"\",CONCATENATE(DIGITADOR!$M$1,G4,E4)))","v":""},{"$f":"IF(C4=\"\",\"\",CONCATENATE(C4,ROW()-2))","v":""},{"$f":"IF(F4=\"\",\"\",VLOOKUP(F4,referentes!$N$2:$Q$161,3,FALSE))","v":""},null,null,null,null,null,null,null,null,null,null,{"$f":"IF(Q4=\"\",\"\",INDEX(referentes!$D$2:$E$65,MATCH(Q4,referentes!$E$2:$E$65,0),1))","v":""},null,null,{"$f":"IF(R4=\"\",\"\",'Otras referencias'!$B$7)","v":""},null,{"$f":"IF(T4=\"\",\"\",'Otras referencias'!$B$8)","v":""},null,null,null,null,null,null,null,null,null,null,null,{"$f":"CONCATENATE(\n                                IF(AA4<>\"\",CONCATENATE(Z4,\", \",\n                                                      IF(AB4<>\"\",CONCATENATE(AA4,\", \",\n                                                           IF(AC4<>\"\",CONCATENATE(AB4,\", \",\n                                                               IF(AD4<>\"\",CONCATENATE(AC4,\", \",\n                                                                   IF(AE4<>\"\",CONCATENATE(AD4,\", \",\n                                                                        IF(AF4<>\"\",CONCATENATE(AE4,\", \", AF4), AE4)\n                                                                      ), AD4)\n                                                                   ), AC4)\n                                                               ), AB4)\n                                                       ), AA4)\n                                ),Z4)\n)","v":""},null,null,null,null,null,null,{"$f":"CONCATENATE(\n                                IF(AI4<>\"\",CONCATENATE(AH4,\", \",\n                                                      IF(AJ4<>\"\",CONCATENATE(AI4,\", \",\n                                                           IF(AK4<>\"\",CONCATENATE(AJ4,\", \",\n                                                               IF(AL4<>\"\",CONCATENATE(AK4,\", \",\n                                                                       IF(AM4<>\"\",CONCATENATE(AL4,\", \", AM4), AL4)\n                                                                      ), AK4)\n                                                               ), AJ4)\n                                                       ), AI4)\n                                ),AH4)\n)","v":""}]
[null,{"$f":"IF(C5=\"\",\"\",IF(COUNTIF($C$4:C5, C5)>1, \"\", C5))","v":""},{"$f":"IF(G5=\"\",\"\",IF(F5=\"\",\"\",CONCATENATE(DIGITADOR!$M$1,G5,E5)))","v":""},{"$f":"IF(C5=\"\",\"\",CONCATENATE(C5,ROW()-2))","v":""},{"$f":"IF(F5=\"\",\"\",VLOOKUP(F5,referentes!$N$2:$Q$161,3,FALSE))","v":""},null,null,null,null,null,null,null,null,null,null,{"$f":"IF(Q5=\"\",\"\",INDEX(referentes!$D$2:$E$65,MATCH(Q5,referentes!$E$2:$E$65,0),1))","v":""},null,null,{"$f":"IF(R5=\"\",\"\",'Otras referencias'!$B$7)","v":""},null,{"$f":"IF(T5=\"\",\"\",'Otras referencias'!$B$8)","v":""},null,null,null,null,null,null,null,null,null,null,null,{"$f":"CONCATENATE(\n                                IF(AA5<>\"\",CONCATENATE(Z5,\", \",\n                                                      IF(AB5<>\"\",CONCATENATE(AA5,\", \",\n                                                           IF(AC5<>\"\",CONCATENATE(AB5,\", \",\n                                                               IF(AD5<>\"\",CONCATENATE(AC5,\", \",\n                                                                   IF(AE5<>\"\",CONCATENATE(AD5,\", \",\n                                                                        IF(AF5<>\"\",CONCATENATE(AE5,\", \", AF5), AE5)\n                                                                      ), AD5)\n                                                                   ), AC5)\n                                                               ), AB5)\n                                                       ), AA5)\n                                ),Z5)\n)","v":""},null,null,null,null,null,null,{"$f":"CONCATENATE(\n                                IF(AI5<>\"\",CONCATENATE(AH5,\", \",\n                                                      IF(AJ5<>\"\",CONCATENATE(AI5,\", \",\n                                                           IF(AK5<>\"\",CONCATENATE(AJ5,\", \",\n                                                               IF(AL5<>\"\",CONCATENATE(AK5,\", \",\n                                                                       IF(AM5<>\"\",CONCATENATE(AL5,\", \", AM5), AL5)\n                                                                      ), AK5)\n                                                               ), AJ5)\n                                                       ), AI5)\n                                ),AH5)\n)","v":""}]
[null,{"$f":"IF(C6=\"\",\"\",IF(COUNTIF($C$4:C6, C6)>1, \"\", C6))","v":""},{"$f":"IF(G6=\"\",\"\",IF(F6=\"\",\"\",CONCATENATE(DIGITADOR!$M$1,G6,E6)))","v":""},"",{"$f":"IF(F6=\"\",\"\",VLOOKUP(F6,referentes!$N$2:$Q$161,3,FALSE))","v":""},null,null,null,null,null,null,null,null,null,null,{"$f":"IF(Q6=\"\",\"\",INDEX(referentes!$D$2:$E$65,MATCH(Q6,referentes!$E$2:$E$65,0),1))","v":""},null,null,{"$f":"IF(R6=\"\",\"\",'Otras referencias'!$B$7)","v":""},null,{"$f":"IF(T6=\"\",\"\",'Otras referencias'!$B$8)","v":""},null,null,null,null,null,null,null,null,null,null,null,"",null,null,null,null,null,null,""]
[null,{"$f":"IF(C7=\"\",\"\",IF(COUNTIF($C$4:C7, C7)>1, \"\", C7))","v":""},{"$f":"IF(G7=\"\",\"\",IF(F7=\"\",\"\",CONCATENATE(DIGITADOR!$M$1,G7,E7)))","v":""},"",{"$f":"IF(F7=\"\",\"\",VLOOKUP(F7,referentes!$N$2:$Q$161,3,FALSE))","v":""},null,null,null,null,null,null,null,null,null,null,{"$f":"IF(Q7=\"\",\"\",INDEX(referentes!$D$2:$E$65,MATCH(Q7,referentes!$E$2:$E$65,0),1))","v":""},null,null,{"$f":"IF(R7=\"\",\"\",'Otras referencias'!$B$7)","v":""},null,{"$f":"IF(T7=\"\",\"\",'Otras referencias'!$B$8)","v":""},null,null,null,null,null,null,null,null,null,null,null,"",null,null,null,null,null,null,""]
[null,{"$f":"IF(C8=\"\",\"\",IF(COUNTIF($C$4:C8, C8)>1, \"\", C8))","v":""},{"$f":"IF(G8=\"\",\"\",IF(F8=\"\",\"\",CONCATENATE(DIGITADOR!$M$1,G8,E8)))","v":""},"",{"$f":"IF(F8=\"\",\"\",VLOOKUP(F8,referentes!$N$2:$Q$161,3,FALSE))","v":""},null,null,null,null,null,null,null,null,null,null,{"$f":"IF(Q8=\"\",\"\",INDEX(referentes!$D$2:$E$65,MATCH(Q8,referentes!$E$2:$E$65,0),1))","v":""},null,null,{"$f":"IF(R8=\"\",\"\",'Otras referencias'!$B$7)","v":""},null,{"$f":"IF(T8=\"\",\"\",'Otras referencias'!$B$8)","v":""},null,null,null,null,null,null,null,null,null,null,null,"",null,null,null,null,null,null,""]
[null,{"$f":"IF(C9=\"\",\"\",IF(COUNTIF($C$4:C9, C9)>1, \"\", C9))","v":""},{"$f":"IF(G9=\"\",\"\",IF(F9=\"\",\"\",CONCATENATE(DIGITADOR!$M$1,G9,E9)))","v":""},"",{"$f":"IF(F9=\"\",\"\",VLOOKUP(F9,referentes!$N$2:$Q$161,3,FALSE))","v":""},null,null,null,null,null,null,null,null,null,null,{"$f":"IF(Q9=\"\",\"\",INDEX(referentes!$D$2:$E$65,MATCH(Q9,referentes!$E$2:$E$65,0),1))","v":""},null,null,{"$f":"IF(R9=\"\",\"\",'Otras referencias'!$B$7)","v":""},null,{"$f":"IF(T9=\"\",\"\",'Otras referencias'!$B$8)","v":""},null,null,null,null,null,null,null,null,null,null,null,"",null,null,null,null,null,null,""]
[null,{"$f":"IF(C10=\"\",\"\",IF(COUNTIF($C$4:C10, C10)>1, \"\", C10))","v":""},{"$f":"IF(G10=\"\",\"\",IF(F10=\"\",\"\",CONCATENATE(DIGITADOR!$M$1,G10,E10)))","v":""},"",{"$f":"IF(F10=\"\",\"\",VLOOKUP(F10,referentes!$N$2:$Q$161,3,FALSE))","v":""},null,null,null,null,null,null,null,null,null,null,{"$f":"IF(Q10=\"\",\"\",INDEX(referentes!$D$2:$E$65,MATCH(Q10,referentes!$E$2:$E$65,0),1))","v":""},null,null,{"$f":"IF(R10=\"\",\"\",'Otras referencias'!$B$7)","v":""},null,{"$f":"IF(T10=\"\",\"\",'Otras referencias'!$B$8)","v":""},null,null,null,null,null,null,null,null,null,null,null,"",null,null,null,null,null,null,""]
[null,{"$f":"IF(C11=\"\",\"\",IF(COUNTIF($C$4:C11, C11)>1, \"\", C11))","v":""},{"$f":"IF(G11=\"\",\"\",IF(F11=\"\",\"\",CONCATENATE(DIGITADOR!$M$1,G11,E11)))","v":""},"",{"$f":"IF(F11=\"\",\"\",VLOOKUP(F11,referentes!$N$2:$Q$161,3,FALSE))","v":""},null,null,null,null,null,null,null,null,null,null,{"$f":"IF(Q11=\"\",\"\",INDEX(referentes!$D$2:$E$65,MATCH(Q11,referentes!$E$2:$E$65,0),1))","v":""},null,null,{"$f":"IF(R11=\"\",\"\",'Otras referencias'!$B$7)","v":""},null,{"$f":"IF(T11=\"\",\"\",'Otras referencias'!$B$8)","v":""},null,null,null,null,null,null,null,null,null,null,null,"",null,null,null,null,null,null,""]
[null,{"$f":"IF(C12=\"\",\"\",IF(COUNTIF($C$4:C12, C12)>1, \"\", C12))","v":""},{"$f":"IF(G12=\"\",\"\",IF(F12=\"\",\"\",CONCATENATE(DIGITADOR!$M$1,G12,E12)))","v":""},"",{"$f":"IF(F12=\"\",\"\",VLOOKUP(F12,referentes!$N$2:$Q$161,3,FALSE))","v":""},null,null,null,null,null,null,null,null,null,null,{"$f":"IF(Q12=\"\",\"\",INDEX(referentes!$D$2:$E$65,MATCH(Q12,referentes!$E$2:$E$65,0),1))","v":""},null,null,{"$f":"IF(R12=\"\",\"\",'Otras referencias'!$B$7)","v":""},null,{"$f":"IF(T12=\"\",\"\",'Otras referencias'!$B$8)","v":""},null,null,null,null,null,null,null,null,null,null,null,"",null,null,null,null,null,null,""]
[null,{"$f":"IF(C13=\"\",\"\",IF(COUNTIF($C$4:C13, C13)>1, \"\", C13))","v":""},{"$f":"IF(G13=\"\",\"\",IF(F13=\"\",\"\",CONCATENATE(DIGITADOR!$M$1,G13,E13)))","v":""},"",{"$f":"IF(F13=\"\",\"\",VLOOKUP(F13,referentes!$N$2:$Q$161,3,FALSE))","v":""},null,null,null,null,null,null,null,null,null,null,{"$f":"IF(Q13=\"\",\"\",INDEX(referentes!$D$2:$E$65,MATCH(Q13,referentes!$E$2:$E$65,0),1))","v":""},null,null,{"$f":"IF(R13=\"\",\"\",'Otras referencias'!$B$7)","v":""},null,{"$f":"IF(T13=\"\",\"\",'Otras referencias'!$B$8)","v":""},null,null,null,null,null,null,null,null,null,null,null,"",null,null,null,null,null,null,""]
[null,{"$f":"IF(C14=\"\",\"\",IF(COUNTIF($C$4:C14, C14)>1, \"\", C14))","v":""},{"$f":"IF(G14=\"\",\"\",IF(F14=\"\",\"\",CONCATENATE(DIGITADOR!$M$1,G14,E14)))","v":""},"",{"$f":"IF(F14=\"\",\"\",VLOOKUP(F14,referentes!$N$2:$Q$161,3,FALSE))","v":""},null,null,null,null,null,null,null,null,null,null,{"$f":"IF(Q14=\"\",\"\",INDEX(referentes!$D$2:$E$65,MATCH(Q14,referentes!$E$2:$E$65,0),1))","v":""},null,null,{"$f":"IF(R14=\"\",\"\",'Otras referencias'!$B$7)","v":""},null,{"$f":"IF(T14=\"\",\"\",'Otras referencias'!$B$8)","v":""},null,null,null,null,null,null,null,null,null,null,null,"",null,null,null,null,null,null,""]
[null,{"$f":"IF(C15=\"\",\"\",IF(COUNTIF($C$4:C15, C15)>1, \"\", C15))","v":""},{"$f":"IF(G15=\"\",\"\",IF(F15=\"\",\"\",CONCATENATE(DIGITADOR!$M$1,G15,E15)))","v":""},"",{"$f":"IF(F15=\"\",\"\",VLOOKUP(F15,referentes!$N$2:$Q$161,3,FALSE))","v":""},null,null,null,null,null,null,null,null,null,null,{"$f":"IF(Q15=\"\",\"\",INDEX(referentes!$D$2:$E$65,MATCH(Q15,referentes!$E$2:$E$65,0),1))","v":""},null,null,{"$f":"IF(R15=\"\",\"\",'Otras referencias'!$B$7)","v":""},null,{"$f":"IF(T15=\"\",\"\",'Otras referencias'!$B$8)","v":""},null,null,null,null,null,null,null,null,null,null,null,"",null,null,null,null,null,null,""]
[null,{"$f":"IF(C16=\"\",\"\",IF(COUNTIF($C$4:C16, C16)>1, \"\", C16))","v":""},{"$f":"IF(G16=\"\",\"\",IF(F16=\"\",\"\",CONCATENATE(DIGITADOR!$M$1,G16,E16)))","v":""},"",{"$f":"IF(F16=\"\",\"\",VLOOKUP(F16,referentes!$N$2:$Q$161,3,FALSE))","v":""},null,null,null,null,null,null,null,null,null,null,{"$f":"IF(Q16=\"\",\"\",INDEX(referentes!$D$2:$E$65,MATCH(Q16,referentes!$E$2:$E$65,0),1))","v":""},null,null,{"$f":"IF(R16=\"\",\"\",'Otras referencias'!$B$7)","v":""},null,{"$f":"IF(T16=\"\",\"\",'Otras referencias'!$B$8)","v":""},null,null,null,null,null,null,null,null,null,null,null,"",null,null,null,null,null,null,""]
[null,{"$f":"IF(C17=\"\",\"\",IF(COUNTIF($C$4:C17, C17)>1, \"\", C17))","v":""},{"$f":"IF(G17=\"\",\"\",IF(F17=\"\",\"\",CONCATENATE(DIGITADOR!$M$1,G17,E17)))","v":""},"",{"$f":"IF(F17=\"\",\"\",VLOOKUP(F17,referentes!$N$2:$Q$161,3,FALSE))","v":""},null,null,null,null,null,null,null,null,null,null,{"$f":"IF(Q17=\"\",\"\",INDEX(referentes!$D$2:$E$65,MATCH(Q17,referentes!$E$2:$E$65,0),1))","v":""},null,null,{"$f":"IF(R17=\"\",\"\",'Otras referencias'!$B$7)","v":""},null,{"$f":"IF(T17=\"\",\"\",'Otras referencias'!$B$8)","v":""},null,null,null,null,null,null,null,null,null,null,null,"",null,null,null,null,null,null,""]
[null,{"$f":"IF(C18=\"\",\"\",IF(COUNTIF($C$4:C18, C18)>1, \"\", C18))","v":""},{"$f":"IF(G18=\"\",\"\",IF(F18=\"\",\"\",CONCATENATE(DIGITADOR!$M$1,G18,E18)))","v":""},"",{"$f":"IF(F18=\"\",\"\",VLOOKUP(F18,referentes!$N$2:$Q$161,3,FALSE))","v":""},null,null,null,null,null,null,null,null,null,null,{"$f":"IF(Q18=\"\",\"\",INDEX(referentes!$D$2:$E$65,MATCH(Q18,referentes!$E$2:$E$65,0),1))","v":""},null,null,{"$f":"IF(R18=\"\",\"\",'Otras referencias'!$B$7)","v":""},null,{"$f":"IF(T18=\"\",\"\",'Otras referencias'!$B$8)","v":""},null,null,null,null,null,null,null,null,null,null,null,"",null,null,null,null,null,null,""]
[null,{"$f":"IF(C19=\"\",\"\",IF(COUNTIF($C$4:C19, C19)>1, \"\", C19))","v":""},{"$f":"IF(G19=\"\",\"\",IF(F19=\"\",\"\",CONCATENATE(DIGITADOR!$M$1,G19,E19)))","v":""},"",{"$f":"IF(F19=\"\",\"\",VLOOKUP(F19,referentes!$N$2:$Q$161,3,FALSE))","v":""},null,null,null,null,null,null,null,null,null,null,{"$f":"IF(Q19=\"\",\"\",INDEX(referentes!$D$2:$E$65,MATCH(Q19,referentes!$E$2:$E$65,0),1))","v":""},null,null,{"$f":"IF(R19=\"\",\"\",'Otras referencias'!$B$7)","v":""},null,{"$f":"IF(T19=\"\",\"\",'Otras referencias'!$B$8)","v":""},null,null,null,null,null,null,null,null,null,null,null,"",null,null,null,null,null,null,""]
[null,{"$f":"IF(C20=\"\",\"\",IF(COUNTIF($C$4:C20, C20)>1, \"\", C20))","v":""},{"$f":"IF(G20=\"\",\"\",IF(F20=\"\",\"\",CONCATENATE(DIGITADOR!$M$1,G20,E20)))","v":""},"",{"$f":"IF(F20=\"\",\"\",VLOOKUP(F20,referentes!$N$2:$Q$161,3,FALSE))","v":""},null,null,null,null,null,null,null,null,null,null,{"$f":"IF(Q20=\"\",\"\",INDEX(referentes!$D$2:$E$65,MATCH(Q20,referentes!$E$2:$E$65,0),1))","v":""},null,null,{"$f":"IF(R20=\"\",\"\",'Otras referencias'!$B$7)","v":""},null,{"$f":"IF(T20=\"\",\"\",'Otras referencias'!$B$8)","v":""},null,null,null,null,null,null,null,null,null,null,null,"",null,null,null,null,null,null,""]
[null,{"$f":"IF(C21=\"\",\"\",IF(COUNTIF($C$4:C21, C21)>1, \"\", C21))","v":""},{"$f":"IF(G21=\"\",\"\",IF(F21=\"\",\"\",CONCATENATE(DIGITADOR!$M$1,G21,E21)))","v":""},"",{"$f":"IF(F21=\"\",\"\",VLOOKUP(F21,referentes!$N$2:$Q$161,3,FALSE))","v":""},null,null,null,null,null,null,null,null,null,null,{"$f":"IF(Q21=\"\",\"\",INDEX(referentes!$D$2:$E$65,MATCH(Q21,referentes!$E$2:$E$65,0),1))","v":""},null,null,{"$f":"IF(R21=\"\",\"\",'Otras referencias'!$B$7)","v":""},null,{"$f":"IF(T21=\"\",\"\",'Otras referencias'!$B$8)","v":""},null,null,null,null,null,null,null,null,null,null,null,"",null,null,null,null,null,null,""]
[null,{"$f":"IF(C22=\"\",\"\",IF(COUNTIF($C$4:C22, C22)>1, \"\", C22))","v":""},{"$f":"IF(G22=\"\",\"\",IF(F22=\"\",\"\",CONCATENATE(DIGITADOR!$M$1,G22,E22)))","v":""},"",{"$f":"IF(F22=\"\",\"\",VLOOKUP(F22,referentes!$N$2:$Q$161,3,FALSE))","v":""},null,null,null,null,null,null,null,null,null,null,{"$f":"IF(Q22=\"\",\"\",INDEX(referentes!$D$2:$E$65,MATCH(Q22,referentes!$E$2:$E$65,0),1))","v":""},null,null,{"$f":"IF(R22=\"\",\"\",'Otras referencias'!$B$7)","v":""},null,{"$f":"IF(T22=\"\",\"\",'Otras referencias'!$B$8)","v":""},null,null,null,null,null,null,null,null,null,null,null,"",null,null,null,null,null,null,""]
[null,{"$f":"IF(C23=\"\",\"\",IF(COUNTIF($C$4:C23, C23)>1, \"\", C23))","v":""},{"$f":"IF(G23=\"\",\"\",IF(F23=\"\",\"\",CONCATENATE(DIGITADOR!$M$1,G23,E23)))","v":""},"",{"$f":"IF(F23=\"\",\"\",VLOOKUP(F23,referentes!$N$2:$Q$161,3,FALSE))","v":""},null,null,null,null,null,null,null,null,null,null,{"$f":"IF(Q23=\"\",\"\",INDEX(referentes!$D$2:$E$65,MATCH(Q23,referentes!$E$2:$E$65,0),1))","v":""},null,null,{"$f":"IF(R23=\"\",\"\",'Otras referencias'!$B$7)","v":""},null,{"$f":"IF(T23=\"\",\"\",'Otras referencias'!$B$8)","v":""},null,null,null,null,null,null,null,null,null,null,null,"",null,null,null,null,null,null,""]
[null,{"$f":"IF(C24=\"\",\"\",IF(COUNTIF($C$4:C24, C24)>1, \"\", C24))","v":""},{"$f":"IF(G24=\"\",\"\",IF(F24=\"\",\"\",CONCATENATE(DIGITADOR!$M$1,G24,E24)))","v":""},"",{"$f":"IF(F24=\"\",\"\",VLOOKUP(F24,referentes!$N$2:$Q$161,3,FALSE))","v":""},null,null,null,null,null,null,null,null,null,null,{"$f":"IF(Q24=\"\",\"\",INDEX(referentes!$D$2:$E$65,MATCH(Q24,referentes!$E$2:$E$65,0),1))","v":""},null,null,{"$f":"IF(R24=\"\",\"\",'Otras referencias'!$B$7)","v":""},null,{"$f":"IF(T24=\"\",\"\",'Otras referencias'!$B$8)","v":""},null,null,null,null,null,null,null,null,null,null,null,"",null,null,null,null,null,null,""]
[null,{"$f":"IF(C25=\"\",\"\",IF(COUNTIF($C$4:C25, C25)>1, \"\", C25))","v":""},{"$f":"IF(G25=\"\",\"\",IF(F25=\"\",\"\",CONCATENATE(DIGITADOR!$M$1,G25,E25)))","v":""},"",{"$f":"IF(F25=\"\",\"\",VLOOKUP(F25,referentes!$N$2:$Q$161,3,FALSE))","v":""},null,null,null,null,null,null,null,null,null,null,{"$f":"IF(Q25=\"\",\"\",INDEX(referentes!$D$2:$E$65,MATCH(Q25,referentes!$E$2:$E$65,0),1))","v":""},null,null,{"$f":"IF(R25=\"\",\"\",'Otras referencias'!$B$7)","v":""},null,{"$f":"IF(T25=\"\",\"\",'Otras referencias'!$B$8)","v":""},null,null,null,null,null,null,null,null,null,null,null,"",null,null,null,null,null,null,""]
[null,{"$f":"IF(C26=\"\",\"\",IF(COUNTIF($C$4:C26, C26)>1, \"\", C26))","v":""},{"$f":"IF(G26=\"\",\"\",IF(F26=\"\",\"\",CONCATENATE(DIGITADOR!$M$1,G26,E26)))","v":""},"",{"$f":"IF(F26=\"\",\"\",VLOOKUP(F26,referentes!$N$2:$Q$161,3,FALSE))","v":""},null,null,null,null,null,null,null,null,null,null,{"$f":"IF(Q26=\"\",\"\",INDEX(referentes!$D$2:$E$65,MATCH(Q26,referentes!$E$2:$E$65,0),1))","v":""},null,null,{"$f":"IF(R26=\"\",\"\",'Otras referencias'!$B$7)","v":""},null,{"$f":"IF(T26=\"\",\"\",'Otras referencias'!$B$8)","v":""},null,null,null,null,null,null,null,null,null,null,null,"",null,null,null,null,null,null,""]
[null,{"$f":"IF(C27=\"\",\"\",IF(COUNTIF($C$4:C27, C27)>1, \"\", C27))","v":""},{"$f":"IF(G27=\"\",\"\",IF(F27=\"\",\"\",CONCATENATE(DIGITADOR!$M$1,G27,E27)))","v":""},"",{"$f":"IF(F27=\"\",\"\",VLOOKUP(F27,referentes!$N$2:$Q$161,3,FALSE))","v":""},null,null,null,null,null,null,null,null,null,null,{"$f":"IF(Q27=\"\",\"\",INDEX(referentes!$D$2:$E$65,MATCH(Q27,referentes!$E$2:$E$65,0),1))","v":""},null,null,{"$f":"IF(R27=\"\",\"\",'Otras referencias'!$B$7)","v":""},null,{"$f":"IF(T27=\"\",\"\",'Otras referencias'!$B$8)","v":""},null,null,null,null,null,null,null,null,null,null,null,"",null,null,null,null,null,null,""]
[null,{"$f":"IF(C28=\"\",\"\",IF(COUNTIF($C$4:C28, C28)>1, \"\", C28))","v":""},{"$f":"IF(G28=\"\",\"\",IF(F28=\"\",\"\",CONCATENATE(DIGITADOR!$M$1,G28,E28)))","v":""},"",{"$f":"IF(F28=\"\",\"\",VLOOKUP(F28,referentes!$N$2:$Q$161,3,FALSE))","v":""},null,null,null,null,null,null,null,null,null,null,{"$f":"IF(Q28=\"\",\"\",INDEX(referentes!$D$2:$E$65,MATCH(Q28,referentes!$E$2:$E$65,0),1))","v":""},null,null,{"$f":"IF(R28=\"\",\"\",'Otras referencias'!$B$7)","v":""},null,{"$f":"IF(T28=\"\",\"\",'Otras referencias'!$B$8)","v":""},null,null,null,null,null,null,null,null,null,null,null,"",null,null,null,null,null,null,""]
[null,{"$f":"IF(C29=\"\",\"\",IF(COUNTIF($C$4:C29, C29)>1, \"\", C29))","v":""},{"$f":"IF(G29=\"\",\"\",IF(F29=\"\",\"\",CONCATENATE(DIGITADOR!$M$1,G29,E29)))","v":""},"",{"$f":"IF(F29=\"\",\"\",VLOOKUP(F29,referentes!$N$2:$Q$161,3,FALSE))","v":""},null,null,null,null,null,null,null,null,null,null,{"$f":"IF(Q29=\"\",\"\",INDEX(referentes!$D$2:$E$65,MATCH(Q29,referentes!$E$2:$E$65,0),1))","v":""},null,null,{"$f":"IF(R29=\"\",\"\",'Otras referencias'!$B$7)","v":""},null,{"$f":"IF(T29=\"\",\"\",'Otras referencias'!$B$8)","v":""},null,null,null,null,null,null,null,null,null,null,null,"",null,null,null,null,null,null,""]
[null,{"$f":"IF(C30=\"\",\"\",IF(COUNTIF($C$4:C30, C30)>1, \"\", C30))","v":""},{"$f":"IF(G30=\"\",\"\",IF(F30=\"\",\"\",CONCATENATE(DIGITADOR!$M$1,G30,E30)))","v":""},"",{"$f":"IF(F30=\"\",\"\",VLOOKUP(F30,referentes!$N$2:$Q$161,3,FALSE))","v":""},null,null,null,null,null,null,null,null,null,null,{"$f":"IF(Q30=\"\",\"\",INDEX(referentes!$D$2:$E$65,MATCH(Q30,referentes!$E$2:$E$65,0),1))","v":""},null,null,{"$f":"IF(R30=\"\",\"\",'Otras referencias'!$B$7)","v":""},null,{"$f":"IF(T30=\"\",\"\",'Otras referencias'!$B$8)","v":""},null,null,null,null,null,null,null,null,null,null,null,"",null,null,null,null,null,null,""]
[null,{"$f":"IF(C31=\"\",\"\",IF(COUNTIF($C$4:C31, C31)>1, \"\", C31))","v":""},{"$f":"IF(G31=\"\",\"\",IF(F31=\"\",\"\",CONCATENATE(DIGITADOR!$M$1,G31,E31)))","v":""},"",{"$f":"IF(F31=\"\",\"\",VLOOKUP(F31,referentes!$N$2:$Q$161,3,FALSE))","v":""},null,null,null,null,null,null,null,null,null,null,{"$f":"IF(Q31=\"\",\"\",INDEX(referentes!$D$2:$E$65,MATCH(Q31,referentes!$E$2:$E$65,0),1))","v":""},null,null,{"$f":"IF(R31=\"\",\"\",'Otras referencias'!$B$7)","v":""},null,{"$f":"IF(T31=\"\",\"\",'Otras referencias'!$B$8)","v":""},null,null,null,null,null,null,null,null,null,null,null,"",null,null,null,null,null,null,""]
[null,{"$f":"IF(C32=\"\",\"\",IF(COUNTIF($C$4:C32, C32)>1, \"\", C32))","v":""},{"$f":"IF(G32=\"\",\"\",IF(F32=\"\",\"\",CONCATENATE(DIGITADOR!$M$1,G32,E32)))","v":""},"",{"$f":"IF(F32=\"\",\"\",VLOOKUP(F32,referentes!$N$2:$Q$161,3,FALSE))","v":""},null,null,null,null,null,null,null,null,null,null,{"$f":"IF(Q32=\"\",\"\",INDEX(referentes!$D$2:$E$65,MATCH(Q32,referentes!$E$2:$E$65,0),1))","v":""},null,null,{"$f":"IF(R32=\"\",\"\",'Otras referencias'!$B$7)","v":""},null,{"$f":"IF(T32=\"\",\"\",'Otras referencias'!$B$8)","v":""},null,null,null,null,null,null,null,null,null,null,null,"",null,null,null,null,null,null,""]
[null,{"$f":"IF(C33=\"\",\"\",IF(COUNTIF($C$4:C33, C33)>1, \"\", C33))","v":""},{"$f":"IF(G33=\"\",\"\",IF(F33=\"\",\"\",CONCATENATE(DIGITADOR!$M$1,G33,E33)))","v":""},"",{"$f":"IF(F33=\"\",\"\",VLOOKUP(F33,referentes!$N$2:$Q$161,3,FALSE))","v":""},null,null,null,null,null,null,null,null,null,null,{"$f":"IF(Q33=\"\",\"\",INDEX(referentes!$D$2:$E$65,MATCH(Q33,referentes!$E$2:$E$65,0),1))","v":""},null,null,{"$f":"IF(R33=\"\",\"\",'Otras referencias'!$B$7)","v":""},null,{"$f":"IF(T33=\"\",\"\",'Otras referencias'!$B$8)","v":""},null,null,null,null,null,null,null,null,null,null,null,"",null,null,null,null,null,null,""]
[null,{"$f":"IF(C34=\"\",\"\",IF(COUNTIF($C$4:C34, C34)>1, \"\", C34))","v":""},{"$f":"IF(G34=\"\",\"\",IF(F34=\"\",\"\",CONCATENATE(DIGITADOR!$M$1,G34,E34)))","v":""},"",{"$f":"IF(F34=\"\",\"\",VLOOKUP(F34,referentes!$N$2:$Q$161,3,FALSE))","v":""},null,null,null,null,null,null,null,null,null,null,{"$f":"IF(Q34=\"\",\"\",INDEX(referentes!$D$2:$E$65,MATCH(Q34,referentes!$E$2:$E$65,0),1))","v":""},null,null,{"$f":"IF(R34=\"\",\"\",'Otras referencias'!$B$7)","v":""},null,{"$f":"IF(T34=\"\",\"\",'Otras referencias'!$B$8)","v":""},null,null,null,null,null,null,null,null,null,null,null,"",null,null,null,null,null,null,""]
[null,{"$f":"IF(C35=\"\",\"\",IF(COUNTIF($C$4:C35, C35)>1, \"\", C35))","v":""},{"$f":"IF(G35=\"\",\"\",IF(F35=\"\",\"\",CONCATENATE(DIGITADOR!$M$1,G35,E35)))","v":""},"",{"$f":"IF(F35=\"\",\"\",VLOOKUP(F35,referentes!$N$2:$Q$161,3,FALSE))","v":""},null,null,null,null,null,null,null,null,null,null,{"$f":"IF(Q35=\"\",\"\",INDEX(referentes!$D$2:$E$65,MATCH(Q35,referentes!$E$2:$E$65,0),1))","v":""},null,null,{"$f":"IF(R35=\"\",\"\",'Otras referencias'!$B$7)","v":""},null,{"$f":"IF(T35=\"\",\"\",'Otras referencias'!$B$8)","v":""},null,null,null,null,null,null,null,null,null,null,null,"",null,null,null,null,null,null,""]
[null,{"$f":"IF(C36=\"\",\"\",IF(COUNTIF($C$4:C36, C36)>1, \"\", C36))","v":""},{"$f":"IF(G36=\"\",\"\",IF(F36=\"\",\"\",CONCATENATE(DIGITADOR!$M$1,G36,E36)))","v":""},"",{"$f":"IF(F36=\"\",\"\",VLOOKUP(F36,referentes!$N$2:$Q$161,3,FALSE))","v":""},null,null,null,null,null,null,null,null,null,null,{"$f":"IF(Q36=\"\",\"\",INDEX(referentes!$D$2:$E$65,MATCH(Q36,referentes!$E$2:$E$65,0),1))","v":""},null,null,{"$f":"IF(R36=\"\",\"\",'Otras referencias'!$B$7)","v":""},null,{"$f":"IF(T36=\"\",\"\",'Otras referencias'!$B$8)","v":""},null,null,null,null,null,null,null,null,null,null,null,"",null,null,null,null,null,null,""]
[null,{"$f":"IF(C37=\"\",\"\",IF(COUNTIF($C$4:C37, C37)>1, \"\", C37))","v":""},{"$f":"IF(G37=\"\",\"\",IF(F37=\"\",\"\",CONCATENATE(DIGITADOR!$M$1,G37,E37)))","v":""},"",{"$f":"IF(F37=\"\",\"\",VLOOKUP(F37,referentes!$N$2:$Q$161,3,FALSE))","v":""},null,null,null,null,null,null,null,null,null,null,{"$f":"IF(Q37=\"\",\"\",INDEX(referentes!$D$2:$E$65,MATCH(Q37,referentes!$E$2:$E$65,0),1))","v":""},null,null,{"$f":"IF(R37=\"\",\"\",'Otras referencias'!$B$7)","v":""},null,{"$f":"IF(T37=\"\",\"\",'Otras referencias'!$B$8)","v":""},null,null,null,null,null,null,null,null,null,null,null,"",null,null,null,null,null,null,""]
[null,{"$f":"IF(C38=\"\",\"\",IF(COUNTIF($C$4:C38, C38)>1, \"\", C38))","v":""},{"$f":"IF(G38=\"\",\"\",IF(F38=\"\",\"\",CONCATENATE(DIGITADOR!$M$1,G38,E38)))","v":""},"",{"$f":"IF(F38=\"\",\"\",VLOOKUP(F38,referentes!$N$2:$Q$161,3,FALSE))","v":""},null,null,null,null,null,null,null,null,null,null,{"$f":"IF(Q38=\"\",\"\",INDEX(referentes!$D$2:$E$65,MATCH(Q38,referentes!$E$2:$E$65,0),1))","v":""},null,null,{"$f":"IF(R38=\"\",\"\",'Otras referencias'!$B$7)","v":""},null,{"$f":"IF(T38=\"\",\"\",'Otras referencias'!$B$8)","v":""},null,null,null,null,null,null,null,null,null,null,null,"",null,null,null,null,null,null,""]
[null,{"$f":"IF(C39=\"\",\"\",IF(COUNTIF($C$4:C39, C39)>1, \"\", C39))","v":""},{"$f":"IF(G39=\"\",\"\",IF(F39=\"\",\"\",CONCATENATE(DIGITADOR!$M$1,G39,E39)))","v":""},"",{"$f":"IF(F39=\"\",\"\",VLOOKUP(F39,referentes!$N$2:$Q$161,3,FALSE))","v":""},null,null,null,null,null,null,null,null,null,null,{"$f":"IF(Q39=\"\",\"\",INDEX(referentes!$D$2:$E$65,MATCH(Q39,referentes!$E$2:$E$65,0),1))","v":""},null,null,{"$f":"IF(R39=\"\",\"\",'Otras referencias'!$B$7)","v":""},null,{"$f":"IF(T39=\"\",\"\",'Otras referencias'!$B$8)","v":""},null,null,null,null,null,null,null,null,null,null,null,"",null,null,null,null,null,null,""]
[null,{"$f":"IF(C40=\"\",\"\",IF(COUNTIF($C$4:C40, C40)>1, \"\", C40))","v":""},{"$f":"IF(G40=\"\",\"\",IF(F40=\"\",\"\",CONCATENATE(DIGITADOR!$M$1,G40,E40)))","v":""},"",{"$f":"IF(F40=\"\",\"\",VLOOKUP(F40,referentes!$N$2:$Q$161,3,FALSE))","v":""},null,null,null,null,null,null,null,null,null,null,{"$f":"IF(Q40=\"\",\"\",INDEX(referentes!$D$2:$E$65,MATCH(Q40,referentes!$E$2:$E$65,0),1))","v":""},null,null,{"$f":"IF(R40=\"\",\"\",'Otras referencias'!$B$7)","v":""},null,{"$f":"IF(T40=\"\",\"\",'Otras referencias'!$B$8)","v":""},null,null,null,null,null,null,null,null,null,null,null,"",null,null,null,null,null,null,""]
[null,{"$f":"IF(C41=\"\",\"\",IF(COUNTIF($C$4:C41, C41)>1, \"\", C41))","v":""},{"$f":"IF(G41=\"\",\"\",IF(F41=\"\",\"\",CONCATENATE(DIGITADOR!$M$1,G41,E41)))","v":""},"",{"$f":"IF(F41=\"\",\"\",VLOOKUP(F41,referentes!$N$2:$Q$161,3,FALSE))","v":""},null,null,null,null,null,null,null,null,null,null,{"$f":"IF(Q41=\"\",\"\",INDEX(referentes!$D$2:$E$65,MATCH(Q41,referentes!$E$2:$E$65,0),1))","v":""},null,null,{"$f":"IF(R41=\"\",\"\",'Otras referencias'!$B$7)","v":""},null,{"$f":"IF(T41=\"\",\"\",'Otras referencias'!$B$8)","v":""},null,null,null,null,null,null,null,null,null,null,null,"",null,null,null,null,null,null,""]
[null,{"$f":"IF(C42=\"\",\"\",IF(COUNTIF($C$4:C42, C42)>1, \"\", C42))","v":""},{"$f":"IF(G42=\"\",\"\",IF(F42=\"\",\"\",CONCATENATE(DIGITADOR!$M$1,G42,E42)))","v":""},"",{"$f":"IF(F42=\"\",\"\",VLOOKUP(F42,referentes!$N$2:$Q$161,3,FALSE))","v":""},null,null,null,null,null,null,null,null,null,null,{"$f":"IF(Q42=\"\",\"\",INDEX(referentes!$D$2:$E$65,MATCH(Q42,referentes!$E$2:$E$65,0),1))","v":""},null,null,{"$f":"IF(R42=\"\",\"\",'Otras referencias'!$B$7)","v":""},null,{"$f":"IF(T42=\"\",\"\",'Otras referencias'!$B$8)","v":""},null,null,null,null,null,null,null,null,null,null,null,"",null,null,null,null,null,null,""]
[null,{"$f":"IF(C43=\"\",\"\",IF(COUNTIF($C$4:C43, C43)>1, \"\", C43))","v":""},{"$f":"IF(G43=\"\",\"\",IF(F43=\"\",\"\",CONCATENATE(DIGITADOR!$M$1,G43,E43)))","v":""},"",{"$f":"IF(F43=\"\",\"\",VLOOKUP(F43,referentes!$N$2:$Q$161,3,FALSE))","v":""},null,null,null,null,null,null,null,null,null,null,{"$f":"IF(Q43=\"\",\"\",INDEX(referentes!$D$2:$E$65,MATCH(Q43,referentes!$E$2:$E$65,0),1))","v":""},null,null,{"$f":"IF(R43=\"\",\"\",'Otras referencias'!$B$7)","v":""},null,{"$f":"IF(T43=\"\",\"\",'Otras referencias'!$B$8)","v":""},null,null,null,null,null,null,null,null,null,null,null,"",null,null,null,null,null,null,""]
[null,{"$f":"IF(C44=\"\",\"\",IF(COUNTIF($C$4:C44, C44)>1, \"\", C44))","v":""},{"$f":"IF(G44=\"\",\"\",IF(F44=\"\",\"\",CONCATENATE(DIGITADOR!$M$1,G44,E44)))","v":""},"",{"$f":"IF(F44=\"\",\"\",VLOOKUP(F44,referentes!$N$2:$Q$161,3,FALSE))","v":""},null,null,null,null,null,null,null,null,null,null,{"$f":"IF(Q44=\"\",\"\",INDEX(referentes!$D$2:$E$65,MATCH(Q44,referentes!$E$2:$E$65,0),1))","v":""},null,null,{"$f":"IF(R44=\"\",\"\",'Otras referencias'!$B$7)","v":""},null,{"$f":"IF(T44=\"\",\"\",'Otras referencias'!$B$8)","v":""},null,null,null,null,null,null,null,null,null,null,null,"",null,null,null,null,null,null,""]
[null,{"$f":"IF(C45=\"\",\"\",IF(COUNTIF($C$4:C45, C45)>1, \"\", C45))","v":""},{"$f":"IF(G45=\"\",\"\",IF(F45=\"\",\"\",CONCATENATE(DIGITADOR!$M$1,G45,E45)))","v":""},"",{"$f":"IF(F45=\"\",\"\",VLOOKUP(F45,referentes!$N$2:$Q$161,3,FALSE))","v":""},null,null,null,null,null,null,null,null,null,null,{"$f":"IF(Q45=\"\",\"\",INDEX(referentes!$D$2:$E$65,MATCH(Q45,referentes!$E$2:$E$65,0),1))","v":""},null,null,{"$f":"IF(R45=\"\",\"\",'Otras referencias'!$B$7)","v":""},null,{"$f":"IF(T45=\"\",\"\",'Otras referencias'!$B$8)","v":""},null,null,null,null,null,null,null,null,null,null,null,"",null,null,null,null,null,null,""]
[null,{"$f":"IF(C46=\"\",\"\",IF(COUNTIF($C$4:C46, C46)>1, \"\", C46))","v":""},{"$f":"IF(G46=\"\",\"\",IF(F46=\"\",\"\",CONCATENATE(DIGITADOR!$M$1,G46,E46)))","v":""},"",{"$f":"IF(F46=\"\",\"\",VLOOKUP(F46,referentes!$N$2:$Q$161,3,FALSE))","v":""},null,null,null,null,null,null,null,null,null,null,{"$f":"IF(Q46=\"\",\"\",INDEX(referentes!$D$2:$E$65,MATCH(Q46,referentes!$E$2:$E$65,0),1))","v":""},null,null,{"$f":"IF(R46=\"\",\"\",'Otras referencias'!$B$7)","v":""},null,{"$f":"IF(T46=\"\",\"\",'Otras referencias'!$B$8)","v":""},null,null,null,null,null,null,null,null,null,null,null,"",null,null,null,null,null,null,""]
[null,{"$f":"IF(C47=\"\",\"\",IF(COUNTIF($C$4:C47, C47)>1, \"\", C47))","v":""},{"$f":"IF(G47=\"\",\"\",IF(F47=\"\",\"\",CONCATENATE(DIGITADOR!$M$1,G47,E47)))","v":""},"",{"$f":"IF(F47=\"\",\"\",VLOOKUP(F47,referentes!$N$2:$Q$161,3,FALSE))","v":""},null,null,null,null,null,null,null,null,null,null,{"$f":"IF(Q47=\"\",\"\",INDEX(referentes!$D$2:$E$65,MATCH(Q47,referentes!$E$2:$E$65,0),1))","v":""},null,null,{"$f":"IF(R47=\"\",\"\",'Otras referencias'!$B$7)","v":""},null,{"$f":"IF(T47=\"\",\"\",'Otras referencias'!$B$8)","v":""},null,null,null,null,null,null,null,null,null,null,null,"",null,null,null,null,null,null,""]
[null,{"$f":"IF(C48=\"\",\"\",IF(COUNTIF($C$4:C48, C48)>1, \"\", C48))","v":""},{"$f":"IF(G48=\"\",\"\",IF(F48=\"\",\"\",CONCATENATE(DIGITADOR!$M$1,G48,E48)))","v":""},"",{"$f":"IF(F48=\"\",\"\",VLOOKUP(F48,referentes!$N$2:$Q$161,3,FALSE))","v":""},null,null,null,null,null,null,null,null,null,null,{"$f":"IF(Q48=\"\",\"\",INDEX(referentes!$D$2:$E$65,MATCH(Q48,referentes!$E$2:$E$65,0),1))","v":""},null,null,{"$f":"IF(R48=\"\",\"\",'Otras referencias'!$B$7)","v":""},null,{"$f":"IF(T48=\"\",\"\",'Otras referencias'!$B$8)","v":""},null,null,null,null,null,null,null,null,null,null,null,"",null,null,null,null,null,null,""]
[null,{"$f":"IF(C49=\"\",\"\",IF(COUNTIF($C$4:C49, C49)>1, \"\", C49))","v":""},{"$f":"IF(G49=\"\",\"\",IF(F49=\"\",\"\",CONCATENATE(DIGITADOR!$M$1,G49,E49)))","v":""},"",{"$f":"IF(F49=\"\",\"\",VLOOKUP(F49,referentes!$N$2:$Q$161,3,FALSE))","v":""},null,null,null,null,null,null,null,null,null,null,{"$f":"IF(Q49=\"\",\"\",INDEX(referentes!$D$2:$E$65,MATCH(Q49,referentes!$E$2:$E$65,0),1))","v":""},null,null,{"$f":"IF(R49=\"\",\"\",'Otras referencias'!$B$7)","v":""},null,{"$f":"IF(T49=\"\",\"\",'Otras referencias'!$B$8)","v":""},null,null,null,null,null,null,null,null,null,null,null,"",null,null,null,null,null,null,""]
[null,{"$f":"IF(C50=\"\",\"\",IF(COUNTIF($C$4:C50, C50)>1, \"\", C50))","v":""},{"$f":"IF(G50=\"\",\"\",IF(F50=\"\",\"\",CONCATENATE(DIGITADOR!$M$1,G50,E50)))","v":""},"",{"$f":"IF(F50=\"\",\"\",VLOOKUP(F50,referentes!$N$2:$Q$161,3,FALSE))","v":""},null,null,null,null,null,null,null,null,null,null,{"$f":"IF(Q50=\"\",\"\",INDEX(referentes!$D$2:$E$65,MATCH(Q50,referentes!$E$2:$E$65,0),1))","v":""},null,null,{"$f":"IF(R50=\"\",\"\",'Otras referencias'!$B$7)","v":""},null,{"$f":"IF(T50=\"\",\"\",'Otras referencias'!$B$8)","v":""},null,null,null,null,null,null,null,null,null,null,null,"",null,null,null,null,null,null,""]
[null,{"$f":"IF(C51=\"\",\"\",IF(COUNTIF($C$4:C51, C51)>1, \"\", C51))","v":""},{"$f":"IF(G51=\"\",\"\",IF(F51=\"\",\"\",CONCATENATE(DIGITADOR!$M$1,G51,E51)))","v":""},"",{"$f":"IF(F51=\"\",\"\",VLOOKUP(F51,referentes!$N$2:$Q$161,3,FALSE))","v":""},null,null,null,null,null,null,null,null,null,null,{"$f":"IF(Q51=\"\",\"\",INDEX(referentes!$D$2:$E$65,MATCH(Q51,referentes!$E$2:$E$65,0),1))","v":""},null,null,{"$f":"IF(R51=\"\",\"\",'Otras referencias'!$B$7)","v":""},null,{"$f":"IF(T51=\"\",\"\",'Otras referencias'!$B$8)","v":""},null,null,null,null,null,null,null,null,null,null,null,"",null,null,null,null,null,null,""]
[null,{"$f":"IF(C52=\"\",\"\",IF(COUNTIF($C$4:C52, C52)>1, \"\", C52))","v":""},{"$f":"IF(G52=\"\",\"\",IF(F52=\"\",\"\",CONCATENATE(DIGITADOR!$M$1,G52,E52)))","v":""},"",{"$f":"IF(F52=\"\",\"\",VLOOKUP(F52,referentes!$N$2:$Q$161,3,FALSE))","v":""},null,null,null,null,null,null,null,null,null,null,{"$f":"IF(Q52=\"\",\"\",INDEX(referentes!$D$2:$E$65,MATCH(Q52,referentes!$E$2:$E$65,0),1))","v":""},null,null,{"$f":"IF(R52=\"\",\"\",'Otras referencias'!$B$7)","v":""},null,{"$f":"IF(T52=\"\",\"\",'Otras referencias'!$B$8)","v":""},null,null,null,null,null,null,null,null,null,null,null,"",null,null,null,null,null,null,""]
[null,{"$f":"IF(C53=\"\",\"\",IF(COUNTIF($C$4:C53, C53)>1, \"\", C53))","v":""},{"$f":"IF(G53=\"\",\"\",IF(F53=\"\",\"\",CONCATENATE(DIGITADOR!$M$1,G53,E53)))","v":""},"",{"$f":"IF(F53=\"\",\"\",VLOOKUP(F53,referentes!$N$2:$Q$161,3,FALSE))","v":""},null,null,null,null,null,null,null,null,null,null,{"$f":"IF(Q53=\"\",\"\",INDEX(referentes!$D$2:$E$65,MATCH(Q53,referentes!$E$2:$E$65,0),1))","v":""},null,null,{"$f":"IF(R53=\"\",\"\",'Otras referencias'!$B$7)","v":""},null,{"$f":"IF(T53=\"\",\"\",'Otras referencias'!$B$8)","v":""},null,null,null,null,null,null,null,null,null,null,null,"",null,null,null,null,null,null,""]
[null,{"$f":"IF(C54=\"\",\"\",IF(COUNTIF($C$4:C54, C54)>1, \"\", C54))","v":""},{"$f":"IF(G54=\"\",\"\",IF(F54=\"\",\"\",CONCATENATE(DIGITADOR!$M$1,G54,E54)))","v":""},"",{"$f":"IF(F54=\"\",\"\",VLOOKUP(F54,referentes!$N$2:$Q$161,3,FALSE))","v":""},null,null,null,null,null,null,null,null,null,null,{"$f":"IF(Q54=\"\",\"\",INDEX(referentes!$D$2:$E$65,MATCH(Q54,referentes!$E$2:$E$65,0),1))","v":""},null,null,{"$f":"IF(R54=\"\",\"\",'Otras referencias'!$B$7)","v":""},null,{"$f":"IF(T54=\"\",\"\",'Otras referencias'!$B$8)","v":""},null,null,null,null,null,null,null,null,null,null,null,"",null,null,null,null,null,null,""]
[null,{"$f":"IF(C55=\"\",\"\",IF(COUNTIF($C$4:C55, C55)>1, \"\", C55))","v":""},{"$f":"IF(G55=\"\",\"\",IF(F55=\"\",\"\",CONCATENATE(DIGITADOR!$M$1,G55,E55)))","v":""},"",{"$f":"IF(F55=\"\",\"\",VLOOKUP(F55,referentes!$N$2:$Q$161,3,FALSE))","v":""},null,null,null,null,null,null,null,null,null,null,{"$f":"IF(Q55=\"\",\"\",INDEX(referentes!$D$2:$E$65,MATCH(Q55,referentes!$E$2:$E$65,0),1))","v":""},null,null,{"$f":"IF(R55=\"\",\"\",'Otras referencias'!$B$7)","v":""},null,{"$f":"IF(T55=\"\",\"\",'Otras referencias'!$B$8)","v":""},null,null,null,null,null,null,null,null,null,null,null,"",null,null,null,null,null,null,""]
[null,{"$f":"IF(C56=\"\",\"\",IF(COUNTIF($C$4:C56, C56)>1, \"\", C56))","v":""},{"$f":"IF(G56=\"\",\"\",IF(F56=\"\",\"\",CONCATENATE(DIGITADOR!$M$1,G56,E56)))","v":""},"",{"$f":"IF(F56=\"\",\"\",VLOOKUP(F56,referentes!$N$2:$Q$161,3,FALSE))","v":""},null,null,null,null,null,null,null,null,null,null,{"$f":"IF(Q56=\"\",\"\",INDEX(referentes!$D$2:$E$65,MATCH(Q56,referentes!$E$2:$E$65,0),1))","v":""},null,null,{"$f":"IF(R56=\"\",\"\",'Otras referencias'!$B$7)","v":""},null,{"$f":"IF(T56=\"\",\"\",'Otras referencias'!$B$8)","v":""},null,null,null,null,null,null,null,null,null,null,null,"",null,null,null,null,null,null,""]
[null,{"$f":"IF(C57=\"\",\"\",IF(COUNTIF($C$4:C57, C57)>1, \"\", C57))","v":""},{"$f":"IF(G57=\"\",\"\",IF(F57=\"\",\"\",CONCATENATE(DIGITADOR!$M$1,G57,E57)))","v":""},"",{"$f":"IF(F57=\"\",\"\",VLOOKUP(F57,referentes!$N$2:$Q$161,3,FALSE))","v":""},null,null,null,null,null,null,null,null,null,null,{"$f":"IF(Q57=\"\",\"\",INDEX(referentes!$D$2:$E$65,MATCH(Q57,referentes!$E$2:$E$65,0),1))","v":""},null,null,{"$f":"IF(R57=\"\",\"\",'Otras referencias'!$B$7)","v":""},null,{"$f":"IF(T57=\"\",\"\",'Otras referencias'!$B$8)","v":""},null,null,null,null,null,null,null,null,null,null,null,"",null,null,null,null,null,null,""]
[null,{"$f":"IF(C58=\"\",\"\",IF(COUNTIF($C$4:C58, C58)>1, \"\", C58))","v":""},{"$f":"IF(G58=\"\",\"\",IF(F58=\"\",\"\",CONCATENATE(DIGITADOR!$M$1,G58,E58)))","v":""},"",{"$f":"IF(F58=\"\",\"\",VLOOKUP(F58,referentes!$N$2:$Q$161,3,FALSE))","v":""},null,null,{"$f":"IF(I58=\"\",\"\",TEXT(I58,\"hh:mm\"))","v":""},null,null,null,null,null,null,null,{"$f":"IF(Q58=\"\",\"\",INDEX(referentes!$D$2:$E$65,MATCH(Q58,referentes!$E$2:$E$65,0),1))","v":""},null,null,{"$f":"IF(R58=\"\",\"\",'Otras referencias'!$B$7)","v":""},null,{"$f":"IF(T58=\"\",\"\",'Otras referencias'!$B$8)","v":""},null,null,null,null,null,null,null,null,null,null,null,"",null,null,null,null,null,null,""]
[null,{"$f":"IF(C59=\"\",\"\",IF(COUNTIF($C$4:C59, C59)>1, \"\", C59))","v":""},{"$f":"IF(G59=\"\",\"\",IF(F59=\"\",\"\",CONCATENATE(DIGITADOR!$M$1,G59,E59)))","v":""},"",{"$f":"IF(F59=\"\",\"\",VLOOKUP(F59,referentes!$N$2:$Q$161,3,FALSE))","v":""},null,null,"",null,null,null,null,null,null,null,{"$f":"IF(Q59=\"\",\"\",INDEX(referentes!$D$2:$E$65,MATCH(Q59,referentes!$E$2:$E$65,0),1))","v":""},null,null,{"$f":"IF(R59=\"\",\"\",'Otras referencias'!$B$7)","v":""},null,{"$f":"IF(T59=\"\",\"\",'Otras referencias'!$B$8)","v":""},null,null,null,null,null,null,null,null,null,null,null,"",null,null,null,null,null,null,""]
[null,{"$f":"IF(C60=\"\",\"\",IF(COUNTIF($C$4:C60, C60)>1, \"\", C60))","v":""},{"$f":"IF(G60=\"\",\"\",IF(F60=\"\",\"\",CONCATENATE(DIGITADOR!$M$1,G60,E60)))","v":""},"",{"$f":"IF(F60=\"\",\"\",VLOOKUP(F60,referentes!$N$2:$Q$161,3,FALSE))","v":""},null,null,"",null,null,null,null,null,null,null,{"$f":"IF(Q60=\"\",\"\",INDEX(referentes!$D$2:$E$65,MATCH(Q60,referentes!$E$2:$E$65,0),1))","v":""},null,null,{"$f":"IF(R60=\"\",\"\",'Otras referencias'!$B$7)","v":""},null,{"$f":"IF(T60=\"\",\"\",'Otras referencias'!$B$8)","v":""},null,null,null,null,null,null,null,null,null,null,null,"",null,null,null,null,null,null,""]
[null,{"$f":"IF(C61=\"\",\"\",IF(COUNTIF($C$4:C61, C61)>1, \"\", C61))","v":""},{"$f":"IF(G61=\"\",\"\",IF(F61=\"\",\"\",CONCATENATE(DIGITADOR!$M$1,G61,E61)))","v":""},"",{"$f":"IF(F61=\"\",\"\",VLOOKUP(F61,referentes!$N$2:$Q$161,3,FALSE))","v":""},null,null,"",null,null,null,null,null,null,null,{"$f":"IF(Q61=\"\",\"\",INDEX(referentes!$D$2:$E$65,MATCH(Q61,referentes!$E$2:$E$65,0),1))","v":""},null,null,{"$f":"IF(R61=\"\",\"\",'Otras referencias'!$B$7)","v":""},null,{"$f":"IF(T61=\"\",\"\",'Otras referencias'!$B$8)","v":""},null,null,null,null,null,null,null,null,null,null,null,"",null,null,null,null,null,null,""]
[null,{"$f":"IF(C62=\"\",\"\",IF(COUNTIF($C$4:C62, C62)>1, \"\", C62))","v":""},{"$f":"IF(G62=\"\",\"\",IF(F62=\"\",\"\",CONCATENATE(DIGITADOR!$M$1,G62,E62)))","v":""},"",{"$f":"IF(F62=\"\",\"\",VLOOKUP(F62,referentes!$N$2:$Q$161,3,FALSE))","v":""},null,null,"",null,null,null,null,null,null,null,{"$f":"IF(Q62=\"\",\"\",INDEX(referentes!$D$2:$E$65,MATCH(Q62,referentes!$E$2:$E$65,0),1))","v":""},null,null,{"$f":"IF(R62=\"\",\"\",'Otras referencias'!$B$7)","v":""},null,{"$f":"IF(T62=\"\",\"\",'Otras referencias'!$B$8)","v":""},null,null,null,null,null,null,null,null,null,null,null,"",null,null,null,null,null,null,""]
[null,{"$f":"IF(C63=\"\",\"\",IF(COUNTIF($C$4:C63, C63)>1, \"\", C63))","v":""},{"$f":"IF(G63=\"\",\"\",IF(F63=\"\",\"\",CONCATENATE(DIGITADOR!$M$1,G63,E63)))","v":""},"",{"$f":"IF(F63=\"\",\"\",VLOOKUP(F63,referentes!$N$2:$Q$161,3,FALSE))","v":""},null,null,"",null,null,null,null,null,null,null,{"$f":"IF(Q63=\"\",\"\",INDEX(referentes!$D$2:$E$65,MATCH(Q63,referentes!$E$2:$E$65,0),1))","v":""},null,null,{"$f":"IF(R63=\"\",\"\",'Otras referencias'!$B$7)","v":""},null,{"$f":"IF(T63=\"\",\"\",'Otras referencias'!$B$8)","v":""},null,null,null,null,null,null,null,null,null,null,null,"",null,null,null,null,null,null,""]
[null,{"$f":"IF(C64=\"\",\"\",IF(COUNTIF($C$4:C64, C64)>1, \"\", C64))","v":""},{"$f":"IF(G64=\"\",\"\",IF(F64=\"\",\"\",CONCATENATE(DIGITADOR!$M$1,G64,E64)))","v":""},"",{"$f":"IF(F64=\"\",\"\",VLOOKUP(F64,referentes!$N$2:$Q$161,3,FALSE))","v":""},null,null,"",null,null,null,null,null,null,null,{"$f":"IF(Q64=\"\",\"\",INDEX(referentes!$D$2:$E$65,MATCH(Q64,referentes!$E$2:$E$65,0),1))","v":""},null,null,{"$f":"IF(R64=\"\",\"\",'Otras referencias'!$B$7)","v":""},null,{"$f":"IF(T64=\"\",\"\",'Otras referencias'!$B$8)","v":""},null,null,null,null,null,null,null,null,null,null,null,"",null,null,null,null,null,null,""]
[null,{"$f":"IF(C65=\"\",\"\",IF(COUNTIF($C$4:C65, C65)>1, \"\", C65))","v":""},{"$f":"IF(G65=\"\",\"\",IF(F65=\"\",\"\",CONCATENATE(DIGITADOR!$M$1,G65,E65)))","v":""},"",{"$f":"IF(F65=\"\",\"\",VLOOKUP(F65,referentes!$N$2:$Q$161,3,FALSE))","v":""},null,null,"",null,null,null,null,null,null,null,{"$f":"IF(Q65=\"\",\"\",INDEX(referentes!$D$2:$E$65,MATCH(Q65,referentes!$E$2:$E$65,0),1))","v":""},null,null,{"$f":"IF(R65=\"\",\"\",'Otras referencias'!$B$7)","v":""},null,{"$f":"IF(T65=\"\",\"\",'Otras referencias'!$B$8)","v":""},null,null,null,null,null,null,null,null,null,null,null,"",null,null,null,null,null,null,""]
[null,{"$f":"IF(C66=\"\",\"\",IF(COUNTIF($C$4:C66, C66)>1, \"\", C66))","v":""},{"$f":"IF(G66=\"\",\"\",IF(F66=\"\",\"\",CONCATENATE(DIGITADOR!$M$1,G66,E66)))","v":""},"",{"$f":"IF(F66=\"\",\"\",VLOOKUP(F66,referentes!$N$2:$Q$161,3,FALSE))","v":""},null,null,"",null,null,null,null,null,null,null,{"$f":"IF(Q66=\"\",\"\",INDEX(referentes!$D$2:$E$65,MATCH(Q66,referentes!$E$2:$E$65,0),1))","v":""},null,null,{"$f":"IF(R66=\"\",\"\",'Otras referencias'!$B$7)","v":""},null,{"$f":"IF(T66=\"\",\"\",'Otras referencias'!$B$8)","v":""},null,null,null,null,null,null,null,null,null,null,null,"",null,null,null,null,null,null,""]
[null,{"$f":"IF(C67=\"\",\"\",IF(COUNTIF($C$4:C67, C67)>1, \"\", C67))","v":""},{"$f":"IF(G67=\"\",\"\",IF(F67=\"\",\"\",CONCATENATE(DIGITADOR!$M$1,G67,E67)))","v":""},"",{"$f":"IF(F67=\"\",\"\",VLOOKUP(F67,referentes!$N$2:$Q$161,3,FALSE))","v":""},null,null,"",null,null,null,null,null,null,null,{"$f":"IF(Q67=\"\",\"\",INDEX(referentes!$D$2:$E$65,MATCH(Q67,referentes!$E$2:$E$65,0),1))","v":""},null,null,{"$f":"IF(R67=\"\",\"\",'Otras referencias'!$B$7)","v":""},null,{"$f":"IF(T67=\"\",\"\",'Otras referencias'!$B$8)","v":""},null,null,null,null,null,null,null,null,null,null,null,"",null,null,null,null,null,null,""]
[null,{"$f":"IF(C68=\"\",\"\",IF(COUNTIF($C$4:C68, C68)>1, \"\", C68))","v":""},{"$f":"IF(G68=\"\",\"\",IF(F68=\"\",\"\",CONCATENATE(DIGITADOR!$M$1,G68,E68)))","v":""},"",{"$f":"IF(F68=\"\",\"\",VLOOKUP(F68,referentes!$N$2:$Q$161,3,FALSE))","v":""},null,null,"",null,null,null,null,null,null,null,{"$f":"IF(Q68=\"\",\"\",INDEX(referentes!$D$2:$E$65,MATCH(Q68,referentes!$E$2:$E$65,0),1))","v":""},null,null,{"$f":"IF(R68=\"\",\"\",'Otras referencias'!$B$7)","v":""},null,{"$f":"IF(T68=\"\",\"\",'Otras referencias'!$B$8)","v":""},null,null,null,null,null,null,null,null,null,null,null,"",null,null,null,null,null,null,""]
[null,{"$f":"IF(C69=\"\",\"\",IF(COUNTIF($C$4:C69, C69)>1, \"\", C69))","v":""},{"$f":"IF(G69=\"\",\"\",IF(F69=\"\",\"\",CONCATENATE(DIGITADOR!$M$1,G69,E69)))","v":""},{"$f":"IF(C69=\"\",\"\",CONCATENATE(C69,ROW()-2))","v":""},{"$f":"IF(F69=\"\",\"\",VLOOKUP(F69,referentes!$N$2:$Q$161,3,FALSE))","v":""},null,null,{"$f":"IF(I69=\"\",\"\",TEXT(I69,\"hh:mm\"))","v":""},null,null,null,null,null,null,null,{"$f":"IF(Q69=\"\",\"\",INDEX(referentes!$D$2:$E$65,MATCH(Q69,referentes!$E$2:$E$65,0),1))","v":""},null,null,{"$f":"IF(R69=\"\",\"\",'Otras referencias'!$B$7)","v":""},null,{"$f":"IF(T69=\"\",\"\",'Otras referencias'!$B$8)","v":""},null,null,null,null,null,null,null,null,null,null,null,{"$f":"CONCATENATE(\n                                IF(AA69<>\"\",CONCATENATE(Z69,\", \",\n                                                      IF(AB69<>\"\",CONCATENATE(AA69,\", \",\n                                                           IF(AC69<>\"\",CONCATENATE(AB69,\", \",\n                                                               IF(AD69<>\"\",CONCATENATE(AC69,\", \",\n                                                                   IF(AE69<>\"\",CONCATENATE(AD69,\", \",\n                                                                        IF(AF69<>\"\",CONCATENATE(AE69,\", \", AF69), AE69)\n                                                                      ), AD69)\n                                                                   ), AC69)\n                                                               ), AB69)\n                                                       ), AA69)\n                                ),Z69)\n)","v":""},null,null,null,null,null,null,{"$f":"CONCATENATE(\n                                IF(AI69<>\"\",CONCATENATE(AH69,\", \",\n                                                      IF(AJ69<>\"\",CONCATENATE(AI69,\", \",\n                                                           IF(AK69<>\"\",CONCATENATE(AJ69,\", \",\n                                                               IF(AL69<>\"\",CONCATENATE(AK69,\", \",\n                                                                       IF(AM69<>\"\",CONCATENATE(AL69,\", \", AM69), AL69)\n                                                                      ), AK69)\n                                                               ), AJ69)\n                                                       ), AI69)\n                                ),AH69)\n)","v":""}]
[null,{"$f":"IF(C70=\"\",\"\",IF(COUNTIF($C$4:C70, C70)>1, \"\", C70))","v":""},{"$f":"IF(G70=\"\",\"\",IF(F70=\"\",\"\",CONCATENATE(DIGITADOR!$M$1,G70,E70)))","v":""},"",{"$f":"IF(F70=\"\",\"\",VLOOKUP(F70,referentes!$N$2:$Q$161,3,FALSE))","v":""},null,null,"",null,null,null,null,null,null,null,{"$f":"IF(Q70=\"\",\"\",INDEX(referentes!$D$2:$E$65,MATCH(Q70,referentes!$E$2:$E$65,0),1))","v":""},null,null,{"$f":"IF(R70=\"\",\"\",'Otras referencias'!$B$7)","v":""},null,{"$f":"IF(T70=\"\",\"\",'Otras referencias'!$B$8)","v":""},null,null,null,null,null,null,null,null,null,null,null,"",null,null,null,null,null,null,""]
[null,{"$f":"IF(C71=\"\",\"\",IF(COUNTIF($C$4:C71, C71)>1, \"\", C71))","v":""},{"$f":"IF(G71=\"\",\"\",IF(F71=\"\",\"\",CONCATENATE(DIGITADOR!$M$1,G71,E71)))","v":""},"",{"$f":"IF(F71=\"\",\"\",VLOOKUP(F71,referentes!$N$2:$Q$161,3,FALSE))","v":""},null,null,"",null,null,null,null,null,null,null,{"$f":"IF(Q71=\"\",\"\",INDEX(referentes!$D$2:$E$65,MATCH(Q71,referentes!$E$2:$E$65,0),1))","v":""},null,null,{"$f":"IF(R71=\"\",\"\",'Otras referencias'!$B$7)","v":""},null,{"$f":"IF(T71=\"\",\"\",'Otras referencias'!$B$8)","v":""},null,null,null,null,null,null,null,null,null,null,null,"",null,null,null,null,null,null,""]
[null,{"$f":"IF(C72=\"\",\"\",IF(COUNTIF($C$4:C72, C72)>1, \"\", C72))","v":""},{"$f":"IF(G72=\"\",\"\",IF(F72=\"\",\"\",CONCATENATE(DIGITADOR!$M$1,G72,E72)))","v":""},"",{"$f":"IF(F72=\"\",\"\",VLOOKUP(F72,referentes!$N$2:$Q$161,3,FALSE))","v":""},null,null,"",null,null,null,null,null,null,null,{"$f":"IF(Q72=\"\",\"\",INDEX(referentes!$D$2:$E$65,MATCH(Q72,referentes!$E$2:$E$65,0),1))","v":""},null,null,{"$f":"IF(R72=\"\",\"\",'Otras referencias'!$B$7)","v":""},null,{"$f":"IF(T72=\"\",\"\",'Otras referencias'!$B$8)","v":""},null,null,null,null,null,null,null,null,null,null,null,"",null,null,null,null,null,null,""]
[null,{"$f":"IF(C73=\"\",\"\",IF(COUNTIF($C$4:C73, C73)>1, \"\", C73))","v":""},{"$f":"IF(G73=\"\",\"\",IF(F73=\"\",\"\",CONCATENATE(DIGITADOR!$M$1,G73,E73)))","v":""},"",{"$f":"IF(F73=\"\",\"\",VLOOKUP(F73,referentes!$N$2:$Q$161,3,FALSE))","v":""},null,null,"",null,null,null,null,null,null,null,{"$f":"IF(Q73=\"\",\"\",INDEX(referentes!$D$2:$E$65,MATCH(Q73,referentes!$E$2:$E$65,0),1))","v":""},null,null,{"$f":"IF(R73=\"\",\"\",'Otras referencias'!$B$7)","v":""},null,{"$f":"IF(T73=\"\",\"\",'Otras referencias'!$B$8)","v":""},null,null,null,null,null,null,null,null,null,null,null,"",null,null,null,null,null,null,""]
[null,{"$f":"IF(C74=\"\",\"\",IF(COUNTIF($C$4:C74, C74)>1, \"\", C74))","v":""},{"$f":"IF(G74=\"\",\"\",IF(F74=\"\",\"\",CONCATENATE(DIGITADOR!$M$1,G74,E74)))","v":""},"",{"$f":"IF(F74=\"\",\"\",VLOOKUP(F74,referentes!$N$2:$Q$161,3,FALSE))","v":""},null,null,"",null,null,null,null,null,null,null,{"$f":"IF(Q74=\"\",\"\",INDEX(referentes!$D$2:$E$65,MATCH(Q74,referentes!$E$2:$E$65,0),1))","v":""},null,null,{"$f":"IF(R74=\"\",\"\",'Otras referencias'!$B$7)","v":""},null,{"$f":"IF(T74=\"\",\"\",'Otras referencias'!$B$8)","v":""},null,null,null,null,null,null,null,null,null,null,null,"",null,null,null,null,null,null,""]
[null,{"$f":"IF(C75=\"\",\"\",IF(COUNTIF($C$4:C75, C75)>1, \"\", C75))","v":""},{"$f":"IF(G75=\"\",\"\",IF(F75=\"\",\"\",CONCATENATE(DIGITADOR!$M$1,G75,E75)))","v":""},"",{"$f":"IF(F75=\"\",\"\",VLOOKUP(F75,referentes!$N$2:$Q$161,3,FALSE))","v":""},null,null,"",null,null,null,null,null,null,null,{"$f":"IF(Q75=\"\",\"\",INDEX(referentes!$D$2:$E$65,MATCH(Q75,referentes!$E$2:$E$65,0),1))","v":""},null,null,{"$f":"IF(R75=\"\",\"\",'Otras referencias'!$B$7)","v":""},null,{"$f":"IF(T75=\"\",\"\",'Otras referencias'!$B$8)","v":""},null,null,null,null,null,null,null,null,null,null,null,"",null,null,null,null,null,null,""]
[null,{"$f":"IF(C76=\"\",\"\",IF(COUNTIF($C$4:C76, C76)>1, \"\", C76))","v":""},{"$f":"IF(G76=\"\",\"\",IF(F76=\"\",\"\",CONCATENATE(DIGITADOR!$M$1,G76,E76)))","v":""},"",{"$f":"IF(F76=\"\",\"\",VLOOKUP(F76,referentes!$N$2:$Q$161,3,FALSE))","v":""},null,null,"",null,null,null,null,null,null,null,{"$f":"IF(Q76=\"\",\"\",INDEX(referentes!$D$2:$E$65,MATCH(Q76,referentes!$E$2:$E$65,0),1))","v":""},null,null,{"$f":"IF(R76=\"\",\"\",'Otras referencias'!$B$7)","v":""},null,{"$f":"IF(T76=\"\",\"\",'Otras referencias'!$B$8)","v":""},null,null,null,null,null,null,null,null,null,null,null,"",null,null,null,null,null,null,""]
[null,{"$f":"IF(C77=\"\",\"\",IF(COUNTIF($C$4:C77, C77)>1, \"\", C77))","v":""},{"$f":"IF(G77=\"\",\"\",IF(F77=\"\",\"\",CONCATENATE(DIGITADOR!$M$1,G77,E77)))","v":""},"",{"$f":"IF(F77=\"\",\"\",VLOOKUP(F77,referentes!$N$2:$Q$161,3,FALSE))","v":""},null,null,"",null,null,null,null,null,null,null,{"$f":"IF(Q77=\"\",\"\",INDEX(referentes!$D$2:$E$65,MATCH(Q77,referentes!$E$2:$E$65,0),1))","v":""},null,null,{"$f":"IF(R77=\"\",\"\",'Otras referencias'!$B$7)","v":""},null,{"$f":"IF(T77=\"\",\"\",'Otras referencias'!$B$8)","v":""},null,null,null,null,null,null,null,null,null,null,null,"",null,null,null,null,null,null,""]
[null,{"$f":"IF(C78=\"\",\"\",IF(COUNTIF($C$4:C78, C78)>1, \"\", C78))","v":""},{"$f":"IF(G78=\"\",\"\",IF(F78=\"\",\"\",CONCATENATE(DIGITADOR!$M$1,G78,E78)))","v":""},"",{"$f":"IF(F78=\"\",\"\",VLOOKUP(F78,referentes!$N$2:$Q$161,3,FALSE))","v":""},null,null,"",null,null,null,null,null,null,null,{"$f":"IF(Q78=\"\",\"\",INDEX(referentes!$D$2:$E$65,MATCH(Q78,referentes!$E$2:$E$65,0),1))","v":""},null,null,{"$f":"IF(R78=\"\",\"\",'Otras referencias'!$B$7)","v":""},null,{"$f":"IF(T78=\"\",\"\",'Otras referencias'!$B$8)","v":""},null,null,null,null,null,null,null,null,null,null,null,"",null,null,null,null,null,null,""]
[null,{"$f":"IF(C79=\"\",\"\",IF(COUNTIF($C$4:C79, C79)>1, \"\", C79))","v":""},{"$f":"IF(G79=\"\",\"\",IF(F79=\"\",\"\",CONCATENATE(DIGITADOR!$M$1,G79,E79)))","v":""},"",{"$f":"IF(F79=\"\",\"\",VLOOKUP(F79,referentes!$N$2:$Q$161,3,FALSE))","v":""},null,null,"",null,null,null,null,null,null,null,{"$f":"IF(Q79=\"\",\"\",INDEX(referentes!$D$2:$E$65,MATCH(Q79,referentes!$E$2:$E$65,0),1))","v":""},null,null,{"$f":"IF(R79=\"\",\"\",'Otras referencias'!$B$7)","v":""},null,{"$f":"IF(T79=\"\",\"\",'Otras referencias'!$B$8)","v":""},null,null,null,null,null,null,null,null,null,null,null,"",null,null,null,null,null,null,""]
[null,{"$f":"IF(C80=\"\",\"\",IF(COUNTIF($C$4:C80, C80)>1, \"\", C80))","v":""},{"$f":"IF(G80=\"\",\"\",IF(F80=\"\",\"\",CONCATENATE(DIGITADOR!$M$1,G80,E80)))","v":""},"",{"$f":"IF(F80=\"\",\"\",VLOOKUP(F80,referentes!$N$2:$Q$161,3,FALSE))","v":""},null,null,"",null,null,null,null,null,null,null,{"$f":"IF(Q80=\"\",\"\",INDEX(referentes!$D$2:$E$65,MATCH(Q80,referentes!$E$2:$E$65,0),1))","v":""},null,null,{"$f":"IF(R80=\"\",\"\",'Otras referencias'!$B$7)","v":""},null,{"$f":"IF(T80=\"\",\"\",'Otras referencias'!$B$8)","v":""},null,null,null,null,null,null,null,null,null,null,null,"",null,null,null,null,null,null,""]
[null,{"$f":"IF(C81=\"\",\"\",IF(COUNTIF($C$4:C81, C81)>1, \"\", C81))","v":""},{"$f":"IF(G81=\"\",\"\",IF(F81=\"\",\"\",CONCATENATE(DIGITADOR!$M$1,G81,E81)))","v":""},"",{"$f":"IF(F81=\"\",\"\",VLOOKUP(F81,referentes!$N$2:$Q$161,3,FALSE))","v":""},null,null,"",null,null,null,null,null,null,null,{"$f":"IF(Q81=\"\",\"\",INDEX(referentes!$D$2:$E$65,MATCH(Q81,referentes!$E$2:$E$65,0),1))","v":""},null,null,{"$f":"IF(R81=\"\",\"\",'Otras referencias'!$B$7)","v":""},null,{"$f":"IF(T81=\"\",\"\",'Otras referencias'!$B$8)","v":""},null,null,null,null,null,null,null,null,null,null,null,"",null,null,null,null,null,null,""]
[null,{"$f":"IF(C82=\"\",\"\",IF(COUNTIF($C$4:C82, C82)>1, \"\", C82))","v":""},{"$f":"IF(G82=\"\",\"\",IF(F82=\"\",\"\",CONCATENATE(DIGITADOR!$M$1,G82,E82)))","v":""},"",{"$f":"IF(F82=\"\",\"\",VLOOKUP(F82,referentes!$N$2:$Q$161,3,FALSE))","v":""},null,null,"",null,null,null,null,null,null,null,{"$f":"IF(Q82=\"\",\"\",INDEX(referentes!$D$2:$E$65,MATCH(Q82,referentes!$E$2:$E$65,0),1))","v":""},null,null,{"$f":"IF(R82=\"\",\"\",'Otras referencias'!$B$7)","v":""},null,{"$f":"IF(T82=\"\",\"\",'Otras referencias'!$B$8)","v":""},null,null,null,null,null,null,null,null,null,null,null,"",null,null,null,null,null,null,""]
[null,{"$f":"IF(C83=\"\",\"\",IF(COUNTIF($C$4:C83, C83)>1, \"\", C83))","v":""},{"$f":"IF(G83=\"\",\"\",IF(F83=\"\",\"\",CONCATENATE(DIGITADOR!$M$1,G83,E83)))","v":""},"",{"$f":"IF(F83=\"\",\"\",VLOOKUP(F83,referentes!$N$2:$Q$161,3,FALSE))","v":""},null,null,"",null,null,null,null,null,null,null,{"$f":"IF(Q83=\"\",\"\",INDEX(referentes!$D$2:$E$65,MATCH(Q83,referentes!$E$2:$E$65,0),1))","v":""},null,null,{"$f":"IF(R83=\"\",\"\",'Otras referencias'!$B$7)","v":""},null,{"$f":"IF(T83=\"\",\"\",'Otras referencias'!$B$8)","v":""},null,null,null,null,null,null,null,null,null,null,null,"",null,null,null,null,null,null,""]
[null,{"$f":"IF(C84=\"\",\"\",IF(COUNTIF($C$4:C84, C84)>1, \"\", C84))","v":""},{"$f":"IF(G84=\"\",\"\",IF(F84=\"\",\"\",CONCATENATE(DIGITADOR!$M$1,G84,E84)))","v":""},"",{"$f":"IF(F84=\"\",\"\",VLOOKUP(F84,referentes!$N$2:$Q$161,3,FALSE))","v":""},null,null,"",null,null,null,null,null,null,null,{"$f":"IF(Q84=\"\",\"\",INDEX(referentes!$D$2:$E$65,MATCH(Q84,referentes!$E$2:$E$65,0),1))","v":""},null,null,{"$f":"IF(R84=\"\",\"\",'Otras referencias'!$B$7)","v":""},null,{"$f":"IF(T84=\"\",\"\",'Otras referencias'!$B$8)","v":""},null,null,null,null,null,null,null,null,null,null,null,"",null,null,null,null,null,null,""]
[null,{"$f":"IF(C85=\"\",\"\",IF(COUNTIF($C$4:C85, C85)>1, \"\", C85))","v":""},{"$f":"IF(G85=\"\",\"\",IF(F85=\"\",\"\",CONCATENATE(DIGITADOR!$M$1,G85,E85)))","v":""},"",{"$f":"IF(F85=\"\",\"\",VLOOKUP(F85,referentes!$N$2:$Q$161,3,FALSE))","v":""},null,null,"",null,null,null,null,null,null,null,{"$f":"IF(Q85=\"\",\"\",INDEX(referentes!$D$2:$E$65,MATCH(Q85,referentes!$E$2:$E$65,0),1))","v":""},null,null,{"$f":"IF(R85=\"\",\"\",'Otras referencias'!$B$7)","v":""},null,{"$f":"IF(T85=\"\",\"\",'Otras referencias'!$B$8)","v":""},null,null,null,null,null,null,null,null,null,null,null,"",null,null,null,null,null,null,""]
[null,{"$f":"IF(C86=\"\",\"\",IF(COUNTIF($C$4:C86, C86)>1, \"\", C86))","v":""},{"$f":"IF(G86=\"\",\"\",IF(F86=\"\",\"\",CONCATENATE(DIGITADOR!$M$1,G86,E86)))","v":""},"",{"$f":"IF(F86=\"\",\"\",VLOOKUP(F86,referentes!$N$2:$Q$161,3,FALSE))","v":""},null,null,"",null,null,null,null,null,null,null,{"$f":"IF(Q86=\"\",\"\",INDEX(referentes!$D$2:$E$65,MATCH(Q86,referentes!$E$2:$E$65,0),1))","v":""},null,null,{"$f":"IF(R86=\"\",\"\",'Otras referencias'!$B$7)","v":""},null,{"$f":"IF(T86=\"\",\"\",'Otras referencias'!$B$8)","v":""},null,null,null,null,null,null,null,null,null,null,null,"",null,null,null,null,null,null,""]
[null,{"$f":"IF(C87=\"\",\"\",IF(COUNTIF($C$4:C87, C87)>1, \"\", C87))","v":""},{"$f":"IF(G87=\"\",\"\",IF(F87=\"\",\"\",CONCATENATE(DIGITADOR!$M$1,G87,E87)))","v":""},"",{"$f":"IF(F87=\"\",\"\",VLOOKUP(F87,referentes!$N$2:$Q$161,3,FALSE))","v":""},null,null,"",null,null,null,null,null,null,null,{"$f":"IF(Q87=\"\",\"\",INDEX(referentes!$D$2:$E$65,MATCH(Q87,referentes!$E$2:$E$65,0),1))","v":""},null,null,{"$f":"IF(R87=\"\",\"\",'Otras referencias'!$B$7)","v":""},null,{"$f":"IF(T87=\"\",\"\",'Otras referencias'!$B$8)","v":""},null,null,null,null,null,null,null,null,null,null,null,"",null,null,null,null,null,null,""]
[null,{"$f":"IF(C88=\"\",\"\",IF(COUNTIF($C$4:C88, C88)>1, \"\", C88))","v":""},{"$f":"IF(G88=\"\",\"\",IF(F88=\"\",\"\",CONCATENATE(DIGITADOR!$M$1,G88,E88)))","v":""},"",{"$f":"IF(F88=\"\",\"\",VLOOKUP(F88,referentes!$N$2:$Q$161,3,FALSE))","v":""},null,null,"",null,null,null,null,null,null,null,{"$f":"IF(Q88=\"\",\"\",INDEX(referentes!$D$2:$E$65,MATCH(Q88,referentes!$E$2:$E$65,0),1))","v":""},null,null,{"$f":"IF(R88=\"\",\"\",'Otras referencias'!$B$7)","v":""},null,{"$f":"IF(T88=\"\",\"\",'Otras referencias'!$B$8)","v":""},null,null,null,null,null,null,null,null,null,null,null,"",null,null,null,null,null,null,""]
[null,{"$f":"IF(C89=\"\",\"\",IF(COUNTIF($C$4:C89, C89)>1, \"\", C89))","v":""},{"$f":"IF(G89=\"\",\"\",IF(F89=\"\",\"\",CONCATENATE(DIGITADOR!$M$1,G89,E89)))","v":""},"",{"$f":"IF(F89=\"\",\"\",VLOOKUP(F89,referentes!$N$2:$Q$161,3,FALSE))","v":""},null,null,"",null,null,null,null,null,null,null,{"$f":"IF(Q89=\"\",\"\",INDEX(referentes!$D$2:$E$65,MATCH(Q89,referentes!$E$2:$E$65,0),1))","v":""},null,null,{"$f":"IF(R89=\"\",\"\",'Otras referencias'!$B$7)","v":""},null,{"$f":"IF(T89=\"\",\"\",'Otras referencias'!$B$8)","v":""},null,null,null,null,null,null,null,null,null,null,null,"",null,null,null,null,null,null,""]
[null,{"$f":"IF(C90=\"\",\"\",IF(COUNTIF($C$4:C90, C90)>1, \"\", C90))","v":""},{"$f":"IF(G90=\"\",\"\",IF(F90=\"\",\"\",CONCATENATE(DIGITADOR!$M$1,G90,E90)))","v":""},"",{"$f":"IF(F90=\"\",\"\",VLOOKUP(F90,referentes!$N$2:$Q$161,3,FALSE))","v":""},null,null,"",null,null,null,null,null,null,null,{"$f":"IF(Q90=\"\",\"\",INDEX(referentes!$D$2:$E$65,MATCH(Q90,referentes!$E$2:$E$65,0),1))","v":""},null,null,{"$f":"IF(R90=\"\",\"\",'Otras referencias'!$B$7)","v":""},null,{"$f":"IF(T90=\"\",\"\",'Otras referencias'!$B$8)","v":""},null,null,null,null,null,null,null,null,null,null,null,"",null,null,null,null,null,null,""]
[null,{"$f":"IF(C91=\"\",\"\",IF(COUNTIF($C$4:C91, C91)>1, \"\", C91))","v":""},{"$f":"IF(G91=\"\",\"\",IF(F91=\"\",\"\",CONCATENATE(DIGITADOR!$M$1,G91,E91)))","v":""},"",{"$f":"IF(F91=\"\",\"\",VLOOKUP(F91,referentes!$N$2:$Q$161,3,FALSE))","v":""},null,null,"",null,null,null,null,null,null,null,{"$f":"IF(Q91=\"\",\"\",INDEX(referentes!$D$2:$E$65,MATCH(Q91,referentes!$E$2:$E$65,0),1))","v":""},null,null,{"$f":"IF(R91=\"\",\"\",'Otras referencias'!$B$7)","v":""},null,{"$f":"IF(T91=\"\",\"\",'Otras referencias'!$B$8)","v":""},null,null,null,null,null,null,null,null,null,null,null,"",null,null,null,null,null,null,""]
[null,{"$f":"IF(C92=\"\",\"\",IF(COUNTIF($C$4:C92, C92)>1, \"\", C92))","v":""},{"$f":"IF(G92=\"\",\"\",IF(F92=\"\",\"\",CONCATENATE(DIGITADOR!$M$1,G92,E92)))","v":""},"",{"$f":"IF(F92=\"\",\"\",VLOOKUP(F92,referentes!$N$2:$Q$161,3,FALSE))","v":""},null,null,"",null,null,null,null,null,null,null,{"$f":"IF(Q92=\"\",\"\",INDEX(referentes!$D$2:$E$65,MATCH(Q92,referentes!$E$2:$E$65,0),1))","v":""},null,null,{"$f":"IF(R92=\"\",\"\",'Otras referencias'!$B$7)","v":""},null,{"$f":"IF(T92=\"\",\"\",'Otras referencias'!$B$8)","v":""},null,null,null,null,null,null,null,null,null,null,null,"",null,null,null,null,null,null,""]
[null,{"$f":"IF(C93=\"\",\"\",IF(COUNTIF($C$4:C93, C93)>1, \"\", C93))","v":""},{"$f":"IF(G93=\"\",\"\",IF(F93=\"\",\"\",CONCATENATE(DIGITADOR!$M$1,G93,E93)))","v":""},"",{"$f":"IF(F93=\"\",\"\",VLOOKUP(F93,referentes!$N$2:$Q$161,3,FALSE))","v":""},null,null,"",null,null,null,null,null,null,null,{"$f":"IF(Q93=\"\",\"\",INDEX(referentes!$D$2:$E$65,MATCH(Q93,referentes!$E$2:$E$65,0),1))","v":""},null,null,{"$f":"IF(R93=\"\",\"\",'Otras referencias'!$B$7)","v":""},null,{"$f":"IF(T93=\"\",\"\",'Otras referencias'!$B$8)","v":""},null,null,null,null,null,null,null,null,null,null,null,"",null,null,null,null,null,null,""]
[null,{"$f":"IF(C94=\"\",\"\",IF(COUNTIF($C$4:C94, C94)>1, \"\", C94))","v":""},{"$f":"IF(G94=\"\",\"\",IF(F94=\"\",\"\",CONCATENATE(DIGITADOR!$M$1,G94,E94)))","v":""},"",{"$f":"IF(F94=\"\",\"\",VLOOKUP(F94,referentes!$N$2:$Q$161,3,FALSE))","v":""},null,null,"",null,null,null,null,null,null,null,{"$f":"IF(Q94=\"\",\"\",INDEX(referentes!$D$2:$E$65,MATCH(Q94,referentes!$E$2:$E$65,0),1))","v":""},null,null,{"$f":"IF(R94=\"\",\"\",'Otras referencias'!$B$7)","v":""},null,{"$f":"IF(T94=\"\",\"\",'Otras referencias'!$B$8)","v":""},null,null,null,null,null,null,null,null,null,null,null,"",null,null,null,null,null,null,""]
[null,{"$f":"IF(C95=\"\",\"\",IF(COUNTIF($C$4:C95, C95)>1, \"\", C95))","v":""},{"$f":"IF(G95=\"\",\"\",IF(F95=\"\",\"\",CONCATENATE(DIGITADOR!$M$1,G95,E95)))","v":""},"",{"$f":"IF(F95=\"\",\"\",VLOOKUP(F95,referentes!$N$2:$Q$161,3,FALSE))","v":""},null,null,"",null,null,null,null,null,null,null,{"$f":"IF(Q95=\"\",\"\",INDEX(referentes!$D$2:$E$65,MATCH(Q95,referentes!$E$2:$E$65,0),1))","v":""},null,null,{"$f":"IF(R95=\"\",\"\",'Otras referencias'!$B$7)","v":""},null,{"$f":"IF(T95=\"\",\"\",'Otras referencias'!$B$8)","v":""},null,null,null,null,null,null,null,null,null,null,null,"",null,null,null,null,null,null,""]
[null,{"$f":"IF(C96=\"\",\"\",IF(COUNTIF($C$4:C96, C96)>1, \"\", C96))","v":""},{"$f":"IF(G96=\"\",\"\",IF(F96=\"\",\"\",CONCATENATE(DIGITADOR!$M$1,G96,E96)))","v":""},"",{"$f":"IF(F96=\"\",\"\",VLOOKUP(F96,referentes!$N$2:$Q$161,3,FALSE))","v":""},null,null,"",null,null,null,null,null,null,null,{"$f":"IF(Q96=\"\",\"\",INDEX(referentes!$D$2:$E$65,MATCH(Q96,referentes!$E$2:$E$65,0),1))","v":""},null,null,{"$f":"IF(R96=\"\",\"\",'Otras referencias'!$B$7)","v":""},null,{"$f":"IF(T96=\"\",\"\",'Otras referencias'!$B$8)","v":""},null,null,null,null,null,null,null,null,null,null,null,"",null,null,null,null,null,null,""]
[null,{"$f":"IF(C97=\"\",\"\",IF(COUNTIF($C$4:C97, C97)>1, \"\", C97))","v":""},{"$f":"IF(G97=\"\",\"\",IF(F97=\"\",\"\",CONCATENATE(DIGITADOR!$M$1,G97,E97)))","v":""},"",{"$f":"IF(F97=\"\",\"\",VLOOKUP(F97,referentes!$N$2:$Q$161,3,FALSE))","v":""},null,null,"",null,null,null,null,null,null,null,{"$f":"IF(Q97=\"\",\"\",INDEX(referentes!$D$2:$E$65,MATCH(Q97,referentes!$E$2:$E$65,0),1))","v":""},null,null,{"$f":"IF(R97=\"\",\"\",'Otras referencias'!$B$7)","v":""},null,{"$f":"IF(T97=\"\",\"\",'Otras referencias'!$B$8)","v":""},null,null,null,null,null,null,null,null,null,null,null,"",null,null,null,null,null,null,""]
[null,{"$f":"IF(C98=\"\",\"\",IF(COUNTIF($C$4:C98, C98)>1, \"\", C98))","v":""},{"$f":"IF(G98=\"\",\"\",IF(F98=\"\",\"\",CONCATENATE(DIGITADOR!$M$1,G98,E98)))","v":""},"",{"$f":"IF(F98=\"\",\"\",VLOOKUP(F98,referentes!$N$2:$Q$161,3,FALSE))","v":""},null,null,"",null,null,null,null,null,null,null,{"$f":"IF(Q98=\"\",\"\",INDEX(referentes!$D$2:$E$65,MATCH(Q98,referentes!$E$2:$E$65,0),1))","v":""},null,null,{"$f":"IF(R98=\"\",\"\",'Otras referencias'!$B$7)","v":""},null,{"$f":"IF(T98=\"\",\"\",'Otras referencias'!$B$8)","v":""},null,null,null,null,null,null,null,null,null,null,null,"",null,null,null,null,null,null,""]
[null,{"$f":"IF(C99=\"\",\"\",IF(COUNTIF($C$4:C99, C99)>1, \"\", C99))","v":""},{"$f":"IF(G99=\"\",\"\",IF(F99=\"\",\"\",CONCATENATE(DIGITADOR!$M$1,G99,E99)))","v":""},"",{"$f":"IF(F99=\"\",\"\",VLOOKUP(F99,referentes!$N$2:$Q$161,3,FALSE))","v":""},null,null,"",null,null,null,null,null,null,null,{"$f":"IF(Q99=\"\",\"\",INDEX(referentes!$D$2:$E$65,MATCH(Q99,referentes!$E$2:$E$65,0),1))","v":""},null,null,{"$f":"IF(R99=\"\",\"\",'Otras referencias'!$B$7)","v":""},null,{"$f":"IF(T99=\"\",\"\",'Otras referencias'!$B$8)","v":""},null,null,null,null,null,null,null,null,null,null,null,"",null,null,null,null,null,null,""]
[null,{"$f":"IF(C100=\"\",\"\",IF(COUNTIF($C$4:C100, C100)>1, \"\", C100))","v":""},{"$f":"IF(G100=\"\",\"\",IF(F100=\"\",\"\",CONCATENATE(DIGITADOR!$M$1,G100,E100)))","v":""},"",{"$f":"IF(F100=\"\",\"\",VLOOKUP(F100,referentes!$N$2:$Q$161,3,FALSE))","v":""},null,null,"",null,null,null,null,null,null,null,{"$f":"IF(Q100=\"\",\"\",INDEX(referentes!$D$2:$E$65,MATCH(Q100,referentes!$E$2:$E$65,0),1))","v":""},null,null,{"$f":"IF(R100=\"\",\"\",'Otras referencias'!$B$7)","v":""},null,{"$f":"IF(T100=\"\",\"\",'Otras referencias'!$B$8)","v":""},null,null,null,null,null,null,null,null,null,null,null,"",null,null,null,null,null,null,""]
[null,{"$f":"IF(C101=\"\",\"\",IF(COUNTIF($C$4:C101, C101)>1, \"\", C101))","v":""},{"$f":"IF(G101=\"\",\"\",IF(F101=\"\",\"\",CONCATENATE(DIGITADOR!$M$1,G101,E101)))","v":""},"",{"$f":"IF(F101=\"\",\"\",VLOOKUP(F101,referentes!$N$2:$Q$161,3,FALSE))","v":""},null,null,"",null,null,null,null,null,null,null,{"$f":"IF(Q101=\"\",\"\",INDEX(referentes!$D$2:$E$65,MATCH(Q101,referentes!$E$2:$E$65,0),1))","v":""},null,null,{"$f":"IF(R101=\"\",\"\",'Otras referencias'!$B$7)","v":""},null,{"$f":"IF(T101=\"\",\"\",'Otras referencias'!$B$8)","v":""},null,null,null,null,null,null,null,null,null,null,null,"",null,null,null,null,null,null,""]
[null,{"$f":"IF(C102=\"\",\"\",IF(COUNTIF($C$4:C102, C102)>1, \"\", C102))","v":""},{"$f":"IF(G102=\"\",\"\",IF(F102=\"\",\"\",CONCATENATE(DIGITADOR!$M$1,G102,E102)))","v":""},"",{"$f":"IF(F102=\"\",\"\",VLOOKUP(F102,referentes!$N$2:$Q$161,3,FALSE))","v":""},null,null,"",null,null,null,null,null,null,null,{"$f":"IF(Q102=\"\",\"\",INDEX(referentes!$D$2:$E$65,MATCH(Q102,referentes!$E$2:$E$65,0),1))","v":""},null,null,{"$f":"IF(R102=\"\",\"\",'Otras referencias'!$B$7)","v":""},null,{"$f":"IF(T102=\"\",\"\",'Otras referencias'!$B$8)","v":""},null,null,null,null,null,null,null,null,null,null,null,"",null,null,null,null,null,null,""]
[null,{"$f":"IF(C103=\"\",\"\",IF(COUNTIF($C$4:C103, C103)>1, \"\", C103))","v":""},{"$f":"IF(G103=\"\",\"\",IF(F103=\"\",\"\",CONCATENATE(DIGITADOR!$M$1,G103,E103)))","v":""},"",{"$f":"IF(F103=\"\",\"\",VLOOKUP(F103,referentes!$N$2:$Q$161,3,FALSE))","v":""},null,null,"",null,null,null,null,null,null,null,{"$f":"IF(Q103=\"\",\"\",INDEX(referentes!$D$2:$E$65,MATCH(Q103,referentes!$E$2:$E$65,0),1))","v":""},null,null,{"$f":"IF(R103=\"\",\"\",'Otras referencias'!$B$7)","v":""},null,{"$f":"IF(T103=\"\",\"\",'Otras referencias'!$B$8)","v":""},null,null,null,null,null,null,null,null,null,null,null,"",null,null,null,null,null,null,""]
[null,{"$f":"IF(C104=\"\",\"\",IF(COUNTIF($C$4:C104, C104)>1, \"\", C104))","v":""},{"$f":"IF(G104=\"\",\"\",IF(F104=\"\",\"\",CONCATENATE(DIGITADOR!$M$1,G104,E104)))","v":""},"",{"$f":"IF(F104=\"\",\"\",VLOOKUP(F104,referentes!$N$2:$Q$161,3,FALSE))","v":""},null,null,"",null,null,null,null,null,null,null,{"$f":"IF(Q104=\"\",\"\",INDEX(referentes!$D$2:$E$65,MATCH(Q104,referentes!$E$2:$E$65,0),1))","v":""},null,null,{"$f":"IF(R104=\"\",\"\",'Otras referencias'!$B$7)","v":""},null,{"$f":"IF(T104=\"\",\"\",'Otras referencias'!$B$8)","v":""},null,null,null,null,null,null,null,null,null,null,null,"",null,null,null,null,null,null,""]
[null,{"$f":"IF(C105=\"\",\"\",IF(COUNTIF($C$4:C105, C105)>1, \"\", C105))","v":""},{"$f":"IF(G105=\"\",\"\",IF(F105=\"\",\"\",CONCATENATE(DIGITADOR!$M$1,G105,E105)))","v":""},"",{"$f":"IF(F105=\"\",\"\",VLOOKUP(F105,referentes!$N$2:$Q$161,3,FALSE))","v":""},null,null,"",null,null,null,null,null,null,null,{"$f":"IF(Q105=\"\",\"\",INDEX(referentes!$D$2:$E$65,MATCH(Q105,referentes!$E$2:$E$65,0),1))","v":""},null,null,{"$f":"IF(R105=\"\",\"\",'Otras referencias'!$B$7)","v":""},null,{"$f":"IF(T105=\"\",\"\",'Otras referencias'!$B$8)","v":""},null,null,null,null,null,null,null,null,null,null,null,"",null,null,null,null,null,null,""]
[null,{"$f":"IF(C106=\"\",\"\",IF(COUNTIF($C$4:C106, C106)>1, \"\", C106))","v":""},{"$f":"IF(G106=\"\",\"\",IF(F106=\"\",\"\",CONCATENATE(DIGITADOR!$M$1,G106,E106)))","v":""},"",{"$f":"IF(F106=\"\",\"\",VLOOKUP(F106,referentes!$N$2:$Q$161,3,FALSE))","v":""},null,null,"",null,null,null,null,null,null,null,{"$f":"IF(Q106=\"\",\"\",INDEX(referentes!$D$2:$E$65,MATCH(Q106,referentes!$E$2:$E$65,0),1))","v":""},null,null,{"$f":"IF(R106=\"\",\"\",'Otras referencias'!$B$7)","v":""},null,{"$f":"IF(T106=\"\",\"\",'Otras referencias'!$B$8)","v":""},null,null,null,null,null,null,null,null,null,null,null,"",null,null,null,null,null,null,""]
[null,{"$f":"IF(C107=\"\",\"\",IF(COUNTIF($C$4:C107, C107)>1, \"\", C107))","v":""},{"$f":"IF(G107=\"\",\"\",IF(F107=\"\",\"\",CONCATENATE(DIGITADOR!$M$1,G107,E107)))","v":""},"",{"$f":"IF(F107=\"\",\"\",VLOOKUP(F107,referentes!$N$2:$Q$161,3,FALSE))","v":""},null,null,"",null,null,null,null,null,null,null,{"$f":"IF(Q107=\"\",\"\",INDEX(referentes!$D$2:$E$65,MATCH(Q107,referentes!$E$2:$E$65,0),1))","v":""},null,null,{"$f":"IF(R107=\"\",\"\",'Otras referencias'!$B$7)","v":""},null,{"$f":"IF(T107=\"\",\"\",'Otras referencias'!$B$8)","v":""},null,null,null,null,null,null,null,null,null,null,null,"",null,null,null,null,null,null,""]
[null,{"$f":"IF(C108=\"\",\"\",IF(COUNTIF($C$4:C108, C108)>1, \"\", C108))","v":""},{"$f":"IF(G108=\"\",\"\",IF(F108=\"\",\"\",CONCATENATE(DIGITADOR!$M$1,G108,E108)))","v":""},"",{"$f":"IF(F108=\"\",\"\",VLOOKUP(F108,referentes!$N$2:$Q$161,3,FALSE))","v":""},null,null,"",null,null,null,null,null,null,null,{"$f":"IF(Q108=\"\",\"\",INDEX(referentes!$D$2:$E$65,MATCH(Q108,referentes!$E$2:$E$65,0),1))","v":""},null,null,{"$f":"IF(R108=\"\",\"\",'Otras referencias'!$B$7)","v":""},null,{"$f":"IF(T108=\"\",\"\",'Otras referencias'!$B$8)","v":""},null,null,null,null,null,null,null,null,null,null,null,"",null,null,null,null,null,null,""]
[null,{"$f":"IF(C109=\"\",\"\",IF(COUNTIF($C$4:C109, C109)>1, \"\", C109))","v":""},{"$f":"IF(G109=\"\",\"\",IF(F109=\"\",\"\",CONCATENATE(DIGITADOR!$M$1,G109,E109)))","v":""},"",{"$f":"IF(F109=\"\",\"\",VLOOKUP(F109,referentes!$N$2:$Q$161,3,FALSE))","v":""},null,null,"",null,null,null,null,null,null,null,{"$f":"IF(Q109=\"\",\"\",INDEX(referentes!$D$2:$E$65,MATCH(Q109,referentes!$E$2:$E$65,0),1))","v":""},null,null,{"$f":"IF(R109=\"\",\"\",'Otras referencias'!$B$7)","v":""},null,{"$f":"IF(T109=\"\",\"\",'Otras referencias'!$B$8)","v":""},null,null,null,null,null,null,null,null,null,null,null,"",null,null,null,null,null,null,""]
[null,{"$f":"IF(C110=\"\",\"\",IF(COUNTIF($C$4:C110, C110)>1, \"\", C110))","v":""},{"$f":"IF(G110=\"\",\"\",IF(F110=\"\",\"\",CONCATENATE(DIGITADOR!$M$1,G110,E110)))","v":""},"",{"$f":"IF(F110=\"\",\"\",VLOOKUP(F110,referentes!$N$2:$Q$161,3,FALSE))","v":""},null,null,"",null,null,null,null,null,null,null,{"$f":"IF(Q110=\"\",\"\",INDEX(referentes!$D$2:$E$65,MATCH(Q110,referentes!$E$2:$E$65,0),1))","v":""},null,null,{"$f":"IF(R110=\"\",\"\",'Otras referencias'!$B$7)","v":""},null,{"$f":"IF(T110=\"\",\"\",'Otras referencias'!$B$8)","v":""},null,null,null,null,null,null,null,null,null,null,null,"",null,null,null,null,null,null,""]
[null,{"$f":"IF(C111=\"\",\"\",IF(COUNTIF($C$4:C111, C111)>1, \"\", C111))","v":""},{"$f":"IF(G111=\"\",\"\",IF(F111=\"\",\"\",CONCATENATE(DIGITADOR!$M$1,G111,E111)))","v":""},"",{"$f":"IF(F111=\"\",\"\",VLOOKUP(F111,referentes!$N$2:$Q$161,3,FALSE))","v":""},null,null,"",null,null,null,null,null,null,null,{"$f":"IF(Q111=\"\",\"\",INDEX(referentes!$D$2:$E$65,MATCH(Q111,referentes!$E$2:$E$65,0),1))","v":""},null,null,{"$f":"IF(R111=\"\",\"\",'Otras referencias'!$B$7)","v":""},null,{"$f":"IF(T111=\"\",\"\",'Otras referencias'!$B$8)","v":""},null,null,null,null,null,null,null,null,null,null,null,"",null,null,null,null,null,null,""]
[null,{"$f":"IF(C112=\"\",\"\",IF(COUNTIF($C$4:C112, C112)>1, \"\", C112))","v":""},{"$f":"IF(G112=\"\",\"\",IF(F112=\"\",\"\",CONCATENATE(DIGITADOR!$M$1,G112,E112)))","v":""},"",{"$f":"IF(F112=\"\",\"\",VLOOKUP(F112,referentes!$N$2:$Q$161,3,FALSE))","v":""},null,null,"",null,null,null,null,null,null,null,{"$f":"IF(Q112=\"\",\"\",INDEX(referentes!$D$2:$E$65,MATCH(Q112,referentes!$E$2:$E$65,0),1))","v":""},null,null,{"$f":"IF(R112=\"\",\"\",'Otras referencias'!$B$7)","v":""},null,{"$f":"IF(T112=\"\",\"\",'Otras referencias'!$B$8)","v":""},null,null,null,null,null,null,null,null,null,null,null,"",null,null,null,null,null,null,""]
[null,{"$f":"IF(C113=\"\",\"\",IF(COUNTIF($C$4:C113, C113)>1, \"\", C113))","v":""},{"$f":"IF(G113=\"\",\"\",IF(F113=\"\",\"\",CONCATENATE(DIGITADOR!$M$1,G113,E113)))","v":""},"",{"$f":"IF(F113=\"\",\"\",VLOOKUP(F113,referentes!$N$2:$Q$161,3,FALSE))","v":""},null,null,"",null,null,null,null,null,null,null,{"$f":"IF(Q113=\"\",\"\",INDEX(referentes!$D$2:$E$65,MATCH(Q113,referentes!$E$2:$E$65,0),1))","v":""},null,null,{"$f":"IF(R113=\"\",\"\",'Otras referencias'!$B$7)","v":""},null,{"$f":"IF(T113=\"\",\"\",'Otras referencias'!$B$8)","v":""},null,null,null,null,null,null,null,null,null,null,null,"",null,null,null,null,null,null,""]
[null,{"$f":"IF(C114=\"\",\"\",IF(COUNTIF($C$4:C114, C114)>1, \"\", C114))","v":""},{"$f":"IF(G114=\"\",\"\",IF(F114=\"\",\"\",CONCATENATE(DIGITADOR!$M$1,G114,E114)))","v":""},"",{"$f":"IF(F114=\"\",\"\",VLOOKUP(F114,referentes!$N$2:$Q$161,3,FALSE))","v":""},null,null,"",null,null,null,null,null,null,null,{"$f":"IF(Q114=\"\",\"\",INDEX(referentes!$D$2:$E$65,MATCH(Q114,referentes!$E$2:$E$65,0),1))","v":""},null,null,{"$f":"IF(R114=\"\",\"\",'Otras referencias'!$B$7)","v":""},null,{"$f":"IF(T114=\"\",\"\",'Otras referencias'!$B$8)","v":""},null,null,null,null,null,null,null,null,null,null,null,"",null,null,null,null,null,null,""]
[null,{"$f":"IF(C115=\"\",\"\",IF(COUNTIF($C$4:C115, C115)>1, \"\", C115))","v":""},{"$f":"IF(G115=\"\",\"\",IF(F115=\"\",\"\",CONCATENATE(DIGITADOR!$M$1,G115,E115)))","v":""},"",{"$f":"IF(F115=\"\",\"\",VLOOKUP(F115,referentes!$N$2:$Q$161,3,FALSE))","v":""},null,null,"",null,null,null,null,null,null,null,{"$f":"IF(Q115=\"\",\"\",INDEX(referentes!$D$2:$E$65,MATCH(Q115,referentes!$E$2:$E$65,0),1))","v":""},null,null,{"$f":"IF(R115=\"\",\"\",'Otras referencias'!$B$7)","v":""},null,{"$f":"IF(T115=\"\",\"\",'Otras referencias'!$B$8)","v":""},null,null,null,null,null,null,null,null,null,null,null,"",null,null,null,null,null,null,""]
[null,{"$f":"IF(C116=\"\",\"\",IF(COUNTIF($C$4:C116, C116)>1, \"\", C116))","v":""},{"$f":"IF(G116=\"\",\"\",IF(F116=\"\",\"\",CONCATENATE(DIGITADOR!$M$1,G116,E116)))","v":""},"",{"$f":"IF(F116=\"\",\"\",VLOOKUP(F116,referentes!$N$2:$Q$161,3,FALSE))","v":""},null,null,"",null,null,null,null,null,null,null,{"$f":"IF(Q116=\"\",\"\",INDEX(referentes!$D$2:$E$65,MATCH(Q116,referentes!$E$2:$E$65,0),1))","v":""},null,null,{"$f":"IF(R116=\"\",\"\",'Otras referencias'!$B$7)","v":""},null,{"$f":"IF(T116=\"\",\"\",'Otras referencias'!$B$8)","v":""},null,null,null,null,null,null,null,null,null,null,null,"",null,null,null,null,null,null,""]
[null,{"$f":"IF(C117=\"\",\"\",IF(COUNTIF($C$4:C117, C117)>1, \"\", C117))","v":""},{"$f":"IF(G117=\"\",\"\",IF(F117=\"\",\"\",CONCATENATE(DIGITADOR!$M$1,G117,E117)))","v":""},"",{"$f":"IF(F117=\"\",\"\",VLOOKUP(F117,referentes!$N$2:$Q$161,3,FALSE))","v":""},null,null,"",null,null,null,null,null,null,null,{"$f":"IF(Q117=\"\",\"\",INDEX(referentes!$D$2:$E$65,MATCH(Q117,referentes!$E$2:$E$65,0),1))","v":""},null,null,{"$f":"IF(R117=\"\",\"\",'Otras referencias'!$B$7)","v":""},null,{"$f":"IF(T117=\"\",\"\",'Otras referencias'!$B$8)","v":""},null,null,null,null,null,null,null,null,null,null,null,"",null,null,null,null,null,null,""]
[null,{"$f":"IF(C118=\"\",\"\",IF(COUNTIF($C$4:C118, C118)>1, \"\", C118))","v":""},{"$f":"IF(G118=\"\",\"\",IF(F118=\"\",\"\",CONCATENATE(DIGITADOR!$M$1,G118,E118)))","v":""},"",{"$f":"IF(F118=\"\",\"\",VLOOKUP(F118,referentes!$N$2:$Q$161,3,FALSE))","v":""},null,null,"",null,null,null,null,null,null,null,{"$f":"IF(Q118=\"\",\"\",INDEX(referentes!$D$2:$E$65,MATCH(Q118,referentes!$E$2:$E$65,0),1))","v":""},null,null,{"$f":"IF(R118=\"\",\"\",'Otras referencias'!$B$7)","v":""},null,{"$f":"IF(T118=\"\",\"\",'Otras referencias'!$B$8)","v":""},null,null,null,null,null,null,null,null,null,null,null,"",null,null,null,null,null,null,""]
[null,{"$f":"IF(C119=\"\",\"\",IF(COUNTIF($C$4:C119, C119)>1, \"\", C119))","v":""},{"$f":"IF(G119=\"\",\"\",IF(F119=\"\",\"\",CONCATENATE(DIGITADOR!$M$1,G119,E119)))","v":""},"",{"$f":"IF(F119=\"\",\"\",VLOOKUP(F119,referentes!$N$2:$Q$161,3,FALSE))","v":""},null,null,"",null,null,null,null,null,null,null,{"$f":"IF(Q119=\"\",\"\",INDEX(referentes!$D$2:$E$65,MATCH(Q119,referentes!$E$2:$E$65,0),1))","v":""},null,null,{"$f":"IF(R119=\"\",\"\",'Otras referencias'!$B$7)","v":""},null,{"$f":"IF(T119=\"\",\"\",'Otras referencias'!$B$8)","v":""},null,null,null,null,null,null,null,null,null,null,null,"",null,null,null,null,null,null,""]
[null,{"$f":"IF(C120=\"\",\"\",IF(COUNTIF($C$4:C120, C120)>1, \"\", C120))","v":""},{"$f":"IF(G120=\"\",\"\",IF(F120=\"\",\"\",CONCATENATE(DIGITADOR!$M$1,G120,E120)))","v":""},"",{"$f":"IF(F120=\"\",\"\",VLOOKUP(F120,referentes!$N$2:$Q$161,3,FALSE))","v":""},null,null,"",null,null,null,null,null,null,null,{"$f":"IF(Q120=\"\",\"\",INDEX(referentes!$D$2:$E$65,MATCH(Q120,referentes!$E$2:$E$65,0),1))","v":""},null,null,{"$f":"IF(R120=\"\",\"\",'Otras referencias'!$B$7)","v":""},null,{"$f":"IF(T120=\"\",\"\",'Otras referencias'!$B$8)","v":""},null,null,null,null,null,null,null,null,null,null,null,"",null,null,null,null,null,null,""]
[null,{"$f":"IF(C121=\"\",\"\",IF(COUNTIF($C$4:C121, C121)>1, \"\", C121))","v":""},{"$f":"IF(G121=\"\",\"\",IF(F121=\"\",\"\",CONCATENATE(DIGITADOR!$M$1,G121,E121)))","v":""},"",{"$f":"IF(F121=\"\",\"\",VLOOKUP(F121,referentes!$N$2:$Q$161,3,FALSE))","v":""},null,null,"",null,null,null,null,null,null,null,{"$f":"IF(Q121=\"\",\"\",INDEX(referentes!$D$2:$E$65,MATCH(Q121,referentes!$E$2:$E$65,0),1))","v":""},null,null,{"$f":"IF(R121=\"\",\"\",'Otras referencias'!$B$7)","v":""},null,{"$f":"IF(T121=\"\",\"\",'Otras referencias'!$B$8)","v":""},null,null,null,null,null,null,null,null,null,null,null,"",null,null,null,null,null,null,""]
[null,{"$f":"IF(C122=\"\",\"\",IF(COUNTIF($C$4:C122, C122)>1, \"\", C122))","v":""},{"$f":"IF(G122=\"\",\"\",IF(F122=\"\",\"\",CONCATENATE(DIGITADOR!$M$1,G122,E122)))","v":""},"",{"$f":"IF(F122=\"\",\"\",VLOOKUP(F122,referentes!$N$2:$Q$161,3,FALSE))","v":""},null,null,"",null,null,null,null,null,null,null,{"$f":"IF(Q122=\"\",\"\",INDEX(referentes!$D$2:$E$65,MATCH(Q122,referentes!$E$2:$E$65,0),1))","v":""},null,null,{"$f":"IF(R122=\"\",\"\",'Otras referencias'!$B$7)","v":""},null,{"$f":"IF(T122=\"\",\"\",'Otras referencias'!$B$8)","v":""},null,null,null,null,null,null,null,null,null,null,null,"",null,null,null,null,null,null,""]
[null,{"$f":"IF(C123=\"\",\"\",IF(COUNTIF($C$4:C123, C123)>1, \"\", C123))","v":""},{"$f":"IF(G123=\"\",\"\",IF(F123=\"\",\"\",CONCATENATE(DIGITADOR!$M$1,G123,E123)))","v":""},"",{"$f":"IF(F123=\"\",\"\",VLOOKUP(F123,referentes!$N$2:$Q$161,3,FALSE))","v":""},null,null,"",null,null,null,null,null,null,null,{"$f":"IF(Q123=\"\",\"\",INDEX(referentes!$D$2:$E$65,MATCH(Q123,referentes!$E$2:$E$65,0),1))","v":""},null,null,{"$f":"IF(R123=\"\",\"\",'Otras referencias'!$B$7)","v":""},null,{"$f":"IF(T123=\"\",\"\",'Otras referencias'!$B$8)","v":""},null,null,null,null,null,null,null,null,null,null,null,"",null,null,null,null,null,null,""]
[null,{"$f":"IF(C124=\"\",\"\",IF(COUNTIF($C$4:C124, C124)>1, \"\", C124))","v":""},{"$f":"IF(G124=\"\",\"\",IF(F124=\"\",\"\",CONCATENATE(DIGITADOR!$M$1,G124,E124)))","v":""},"",{"$f":"IF(F124=\"\",\"\",VLOOKUP(F124,referentes!$N$2:$Q$161,3,FALSE))","v":""},null,null,"",null,null,null,null,null,null,null,{"$f":"IF(Q124=\"\",\"\",INDEX(referentes!$D$2:$E$65,MATCH(Q124,referentes!$E$2:$E$65,0),1))","v":""},null,null,{"$f":"IF(R124=\"\",\"\",'Otras referencias'!$B$7)","v":""},null,{"$f":"IF(T124=\"\",\"\",'Otras referencias'!$B$8)","v":""},null,null,null,null,null,null,null,null,null,null,null,"",null,null,null,null,null,null,""]
[null,{"$f":"IF(C125=\"\",\"\",IF(COUNTIF($C$4:C125, C125)>1, \"\", C125))","v":""},{"$f":"IF(G125=\"\",\"\",IF(F125=\"\",\"\",CONCATENATE(DIGITADOR!$M$1,G125,E125)))","v":""},"",{"$f":"IF(F125=\"\",\"\",VLOOKUP(F125,referentes!$N$2:$Q$161,3,FALSE))","v":""},null,null,"",null,null,null,null,null,null,null,{"$f":"IF(Q125=\"\",\"\",INDEX(referentes!$D$2:$E$65,MATCH(Q125,referentes!$E$2:$E$65,0),1))","v":""},null,null,{"$f":"IF(R125=\"\",\"\",'Otras referencias'!$B$7)","v":""},null,{"$f":"IF(T125=\"\",\"\",'Otras referencias'!$B$8)","v":""},null,null,null,null,null,null,null,null,null,null,null,"",null,null,null,null,null,null,""]
[null,{"$f":"IF(C126=\"\",\"\",IF(COUNTIF($C$4:C126, C126)>1, \"\", C126))","v":""},{"$f":"IF(G126=\"\",\"\",IF(F126=\"\",\"\",CONCATENATE(DIGITADOR!$M$1,G126,E126)))","v":""},"",{"$f":"IF(F126=\"\",\"\",VLOOKUP(F126,referentes!$N$2:$Q$161,3,FALSE))","v":""},null,null,"",null,null,null,null,null,null,null,{"$f":"IF(Q126=\"\",\"\",INDEX(referentes!$D$2:$E$65,MATCH(Q126,referentes!$E$2:$E$65,0),1))","v":""},null,null,{"$f":"IF(R126=\"\",\"\",'Otras referencias'!$B$7)","v":""},null,{"$f":"IF(T126=\"\",\"\",'Otras referencias'!$B$8)","v":""},null,null,null,null,null,null,null,null,null,null,null,"",null,null,null,null,null,null,""]
[null,{"$f":"IF(C127=\"\",\"\",IF(COUNTIF($C$4:C127, C127)>1, \"\", C127))","v":""},{"$f":"IF(G127=\"\",\"\",IF(F127=\"\",\"\",CONCATENATE(DIGITADOR!$M$1,G127,E127)))","v":""},"",{"$f":"IF(F127=\"\",\"\",VLOOKUP(F127,referentes!$N$2:$Q$161,3,FALSE))","v":""},null,null,"",null,null,null,null,null,null,null,{"$f":"IF(Q127=\"\",\"\",INDEX(referentes!$D$2:$E$65,MATCH(Q127,referentes!$E$2:$E$65,0),1))","v":""},null,null,{"$f":"IF(R127=\"\",\"\",'Otras referencias'!$B$7)","v":""},null,{"$f":"IF(T127=\"\",\"\",'Otras referencias'!$B$8)","v":""},null,null,null,null,null,null,null,null,null,null,null,"",null,null,null,null,null,null,""]
[null,{"$f":"IF(C128=\"\",\"\",IF(COUNTIF($C$4:C128, C128)>1, \"\", C128))","v":""},{"$f":"IF(G128=\"\",\"\",IF(F128=\"\",\"\",CONCATENATE(DIGITADOR!$M$1,G128,E128)))","v":""},"",{"$f":"IF(F128=\"\",\"\",VLOOKUP(F128,referentes!$N$2:$Q$161,3,FALSE))","v":""},null,null,"",null,null,null,null,null,null,null,{"$f":"IF(Q128=\"\",\"\",INDEX(referentes!$D$2:$E$65,MATCH(Q128,referentes!$E$2:$E$65,0),1))","v":""},null,null,{"$f":"IF(R128=\"\",\"\",'Otras referencias'!$B$7)","v":""},null,{"$f":"IF(T128=\"\",\"\",'Otras referencias'!$B$8)","v":""},null,null,null,null,null,null,null,null,null,null,null,"",null,null,null,null,null,null,""]
[null,{"$f":"IF(C129=\"\",\"\",IF(COUNTIF($C$4:C129, C129)>1, \"\", C129))","v":""},{"$f":"IF(G129=\"\",\"\",IF(F129=\"\",\"\",CONCATENATE(DIGITADOR!$M$1,G129,E129)))","v":""},"",{"$f":"IF(F129=\"\",\"\",VLOOKUP(F129,referentes!$N$2:$Q$161,3,FALSE))","v":""},null,null,"",null,null,null,null,null,null,null,{"$f":"IF(Q129=\"\",\"\",INDEX(referentes!$D$2:$E$65,MATCH(Q129,referentes!$E$2:$E$65,0),1))","v":""},null,null,{"$f":"IF(R129=\"\",\"\",'Otras referencias'!$B$7)","v":""},null,{"$f":"IF(T129=\"\",\"\",'Otras referencias'!$B$8)","v":""},null,null,null,null,null,null,null,null,null,null,null,"",null,null,null,null,null,null,""]
[null,{"$f":"IF(C130=\"\",\"\",IF(COUNTIF($C$4:C130, C130)>1, \"\", C130))","v":""},{"$f":"IF(G130=\"\",\"\",IF(F130=\"\",\"\",CONCATENATE(DIGITADOR!$M$1,G130,E130)))","v":""},"",{"$f":"IF(F130=\"\",\"\",VLOOKUP(F130,referentes!$N$2:$Q$161,3,FALSE))","v":""},null,null,"",null,null,null,null,null,null,null,{"$f":"IF(Q130=\"\",\"\",INDEX(referentes!$D$2:$E$65,MATCH(Q130,referentes!$E$2:$E$65,0),1))","v":""},null,null,{"$f":"IF(R130=\"\",\"\",'Otras referencias'!$B$7)","v":""},null,{"$f":"IF(T130=\"\",\"\",'Otras referencias'!$B$8)","v":""},null,null,null,null,null,null,null,null,null,null,null,"",null,null,null,null,null,null,""]
[null,{"$f":"IF(C131=\"\",\"\",IF(COUNTIF($C$4:C131, C131)>1, \"\", C131))","v":""},{"$f":"IF(G131=\"\",\"\",IF(F131=\"\",\"\",CONCATENATE(DIGITADOR!$M$1,G131,E131)))","v":""},"",{"$f":"IF(F131=\"\",\"\",VLOOKUP(F131,referentes!$N$2:$Q$161,3,FALSE))","v":""},null,null,"",null,null,null,null,null,null,null,{"$f":"IF(Q131=\"\",\"\",INDEX(referentes!$D$2:$E$65,MATCH(Q131,referentes!$E$2:$E$65,0),1))","v":""},null,null,{"$f":"IF(R131=\"\",\"\",'Otras referencias'!$B$7)","v":""},null,{"$f":"IF(T131=\"\",\"\",'Otras referencias'!$B$8)","v":""},null,null,null,null,null,null,null,null,null,null,null,"",null,null,null,null,null,null,""]
[null,{"$f":"IF(C132=\"\",\"\",IF(COUNTIF($C$4:C132, C132)>1, \"\", C132))","v":""},{"$f":"IF(G132=\"\",\"\",IF(F132=\"\",\"\",CONCATENATE(DIGITADOR!$M$1,G132,E132)))","v":""},"",{"$f":"IF(F132=\"\",\"\",VLOOKUP(F132,referentes!$N$2:$Q$161,3,FALSE))","v":""},null,null,"",null,null,null,null,null,null,null,{"$f":"IF(Q132=\"\",\"\",INDEX(referentes!$D$2:$E$65,MATCH(Q132,referentes!$E$2:$E$65,0),1))","v":""},null,null,{"$f":"IF(R132=\"\",\"\",'Otras referencias'!$B$7)","v":""},null,{"$f":"IF(T132=\"\",\"\",'Otras referencias'!$B$8)","v":""},null,null,null,null,null,null,null,null,null,null,null,"",null,null,null,null,null,null,""]
[null,{"$f":"IF(C133=\"\",\"\",IF(COUNTIF($C$4:C133, C133)>1, \"\", C133))","v":""},{"$f":"IF(G133=\"\",\"\",IF(F133=\"\",\"\",CONCATENATE(DIGITADOR!$M$1,G133,E133)))","v":""},{"$f":"IF(C133=\"\",\"\",CONCATENATE(C133,ROW()-2))","v":""},{"$f":"IF(F133=\"\",\"\",VLOOKUP(F133,referentes!$N$2:$Q$161,3,FALSE))","v":""},null,null,{"$f":"IF(I133=\"\",\"\",TEXT(I133,\"hh:mm\"))","v":""},null,null,null,null,null,null,null,{"$f":"IF(Q133=\"\",\"\",INDEX(referentes!$D$2:$E$65,MATCH(Q133,referentes!$E$2:$E$65,0),1))","v":""},null,null,{"$f":"IF(R133=\"\",\"\",'Otras referencias'!$B$7)","v":""},null,{"$f":"IF(T133=\"\",\"\",'Otras referencias'!$B$8)","v":""},null,null,null,null,null,null,null,null,null,null,null,{"$f":"CONCATENATE(\n                                IF(AA133<>\"\",CONCATENATE(Z133,\", \",\n                                                      IF(AB133<>\"\",CONCATENATE(AA133,\", \",\n                                                           IF(AC133<>\"\",CONCATENATE(AB133,\", \",\n                                                               IF(AD133<>\"\",CONCATENATE(AC133,\", \",\n                                                                   IF(AE133<>\"\",CONCATENATE(AD133,\", \",\n                                                                        IF(AF133<>\"\",CONCATENATE(AE133,\", \", AF133), AE133)\n                                                                      ), AD133)\n                                                                   ), AC133)\n                                                               ), AB133)\n                                                       ), AA133)\n                                ),Z133)\n)","v":""},null,null,null,null,null,null,{"$f":"CONCATENATE(\n                                IF(AI133<>\"\",CONCATENATE(AH133,\", \",\n                                                      IF(AJ133<>\"\",CONCATENATE(AI133,\", \",\n                                                           IF(AK133<>\"\",CONCATENATE(AJ133,\", \",\n                                                               IF(AL133<>\"\",CONCATENATE(AK133,\", \",\n                                                                       IF(AM133<>\"\",CONCATENATE(AL133,\", \", AM133), AL133)\n                                                                      ), AK133)\n                                                               ), AJ133)\n                                                       ), AI133)\n                                ),AH133)\n)","v":""}]
[null,{"$f":"IF(C134=\"\",\"\",IF(COUNTIF($C$4:C134, C134)>1, \"\", C134))","v":""},{"$f":"IF(G134=\"\",\"\",IF(F134=\"\",\"\",CONCATENATE(DIGITADOR!$M$1,G134,E134)))","v":""},"",{"$f":"IF(F134=\"\",\"\",VLOOKUP(F134,referentes!$N$2:$Q$161,3,FALSE))","v":""},null,null,"",null,null,null,null,null,null,null,{"$f":"IF(Q134=\"\",\"\",INDEX(referentes!$D$2:$E$65,MATCH(Q134,referentes!$E$2:$E$65,0),1))","v":""},null,null,{"$f":"IF(R134=\"\",\"\",'Otras referencias'!$B$7)","v":""},null,{"$f":"IF(T134=\"\",\"\",'Otras referencias'!$B$8)","v":""},null,null,null,null,null,null,null,null,null,null,null,"",null,null,null,null,null,null,""]
[null,{"$f":"IF(C135=\"\",\"\",IF(COUNTIF($C$4:C135, C135)>1, \"\", C135))","v":""},{"$f":"IF(G135=\"\",\"\",IF(F135=\"\",\"\",CONCATENATE(DIGITADOR!$M$1,G135,E135)))","v":""},"",{"$f":"IF(F135=\"\",\"\",VLOOKUP(F135,referentes!$N$2:$Q$161,3,FALSE))","v":""},null,null,"",null,null,null,null,null,null,null,{"$f":"IF(Q135=\"\",\"\",INDEX(referentes!$D$2:$E$65,MATCH(Q135,referentes!$E$2:$E$65,0),1))","v":""},null,null,{"$f":"IF(R135=\"\",\"\",'Otras referencias'!$B$7)","v":""},null,{"$f":"IF(T135=\"\",\"\",'Otras referencias'!$B$8)","v":""},null,null,null,null,null,null,null,null,null,null,null,"",null,null,null,null,null,null,""]
[null,{"$f":"IF(C136=\"\",\"\",IF(COUNTIF($C$4:C136, C136)>1, \"\", C136))","v":""},{"$f":"IF(G136=\"\",\"\",IF(F136=\"\",\"\",CONCATENATE(DIGITADOR!$M$1,G136,E136)))","v":""},"",{"$f":"IF(F136=\"\",\"\",VLOOKUP(F136,referentes!$N$2:$Q$161,3,FALSE))","v":""},null,null,"",null,null,null,null,null,null,null,{"$f":"IF(Q136=\"\",\"\",INDEX(referentes!$D$2:$E$65,MATCH(Q136,referentes!$E$2:$E$65,0),1))","v":""},null,null,{"$f":"IF(R136=\"\",\"\",'Otras referencias'!$B$7)","v":""},null,{"$f":"IF(T136=\"\",\"\",'Otras referencias'!$B$8)","v":""},null,null,null,null,null,null,null,null,null,null,null,"",null,null,null,null,null,null,""]
[null,{"$f":"IF(C137=\"\",\"\",IF(COUNTIF($C$4:C137, C137)>1, \"\", C137))","v":""},{"$f":"IF(G137=\"\",\"\",IF(F137=\"\",\"\",CONCATENATE(DIGITADOR!$M$1,G137,E137)))","v":""},"",{"$f":"IF(F137=\"\",\"\",VLOOKUP(F137,referentes!$N$2:$Q$161,3,FALSE))","v":""},null,null,"",null,null,null,null,null,null,null,{"$f":"IF(Q137=\"\",\"\",INDEX(referentes!$D$2:$E$65,MATCH(Q137,referentes!$E$2:$E$65,0),1))","v":""},null,null,{"$f":"IF(R137=\"\",\"\",'Otras referencias'!$B$7)","v":""},null,{"$f":"IF(T137=\"\",\"\",'Otras referencias'!$B$8)","v":""},null,null,null,null,null,null,null,null,null,null,null,"",null,null,null,null,null,null,""]
[null,{"$f":"IF(C138=\"\",\"\",IF(COUNTIF($C$4:C138, C138)>1, \"\", C138))","v":""},{"$f":"IF(G138=\"\",\"\",IF(F138=\"\",\"\",CONCATENATE(DIGITADOR!$M$1,G138,E138)))","v":""},"",{"$f":"IF(F138=\"\",\"\",VLOOKUP(F138,referentes!$N$2:$Q$161,3,FALSE))","v":""},null,null,"",null,null,null,null,null,null,null,{"$f":"IF(Q138=\"\",\"\",INDEX(referentes!$D$2:$E$65,MATCH(Q138,referentes!$E$2:$E$65,0),1))","v":""},null,null,{"$f":"IF(R138=\"\",\"\",'Otras referencias'!$B$7)","v":""},null,{"$f":"IF(T138=\"\",\"\",'Otras referencias'!$B$8)","v":""},null,null,null,null,null,null,null,null,null,null,null,"",null,null,null,null,null,null,""]
[null,{"$f":"IF(C139=\"\",\"\",IF(COUNTIF($C$4:C139, C139)>1, \"\", C139))","v":""},{"$f":"IF(G139=\"\",\"\",IF(F139=\"\",\"\",CONCATENATE(DIGITADOR!$M$1,G139,E139)))","v":""},"",{"$f":"IF(F139=\"\",\"\",VLOOKUP(F139,referentes!$N$2:$Q$161,3,FALSE))","v":""},null,null,"",null,null,null,null,null,null,null,{"$f":"IF(Q139=\"\",\"\",INDEX(referentes!$D$2:$E$65,MATCH(Q139,referentes!$E$2:$E$65,0),1))","v":""},null,null,{"$f":"IF(R139=\"\",\"\",'Otras referencias'!$B$7)","v":""},null,{"$f":"IF(T139=\"\",\"\",'Otras referencias'!$B$8)","v":""},null,null,null,null,null,null,null,null,null,null,null,"",null,null,null,null,null,null,""]
[null,{"$f":"IF(C140=\"\",\"\",IF(COUNTIF($C$4:C140, C140)>1, \"\", C140))","v":""},{"$f":"IF(G140=\"\",\"\",IF(F140=\"\",\"\",CONCATENATE(DIGITADOR!$M$1,G140,E140)))","v":""},"",{"$f":"IF(F140=\"\",\"\",VLOOKUP(F140,referentes!$N$2:$Q$161,3,FALSE))","v":""},null,null,"",null,null,null,null,null,null,null,{"$f":"IF(Q140=\"\",\"\",INDEX(referentes!$D$2:$E$65,MATCH(Q140,referentes!$E$2:$E$65,0),1))","v":""},null,null,{"$f":"IF(R140=\"\",\"\",'Otras referencias'!$B$7)","v":""},null,{"$f":"IF(T140=\"\",\"\",'Otras referencias'!$B$8)","v":""},null,null,null,null,null,null,null,null,null,null,null,"",null,null,null,null,null,null,""]
[null,{"$f":"IF(C141=\"\",\"\",IF(COUNTIF($C$4:C141, C141)>1, \"\", C141))","v":""},{"$f":"IF(G141=\"\",\"\",IF(F141=\"\",\"\",CONCATENATE(DIGITADOR!$M$1,G141,E141)))","v":""},"",{"$f":"IF(F141=\"\",\"\",VLOOKUP(F141,referentes!$N$2:$Q$161,3,FALSE))","v":""},null,null,"",null,null,null,null,null,null,null,{"$f":"IF(Q141=\"\",\"\",INDEX(referentes!$D$2:$E$65,MATCH(Q141,referentes!$E$2:$E$65,0),1))","v":""},null,null,{"$f":"IF(R141=\"\",\"\",'Otras referencias'!$B$7)","v":""},null,{"$f":"IF(T141=\"\",\"\",'Otras referencias'!$B$8)","v":""},null,null,null,null,null,null,null,null,null,null,null,"",null,null,null,null,null,null,""]
[null,{"$f":"IF(C142=\"\",\"\",IF(COUNTIF($C$4:C142, C142)>1, \"\", C142))","v":""},{"$f":"IF(G142=\"\",\"\",IF(F142=\"\",\"\",CONCATENATE(DIGITADOR!$M$1,G142,E142)))","v":""},"",{"$f":"IF(F142=\"\",\"\",VLOOKUP(F142,referentes!$N$2:$Q$161,3,FALSE))","v":""},null,null,"",null,null,null,null,null,null,null,{"$f":"IF(Q142=\"\",\"\",INDEX(referentes!$D$2:$E$65,MATCH(Q142,referentes!$E$2:$E$65,0),1))","v":""},null,null,{"$f":"IF(R142=\"\",\"\",'Otras referencias'!$B$7)","v":""},null,{"$f":"IF(T142=\"\",\"\",'Otras referencias'!$B$8)","v":""},null,null,null,null,null,null,null,null,null,null,null,"",null,null,null,null,null,null,""]
[null,{"$f":"IF(C143=\"\",\"\",IF(COUNTIF($C$4:C143, C143)>1, \"\", C143))","v":""},{"$f":"IF(G143=\"\",\"\",IF(F143=\"\",\"\",CONCATENATE(DIGITADOR!$M$1,G143,E143)))","v":""},"",{"$f":"IF(F143=\"\",\"\",VLOOKUP(F143,referentes!$N$2:$Q$161,3,FALSE))","v":""},null,null,"",null,null,null,null,null,null,null,{"$f":"IF(Q143=\"\",\"\",INDEX(referentes!$D$2:$E$65,MATCH(Q143,referentes!$E$2:$E$65,0),1))","v":""},null,null,{"$f":"IF(R143=\"\",\"\",'Otras referencias'!$B$7)","v":""},null,{"$f":"IF(T143=\"\",\"\",'Otras referencias'!$B$8)","v":""},null,null,null,null,null,null,null,null,null,null,null,"",null,null,null,null,null,null,""]
[null,{"$f":"IF(C144=\"\",\"\",IF(COUNTIF($C$4:C144, C144)>1, \"\", C144))","v":""},{"$f":"IF(G144=\"\",\"\",IF(F144=\"\",\"\",CONCATENATE(DIGITADOR!$M$1,G144,E144)))","v":""},"",{"$f":"IF(F144=\"\",\"\",VLOOKUP(F144,referentes!$N$2:$Q$161,3,FALSE))","v":""},null,null,"",null,null,null,null,null,null,null,{"$f":"IF(Q144=\"\",\"\",INDEX(referentes!$D$2:$E$65,MATCH(Q144,referentes!$E$2:$E$65,0),1))","v":""},null,null,{"$f":"IF(R144=\"\",\"\",'Otras referencias'!$B$7)","v":""},null,{"$f":"IF(T144=\"\",\"\",'Otras referencias'!$B$8)","v":""},null,null,null,null,null,null,null,null,null,null,null,"",null,null,null,null,null,null,""]
[null,{"$f":"IF(C145=\"\",\"\",IF(COUNTIF($C$4:C145, C145)>1, \"\", C145))","v":""},{"$f":"IF(G145=\"\",\"\",IF(F145=\"\",\"\",CONCATENATE(DIGITADOR!$M$1,G145,E145)))","v":""},"",{"$f":"IF(F145=\"\",\"\",VLOOKUP(F145,referentes!$N$2:$Q$161,3,FALSE))","v":""},null,null,"",null,null,null,null,null,null,null,{"$f":"IF(Q145=\"\",\"\",INDEX(referentes!$D$2:$E$65,MATCH(Q145,referentes!$E$2:$E$65,0),1))","v":""},null,null,{"$f":"IF(R145=\"\",\"\",'Otras referencias'!$B$7)","v":""},null,{"$f":"IF(T145=\"\",\"\",'Otras referencias'!$B$8)","v":""},null,null,null,null,null,null,null,null,null,null,null,"",null,null,null,null,null,null,""]
[null,{"$f":"IF(C146=\"\",\"\",IF(COUNTIF($C$4:C146, C146)>1, \"\", C146))","v":""},{"$f":"IF(G146=\"\",\"\",IF(F146=\"\",\"\",CONCATENATE(DIGITADOR!$M$1,G146,E146)))","v":""},"",{"$f":"IF(F146=\"\",\"\",VLOOKUP(F146,referentes!$N$2:$Q$161,3,FALSE))","v":""},null,null,"",null,null,null,null,null,null,null,{"$f":"IF(Q146=\"\",\"\",INDEX(referentes!$D$2:$E$65,MATCH(Q146,referentes!$E$2:$E$65,0),1))","v":""},null,null,{"$f":"IF(R146=\"\",\"\",'Otras referencias'!$B$7)","v":""},null,{"$f":"IF(T146=\"\",\"\",'Otras referencias'!$B$8)","v":""},null,null,null,null,null,null,null,null,null,null,null,"",null,null,null,null,null,null,""]
[null,{"$f":"IF(C147=\"\",\"\",IF(COUNTIF($C$4:C147, C147)>1, \"\", C147))","v":""},{"$f":"IF(G147=\"\",\"\",IF(F147=\"\",\"\",CONCATENATE(DIGITADOR!$M$1,G147,E147)))","v":""},"",{"$f":"IF(F147=\"\",\"\",VLOOKUP(F147,referentes!$N$2:$Q$161,3,FALSE))","v":""},null,null,"",null,null,null,null,null,null,null,{"$f":"IF(Q147=\"\",\"\",INDEX(referentes!$D$2:$E$65,MATCH(Q147,referentes!$E$2:$E$65,0),1))","v":""},null,null,{"$f":"IF(R147=\"\",\"\",'Otras referencias'!$B$7)","v":""},null,{"$f":"IF(T147=\"\",\"\",'Otras referencias'!$B$8)","v":""},null,null,null,null,null,null,null,null,null,null,null,"",null,null,null,null,null,null,""]
[null,{"$f":"IF(C148=\"\",\"\",IF(COUNTIF($C$4:C148, C148)>1, \"\", C148))","v":""},{"$f":"IF(G148=\"\",\"\",IF(F148=\"\",\"\",CONCATENATE(DIGITADOR!$M$1,G148,E148)))","v":""},"",{"$f":"IF(F148=\"\",\"\",VLOOKUP(F148,referentes!$N$2:$Q$161,3,FALSE))","v":""},null,null,"",null,null,null,null,null,null,null,{"$f":"IF(Q148=\"\",\"\",INDEX(referentes!$D$2:$E$65,MATCH(Q148,referentes!$E$2:$E$65,0),1))","v":""},null,null,{"$f":"IF(R148=\"\",\"\",'Otras referencias'!$B$7)","v":""},null,{"$f":"IF(T148=\"\",\"\",'Otras referencias'!$B$8)","v":""},null,null,null,null,null,null,null,null,null,null,null,"",null,null,null,null,null,null,""]
[null,{"$f":"IF(C149=\"\",\"\",IF(COUNTIF($C$4:C149, C149)>1, \"\", C149))","v":""},{"$f":"IF(G149=\"\",\"\",IF(F149=\"\",\"\",CONCATENATE(DIGITADOR!$M$1,G149,E149)))","v":""},"",{"$f":"IF(F149=\"\",\"\",VLOOKUP(F149,referentes!$N$2:$Q$161,3,FALSE))","v":""},null,null,"",null,null,null,null,null,null,null,{"$f":"IF(Q149=\"\",\"\",INDEX(referentes!$D$2:$E$65,MATCH(Q149,referentes!$E$2:$E$65,0),1))","v":""},null,null,{"$f":"IF(R149=\"\",\"\",'Otras referencias'!$B$7)","v":""},null,{"$f":"IF(T149=\"\",\"\",'Otras referencias'!$B$8)","v":""},null,null,null,null,null,null,null,null,null,null,null,"",null,null,null,null,null,null,""]
[null,{"$f":"IF(C150=\"\",\"\",IF(COUNTIF($C$4:C150, C150)>1, \"\", C150))","v":""},{"$f":"IF(G150=\"\",\"\",IF(F150=\"\",\"\",CONCATENATE(DIGITADOR!$M$1,G150,E150)))","v":""},"",{"$f":"IF(F150=\"\",\"\",VLOOKUP(F150,referentes!$N$2:$Q$161,3,FALSE))","v":""},null,null,"",null,null,null,null,null,null,null,{"$f":"IF(Q150=\"\",\"\",INDEX(referentes!$D$2:$E$65,MATCH(Q150,referentes!$E$2:$E$65,0),1))","v":""},null,null,{"$f":"IF(R150=\"\",\"\",'Otras referencias'!$B$7)","v":""},null,{"$f":"IF(T150=\"\",\"\",'Otras referencias'!$B$8)","v":""},null,null,null,null,null,null,null,null,null,null,null,"",null,null,null,null,null,null,""]
[null,{"$f":"IF(C151=\"\",\"\",IF(COUNTIF($C$4:C151, C151)>1, \"\", C151))","v":""},{"$f":"IF(G151=\"\",\"\",IF(F151=\"\",\"\",CONCATENATE(DIGITADOR!$M$1,G151,E151)))","v":""},"",{"$f":"IF(F151=\"\",\"\",VLOOKUP(F151,referentes!$N$2:$Q$161,3,FALSE))","v":""},null,null,"",null,null,null,null,null,null,null,{"$f":"IF(Q151=\"\",\"\",INDEX(referentes!$D$2:$E$65,MATCH(Q151,referentes!$E$2:$E$65,0),1))","v":""},null,null,{"$f":"IF(R151=\"\",\"\",'Otras referencias'!$B$7)","v":""},null,{"$f":"IF(T151=\"\",\"\",'Otras referencias'!$B$8)","v":""},null,null,null,null,null,null,null,null,null,null,null,"",null,null,null,null,null,null,""]
[null,{"$f":"IF(C152=\"\",\"\",IF(COUNTIF($C$4:C152, C152)>1, \"\", C152))","v":""},{"$f":"IF(G152=\"\",\"\",IF(F152=\"\",\"\",CONCATENATE(DIGITADOR!$M$1,G152,E152)))","v":""},"",{"$f":"IF(F152=\"\",\"\",VLOOKUP(F152,referentes!$N$2:$Q$161,3,FALSE))","v":""},null,null,"",null,null,null,null,null,null,null,{"$f":"IF(Q152=\"\",\"\",INDEX(referentes!$D$2:$E$65,MATCH(Q152,referentes!$E$2:$E$65,0),1))","v":""},null,null,{"$f":"IF(R152=\"\",\"\",'Otras referencias'!$B$7)","v":""},null,{"$f":"IF(T152=\"\",\"\",'Otras referencias'!$B$8)","v":""},null,null,null,null,null,null,null,null,null,null,null,"",null,null,null,null,null,null,""]
[null,{"$f":"IF(C153=\"\",\"\",IF(COUNTIF($C$4:C153, C153)>1, \"\", C153))","v":""},{"$f":"IF(G153=\"\",\"\",IF(F153=\"\",\"\",CONCATENATE(DIGITADOR!$M$1,G153,E153)))","v":""},"",{"$f":"IF(F153=\"\",\"\",VLOOKUP(F153,referentes!$N$2:$Q$161,3,FALSE))","v":""},null,null,"",null,null,null,null,null,null,null,{"$f":"IF(Q153=\"\",\"\",INDEX(referentes!$D$2:$E$65,MATCH(Q153,referentes!$E$2:$E$65,0),1))","v":""},null,null,{"$f":"IF(R153=\"\",\"\",'Otras referencias'!$B$7)","v":""},null,{"$f":"IF(T153=\"\",\"\",'Otras referencias'!$B$8)","v":""},null,null,null,null,null,null,null,null,null,null,null,"",null,null,null,null,null,null,""]
[null,{"$f":"IF(C154=\"\",\"\",IF(COUNTIF($C$4:C154, C154)>1, \"\", C154))","v":""},{"$f":"IF(G154=\"\",\"\",IF(F154=\"\",\"\",CONCATENATE(DIGITADOR!$M$1,G154,E154)))","v":""},"",{"$f":"IF(F154=\"\",\"\",VLOOKUP(F154,referentes!$N$2:$Q$161,3,FALSE))","v":""},null,null,"",null,null,null,null,null,null,null,{"$f":"IF(Q154=\"\",\"\",INDEX(referentes!$D$2:$E$65,MATCH(Q154,referentes!$E$2:$E$65,0),1))","v":""},null,null,{"$f":"IF(R154=\"\",\"\",'Otras referencias'!$B$7)","v":""},null,{"$f":"IF(T154=\"\",\"\",'Otras referencias'!$B$8)","v":""},null,null,null,null,null,null,null,null,null,null,null,"",null,null,null,null,null,null,""]
[null,{"$f":"IF(C155=\"\",\"\",IF(COUNTIF($C$4:C155, C155)>1, \"\", C155))","v":""},{"$f":"IF(G155=\"\",\"\",IF(F155=\"\",\"\",CONCATENATE(DIGITADOR!$M$1,G155,E155)))","v":""},"",{"$f":"IF(F155=\"\",\"\",VLOOKUP(F155,referentes!$N$2:$Q$161,3,FALSE))","v":""},null,null,"",null,null,null,null,null,null,null,{"$f":"IF(Q155=\"\",\"\",INDEX(referentes!$D$2:$E$65,MATCH(Q155,referentes!$E$2:$E$65,0),1))","v":""},null,null,{"$f":"IF(R155=\"\",\"\",'Otras referencias'!$B$7)","v":""},null,{"$f":"IF(T155=\"\",\"\",'Otras referencias'!$B$8)","v":""},null,null,null,null,null,null,null,null,null,null,null,"",null,null,null,null,null,null,""]
[null,{"$f":"IF(C156=\"\",\"\",IF(COUNTIF($C$4:C156, C156)>1, \"\", C156))","v":""},{"$f":"IF(G156=\"\",\"\",IF(F156=\"\",\"\",CONCATENATE(DIGITADOR!$M$1,G156,E156)))","v":""},"",{"$f":"IF(F156=\"\",\"\",VLOOKUP(F156,referentes!$N$2:$Q$161,3,FALSE))","v":""},null,null,"",null,null,null,null,null,null,null,{"$f":"IF(Q156=\"\",\"\",INDEX(referentes!$D$2:$E$65,MATCH(Q156,referentes!$E$2:$E$65,0),1))","v":""},null,null,{"$f":"IF(R156=\"\",\"\",'Otras referencias'!$B$7)","v":""},null,{"$f":"IF(T156=\"\",\"\",'Otras referencias'!$B$8)","v":""},null,null,null,null,null,null,null,null,null,null,null,"",null,null,null,null,null,null,""]
[null,{"$f":"IF(C157=\"\",\"\",IF(COUNTIF($C$4:C157, C157)>1, \"\", C157))","v":""},{"$f":"IF(G157=\"\",\"\",IF(F157=\"\",\"\",CONCATENATE(DIGITADOR!$M$1,G157,E157)))","v":""},"",{"$f":"IF(F157=\"\",\"\",VLOOKUP(F157,referentes!$N$2:$Q$161,3,FALSE))","v":""},null,null,"",null,null,null,null,null,null,null,{"$f":"IF(Q157=\"\",\"\",INDEX(referentes!$D$2:$E$65,MATCH(Q157,referentes!$E$2:$E$65,0),1))","v":""},null,null,{"$f":"IF(R157=\"\",\"\",'Otras referencias'!$B$7)","v":""},null,{"$f":"IF(T157=\"\",\"\",'Otras referencias'!$B$8)","v":""},null,null,null,null,null,null,null,null,null,null,null,"",null,null,null,null,null,null,""]
[null,{"$f":"IF(C158=\"\",\"\",IF(COUNTIF($C$4:C158, C158)>1, \"\", C158))","v":""},{"$f":"IF(G158=\"\",\"\",IF(F158=\"\",\"\",CONCATENATE(DIGITADOR!$M$1,G158,E158)))","v":""},"",{"$f":"IF(F158=\"\",\"\",VLOOKUP(F158,referentes!$N$2:$Q$161,3,FALSE))","v":""},null,null,"",null,null,null,null,null,null,null,{"$f":"IF(Q158=\"\",\"\",INDEX(referentes!$D$2:$E$65,MATCH(Q158,referentes!$E$2:$E$65,0),1))","v":""},null,null,{"$f":"IF(R158=\"\",\"\",'Otras referencias'!$B$7)","v":""},null,{"$f":"IF(T158=\"\",\"\",'Otras referencias'!$B$8)","v":""},null,null,null,null,null,null,null,null,null,null,null,"",null,null,null,null,null,null,""]
[null,{"$f":"IF(C159=\"\",\"\",IF(COUNTIF($C$4:C159, C159)>1, \"\", C159))","v":""},{"$f":"IF(G159=\"\",\"\",IF(F159=\"\",\"\",CONCATENATE(DIGITADOR!$M$1,G159,E159)))","v":""},"",{"$f":"IF(F159=\"\",\"\",VLOOKUP(F159,referentes!$N$2:$Q$161,3,FALSE))","v":""},null,null,"",null,null,null,null,null,null,null,{"$f":"IF(Q159=\"\",\"\",INDEX(referentes!$D$2:$E$65,MATCH(Q159,referentes!$E$2:$E$65,0),1))","v":""},null,null,{"$f":"IF(R159=\"\",\"\",'Otras referencias'!$B$7)","v":""},null,{"$f":"IF(T159=\"\",\"\",'Otras referencias'!$B$8)","v":""},null,null,null,null,null,null,null,null,null,null,null,"",null,null,null,null,null,null,""]
[null,{"$f":"IF(C160=\"\",\"\",IF(COUNTIF($C$4:C160, C160)>1, \"\", C160))","v":""},{"$f":"IF(G160=\"\",\"\",IF(F160=\"\",\"\",CONCATENATE(DIGITADOR!$M$1,G160,E160)))","v":""},"",{"$f":"IF(F160=\"\",\"\",VLOOKUP(F160,referentes!$N$2:$Q$161,3,FALSE))","v":""},null,null,"",null,null,null,null,null,null,null,{"$f":"IF(Q160=\"\",\"\",INDEX(referentes!$D$2:$E$65,MATCH(Q160,referentes!$E$2:$E$65,0),1))","v":""},null,null,{"$f":"IF(R160=\"\",\"\",'Otras referencias'!$B$7)","v":""},null,{"$f":"IF(T160=\"\",\"\",'Otras referencias'!$B$8)","v":""},null,null,null,null,null,null,null,null,null,null,null,"",null,null,null,null,null,null,""]
[null,{"$f":"IF(C161=\"\",\"\",IF(COUNTIF($C$4:C161, C161)>1, \"\", C161))","v":""},{"$f":"IF(G161=\"\",\"\",IF(F161=\"\",\"\",CONCATENATE(DIGITADOR!$M$1,G161,E161)))","v":""},"",{"$f":"IF(F161=\"\",\"\",VLOOKUP(F161,referentes!$N$2:$Q$161,3,FALSE))","v":""},null,null,"",null,null,null,null,null,null,null,{"$f":"IF(Q161=\"\",\"\",INDEX(referentes!$D$2:$E$65,MATCH(Q161,referentes!$E$2:$E$65,0),1))","v":""},null,null,{"$f":"IF(R161=\"\",\"\",'Otras referencias'!$B$7)","v":""},null,{"$f":"IF(T161=\"\",\"\",'Otras referencias'!$B$8)","v":""},null,null,null,null,null,null,null,null,null,null,null,"",null,null,null,null,null,null,""]
[null,{"$f":"IF(C162=\"\",\"\",IF(COUNTIF($C$4:C162, C162)>1, \"\", C162))","v":""},{"$f":"IF(G162=\"\",\"\",IF(F162=\"\",\"\",CONCATENATE(DIGITADOR!$M$1,G162,E162)))","v":""},"",{"$f":"IF(F162=\"\",\"\",VLOOKUP(F162,referentes!$N$2:$Q$161,3,FALSE))","v":""},null,null,"",null,null,null,null,null,null,null,{"$f":"IF(Q162=\"\",\"\",INDEX(referentes!$D$2:$E$65,MATCH(Q162,referentes!$E$2:$E$65,0),1))","v":""},null,null,{"$f":"IF(R162=\"\",\"\",'Otras referencias'!$B$7)","v":""},null,{"$f":"IF(T162=\"\",\"\",'Otras referencias'!$B$8)","v":""},null,null,null,null,null,null,null,null,null,null,null,"",null,null,null,null,null,null,""]
[null,{"$f":"IF(C163=\"\",\"\",IF(COUNTIF($C$4:C163, C163)>1, \"\", C163))","v":""},{"$f":"IF(G163=\"\",\"\",IF(F163=\"\",\"\",CONCATENATE(DIGITADOR!$M$1,G163,E163)))","v":""},"",{"$f":"IF(F163=\"\",\"\",VLOOKUP(F163,referentes!$N$2:$Q$161,3,FALSE))","v":""},null,null,"",null,null,null,null,null,null,null,{"$f":"IF(Q163=\"\",\"\",INDEX(referentes!$D$2:$E$65,MATCH(Q163,referentes!$E$2:$E$65,0),1))","v":""},null,null,{"$f":"IF(R163=\"\",\"\",'Otras referencias'!$B$7)","v":""},null,{"$f":"IF(T163=\"\",\"\",'Otras referencias'!$B$8)","v":""},null,null,null,null,null,null,null,null,null,null,null,"",null,null,null,null,null,null,""]
[null,{"$f":"IF(C164=\"\",\"\",IF(COUNTIF($C$4:C164, C164)>1, \"\", C164))","v":""},{"$f":"IF(G164=\"\",\"\",IF(F164=\"\",\"\",CONCATENATE(DIGITADOR!$M$1,G164,E164)))","v":""},"",{"$f":"IF(F164=\"\",\"\",VLOOKUP(F164,referentes!$N$2:$Q$161,3,FALSE))","v":""},null,null,"",null,null,null,null,null,null,null,{"$f":"IF(Q164=\"\",\"\",INDEX(referentes!$D$2:$E$65,MATCH(Q164,referentes!$E$2:$E$65,0),1))","v":""},null,null,{"$f":"IF(R164=\"\",\"\",'Otras referencias'!$B$7)","v":""},null,{"$f":"IF(T164=\"\",\"\",'Otras referencias'!$B$8)","v":""},null,null,null,null,null,null,null,null,null,null,null,"",null,null,null,null,null,null,""]
[null,{"$f":"IF(C165=\"\",\"\",IF(COUNTIF($C$4:C165, C165)>1, \"\", C165))","v":""},{"$f":"IF(G165=\"\",\"\",IF(F165=\"\",\"\",CONCATENATE(DIGITADOR!$M$1,G165,E165)))","v":""},"",{"$f":"IF(F165=\"\",\"\",VLOOKUP(F165,referentes!$N$2:$Q$161,3,FALSE))","v":""},null,null,"",null,null,null,null,null,null,null,{"$f":"IF(Q165=\"\",\"\",INDEX(referentes!$D$2:$E$65,MATCH(Q165,referentes!$E$2:$E$65,0),1))","v":""},null,null,{"$f":"IF(R165=\"\",\"\",'Otras referencias'!$B$7)","v":""},null,{"$f":"IF(T165=\"\",\"\",'Otras referencias'!$B$8)","v":""},null,null,null,null,null,null,null,null,null,null,null,"",null,null,null,null,null,null,""]
[null,{"$f":"IF(C166=\"\",\"\",IF(COUNTIF($C$4:C166, C166)>1, \"\", C166))","v":""},{"$f":"IF(G166=\"\",\"\",IF(F166=\"\",\"\",CONCATENATE(DIGITADOR!$M$1,G166,E166)))","v":""},"",{"$f":"IF(F166=\"\",\"\",VLOOKUP(F166,referentes!$N$2:$Q$161,3,FALSE))","v":""},null,null,"",null,null,null,null,null,null,null,{"$f":"IF(Q166=\"\",\"\",INDEX(referentes!$D$2:$E$65,MATCH(Q166,referentes!$E$2:$E$65,0),1))","v":""},null,null,{"$f":"IF(R166=\"\",\"\",'Otras referencias'!$B$7)","v":""},null,{"$f":"IF(T166=\"\",\"\",'Otras referencias'!$B$8)","v":""},null,null,null,null,null,null,null,null,null,null,null,"",null,null,null,null,null,null,""]
[null,{"$f":"IF(C167=\"\",\"\",IF(COUNTIF($C$4:C167, C167)>1, \"\", C167))","v":""},{"$f":"IF(G167=\"\",\"\",IF(F167=\"\",\"\",CONCATENATE(DIGITADOR!$M$1,G167,E167)))","v":""},"",{"$f":"IF(F167=\"\",\"\",VLOOKUP(F167,referentes!$N$2:$Q$161,3,FALSE))","v":""},null,null,"",null,null,null,null,null,null,null,{"$f":"IF(Q167=\"\",\"\",INDEX(referentes!$D$2:$E$65,MATCH(Q167,referentes!$E$2:$E$65,0),1))","v":""},null,null,{"$f":"IF(R167=\"\",\"\",'Otras referencias'!$B$7)","v":""},null,{"$f":"IF(T167=\"\",\"\",'Otras referencias'!$B$8)","v":""},null,null,null,null,null,null,null,null,null,null,null,"",null,null,null,null,null,null,""]
[null,{"$f":"IF(C168=\"\",\"\",IF(COUNTIF($C$4:C168, C168)>1, \"\", C168))","v":""},{"$f":"IF(G168=\"\",\"\",IF(F168=\"\",\"\",CONCATENATE(DIGITADOR!$M$1,G168,E168)))","v":""},"",{"$f":"IF(F168=\"\",\"\",VLOOKUP(F168,referentes!$N$2:$Q$161,3,FALSE))","v":""},null,null,"",null,null,null,null,null,null,null,{"$f":"IF(Q168=\"\",\"\",INDEX(referentes!$D$2:$E$65,MATCH(Q168,referentes!$E$2:$E$65,0),1))","v":""},null,null,{"$f":"IF(R168=\"\",\"\",'Otras referencias'!$B$7)","v":""},null,{"$f":"IF(T168=\"\",\"\",'Otras referencias'!$B$8)","v":""},null,null,null,null,null,null,null,null,null,null,null,"",null,null,null,null,null,null,""]
[null,{"$f":"IF(C169=\"\",\"\",IF(COUNTIF($C$4:C169, C169)>1, \"\", C169))","v":""},{"$f":"IF(G169=\"\",\"\",IF(F169=\"\",\"\",CONCATENATE(DIGITADOR!$M$1,G169,E169)))","v":""},"",{"$f":"IF(F169=\"\",\"\",VLOOKUP(F169,referentes!$N$2:$Q$161,3,FALSE))","v":""},null,null,"",null,null,null,null,null,null,null,{"$f":"IF(Q169=\"\",\"\",INDEX(referentes!$D$2:$E$65,MATCH(Q169,referentes!$E$2:$E$65,0),1))","v":""},null,null,{"$f":"IF(R169=\"\",\"\",'Otras referencias'!$B$7)","v":""},null,{"$f":"IF(T169=\"\",\"\",'Otras referencias'!$B$8)","v":""},null,null,null,null,null,null,null,null,null,null,null,"",null,null,null,null,null,null,""]
[null,{"$f":"IF(C170=\"\",\"\",IF(COUNTIF($C$4:C170, C170)>1, \"\", C170))","v":""},{"$f":"IF(G170=\"\",\"\",IF(F170=\"\",\"\",CONCATENATE(DIGITADOR!$M$1,G170,E170)))","v":""},"",{"$f":"IF(F170=\"\",\"\",VLOOKUP(F170,referentes!$N$2:$Q$161,3,FALSE))","v":""},null,null,"",null,null,null,null,null,null,null,{"$f":"IF(Q170=\"\",\"\",INDEX(referentes!$D$2:$E$65,MATCH(Q170,referentes!$E$2:$E$65,0),1))","v":""},null,null,{"$f":"IF(R170=\"\",\"\",'Otras referencias'!$B$7)","v":""},null,{"$f":"IF(T170=\"\",\"\",'Otras referencias'!$B$8)","v":""},null,null,null,null,null,null,null,null,null,null,null,"",null,null,null,null,null,null,""]
[null,{"$f":"IF(C171=\"\",\"\",IF(COUNTIF($C$4:C171, C171)>1, \"\", C171))","v":""},{"$f":"IF(G171=\"\",\"\",IF(F171=\"\",\"\",CONCATENATE(DIGITADOR!$M$1,G171,E171)))","v":""},"",{"$f":"IF(F171=\"\",\"\",VLOOKUP(F171,referentes!$N$2:$Q$161,3,FALSE))","v":""},null,null,"",null,null,null,null,null,null,null,{"$f":"IF(Q171=\"\",\"\",INDEX(referentes!$D$2:$E$65,MATCH(Q171,referentes!$E$2:$E$65,0),1))","v":""},null,null,{"$f":"IF(R171=\"\",\"\",'Otras referencias'!$B$7)","v":""},null,{"$f":"IF(T171=\"\",\"\",'Otras referencias'!$B$8)","v":""},null,null,null,null,null,null,null,null,null,null,null,"",null,null,null,null,null,null,""]
[null,{"$f":"IF(C172=\"\",\"\",IF(COUNTIF($C$4:C172, C172)>1, \"\", C172))","v":""},{"$f":"IF(G172=\"\",\"\",IF(F172=\"\",\"\",CONCATENATE(DIGITADOR!$M$1,G172,E172)))","v":""},"",{"$f":"IF(F172=\"\",\"\",VLOOKUP(F172,referentes!$N$2:$Q$161,3,FALSE))","v":""},null,null,"",null,null,null,null,null,null,null,{"$f":"IF(Q172=\"\",\"\",INDEX(referentes!$D$2:$E$65,MATCH(Q172,referentes!$E$2:$E$65,0),1))","v":""},null,null,{"$f":"IF(R172=\"\",\"\",'Otras referencias'!$B$7)","v":""},null,{"$f":"IF(T172=\"\",\"\",'Otras referencias'!$B$8)","v":""},null,null,null,null,null,null,null,null,null,null,null,"",null,null,null,null,null,null,""]
[null,{"$f":"IF(C173=\"\",\"\",IF(COUNTIF($C$4:C173, C173)>1, \"\", C173))","v":""},{"$f":"IF(G173=\"\",\"\",IF(F173=\"\",\"\",CONCATENATE(DIGITADOR!$M$1,G173,E173)))","v":""},"",{"$f":"IF(F173=\"\",\"\",VLOOKUP(F173,referentes!$N$2:$Q$161,3,FALSE))","v":""},null,null,"",null,null,null,null,null,null,null,{"$f":"IF(Q173=\"\",\"\",INDEX(referentes!$D$2:$E$65,MATCH(Q173,referentes!$E$2:$E$65,0),1))","v":""},null,null,{"$f":"IF(R173=\"\",\"\",'Otras referencias'!$B$7)","v":""},null,{"$f":"IF(T173=\"\",\"\",'Otras referencias'!$B$8)","v":""},null,null,null,null,null,null,null,null,null,null,null,"",null,null,null,null,null,null,""]
[null,{"$f":"IF(C174=\"\",\"\",IF(COUNTIF($C$4:C174, C174)>1, \"\", C174))","v":""},{"$f":"IF(G174=\"\",\"\",IF(F174=\"\",\"\",CONCATENATE(DIGITADOR!$M$1,G174,E174)))","v":""},"",{"$f":"IF(F174=\"\",\"\",VLOOKUP(F174,referentes!$N$2:$Q$161,3,FALSE))","v":""},null,null,"",null,null,null,null,null,null,null,{"$f":"IF(Q174=\"\",\"\",INDEX(referentes!$D$2:$E$65,MATCH(Q174,referentes!$E$2:$E$65,0),1))","v":""},null,null,{"$f":"IF(R174=\"\",\"\",'Otras referencias'!$B$7)","v":""},null,{"$f":"IF(T174=\"\",\"\",'Otras referencias'!$B$8)","v":""},null,null,null,null,null,null,null,null,null,null,null,"",null,null,null,null,null,null,""]
[null,{"$f":"IF(C175=\"\",\"\",IF(COUNTIF($C$4:C175, C175)>1, \"\", C175))","v":""},{"$f":"IF(G175=\"\",\"\",IF(F175=\"\",\"\",CONCATENATE(DIGITADOR!$M$1,G175,E175)))","v":""},"",{"$f":"IF(F175=\"\",\"\",VLOOKUP(F175,referentes!$N$2:$Q$161,3,FALSE))","v":""},null,null,"",null,null,null,null,null,null,null,{"$f":"IF(Q175=\"\",\"\",INDEX(referentes!$D$2:$E$65,MATCH(Q175,referentes!$E$2:$E$65,0),1))","v":""},null,null,{"$f":"IF(R175=\"\",\"\",'Otras referencias'!$B$7)","v":""},null,{"$f":"IF(T175=\"\",\"\",'Otras referencias'!$B$8)","v":""},null,null,null,null,null,null,null,null,null,null,null,"",null,null,null,null,null,null,""]
[null,{"$f":"IF(C176=\"\",\"\",IF(COUNTIF($C$4:C176, C176)>1, \"\", C176))","v":""},{"$f":"IF(G176=\"\",\"\",IF(F176=\"\",\"\",CONCATENATE(DIGITADOR!$M$1,G176,E176)))","v":""},"",{"$f":"IF(F176=\"\",\"\",VLOOKUP(F176,referentes!$N$2:$Q$161,3,FALSE))","v":""},null,null,"",null,null,null,null,null,null,null,{"$f":"IF(Q176=\"\",\"\",INDEX(referentes!$D$2:$E$65,MATCH(Q176,referentes!$E$2:$E$65,0),1))","v":""},null,null,{"$f":"IF(R176=\"\",\"\",'Otras referencias'!$B$7)","v":""},null,{"$f":"IF(T176=\"\",\"\",'Otras referencias'!$B$8)","v":""},null,null,null,null,null,null,null,null,null,null,null,"",null,null,null,null,null,null,""]
[null,{"$f":"IF(C177=\"\",\"\",IF(COUNTIF($C$4:C177, C177)>1, \"\", C177))","v":""},{"$f":"IF(G177=\"\",\"\",IF(F177=\"\",\"\",CONCATENATE(DIGITADOR!$M$1,G177,E177)))","v":""},"",{"$f":"IF(F177=\"\",\"\",VLOOKUP(F177,referentes!$N$2:$Q$161,3,FALSE))","v":""},null,null,"",null,null,null,null,null,null,null,{"$f":"IF(Q177=\"\",\"\",INDEX(referentes!$D$2:$E$65,MATCH(Q177,referentes!$E$2:$E$65,0),1))","v":""},null,null,{"$f":"IF(R177=\"\",\"\",'Otras referencias'!$B$7)","v":""},null,{"$f":"IF(T177=\"\",\"\",'Otras referencias'!$B$8)","v":""},null,null,null,null,null,null,null,null,null,null,null,"",null,null,null,null,null,null,""]
[null,{"$f":"IF(C178=\"\",\"\",IF(COUNTIF($C$4:C178, C178)>1, \"\", C178))","v":""},{"$f":"IF(G178=\"\",\"\",IF(F178=\"\",\"\",CONCATENATE(DIGITADOR!$M$1,G178,E178)))","v":""},"",{"$f":"IF(F178=\"\",\"\",VLOOKUP(F178,referentes!$N$2:$Q$161,3,FALSE))","v":""},null,null,"",null,null,null,null,null,null,null,{"$f":"IF(Q178=\"\",\"\",INDEX(referentes!$D$2:$E$65,MATCH(Q178,referentes!$E$2:$E$65,0),1))","v":""},null,null,{"$f":"IF(R178=\"\",\"\",'Otras referencias'!$B$7)","v":""},null,{"$f":"IF(T178=\"\",\"\",'Otras referencias'!$B$8)","v":""},null,null,null,null,null,null,null,null,null,null,null,"",null,null,null,null,null,null,""]
[null,{"$f":"IF(C179=\"\",\"\",IF(COUNTIF($C$4:C179, C179)>1, \"\", C179))","v":""},{"$f":"IF(G179=\"\",\"\",IF(F179=\"\",\"\",CONCATENATE(DIGITADOR!$M$1,G179,E179)))","v":""},"",{"$f":"IF(F179=\"\",\"\",VLOOKUP(F179,referentes!$N$2:$Q$161,3,FALSE))","v":""},null,null,"",null,null,null,null,null,null,null,{"$f":"IF(Q179=\"\",\"\",INDEX(referentes!$D$2:$E$65,MATCH(Q179,referentes!$E$2:$E$65,0),1))","v":""},null,null,{"$f":"IF(R179=\"\",\"\",'Otras referencias'!$B$7)","v":""},null,{"$f":"IF(T179=\"\",\"\",'Otras referencias'!$B$8)","v":""},null,null,null,null,null,null,null,null,null,null,null,"",null,null,null,null,null,null,""]
[null,{"$f":"IF(C180=\"\",\"\",IF(COUNTIF($C$4:C180, C180)>1, \"\", C180))","v":""},{"$f":"IF(G180=\"\",\"\",IF(F180=\"\",\"\",CONCATENATE(DIGITADOR!$M$1,G180,E180)))","v":""},"",{"$f":"IF(F180=\"\",\"\",VLOOKUP(F180,referentes!$N$2:$Q$161,3,FALSE))","v":""},null,null,"",null,null,null,null,null,null,null,{"$f":"IF(Q180=\"\",\"\",INDEX(referentes!$D$2:$E$65,MATCH(Q180,referentes!$E$2:$E$65,0),1))","v":""},null,null,{"$f":"IF(R180=\"\",\"\",'Otras referencias'!$B$7)","v":""},null,{"$f":"IF(T180=\"\",\"\",'Otras referencias'!$B$8)","v":""},null,null,null,null,null,null,null,null,null,null,null,"",null,null,null,null,null,null,""]
[null,{"$f":"IF(C181=\"\",\"\",IF(COUNTIF($C$4:C181, C181)>1, \"\", C181))","v":""},{"$f":"IF(G181=\"\",\"\",IF(F181=\"\",\"\",CONCATENATE(DIGITADOR!$M$1,G181,E181)))","v":""},"",{"$f":"IF(F181=\"\",\"\",VLOOKUP(F181,referentes!$N$2:$Q$161,3,FALSE))","v":""},null,null,"",null,null,null,null,null,null,null,{"$f":"IF(Q181=\"\",\"\",INDEX(referentes!$D$2:$E$65,MATCH(Q181,referentes!$E$2:$E$65,0),1))","v":""},null,null,{"$f":"IF(R181=\"\",\"\",'Otras referencias'!$B$7)","v":""},null,{"$f":"IF(T181=\"\",\"\",'Otras referencias'!$B$8)","v":""},null,null,null,null,null,null,null,null,null,null,null,"",null,null,null,null,null,null,""]
[null,{"$f":"IF(C182=\"\",\"\",IF(COUNTIF($C$4:C182, C182)>1, \"\", C182))","v":""},{"$f":"IF(G182=\"\",\"\",IF(F182=\"\",\"\",CONCATENATE(DIGITADOR!$M$1,G182,E182)))","v":""},"",{"$f":"IF(F182=\"\",\"\",VLOOKUP(F182,referentes!$N$2:$Q$161,3,FALSE))","v":""},null,null,"",null,null,null,null,null,null,null,{"$f":"IF(Q182=\"\",\"\",INDEX(referentes!$D$2:$E$65,MATCH(Q182,referentes!$E$2:$E$65,0),1))","v":""},null,null,{"$f":"IF(R182=\"\",\"\",'Otras referencias'!$B$7)","v":""},null,{"$f":"IF(T182=\"\",\"\",'Otras referencias'!$B$8)","v":""},null,null,null,null,null,null,null,null,null,null,null,"",null,null,null,null,null,null,""]
[null,{"$f":"IF(C183=\"\",\"\",IF(COUNTIF($C$4:C183, C183)>1, \"\", C183))","v":""},{"$f":"IF(G183=\"\",\"\",IF(F183=\"\",\"\",CONCATENATE(DIGITADOR!$M$1,G183,E183)))","v":""},"",{"$f":"IF(F183=\"\",\"\",VLOOKUP(F183,referentes!$N$2:$Q$161,3,FALSE))","v":""},null,null,"",null,null,null,null,null,null,null,{"$f":"IF(Q183=\"\",\"\",INDEX(referentes!$D$2:$E$65,MATCH(Q183,referentes!$E$2:$E$65,0),1))","v":""},null,null,{"$f":"IF(R183=\"\",\"\",'Otras referencias'!$B$7)","v":""},null,{"$f":"IF(T183=\"\",\"\",'Otras referencias'!$B$8)","v":""},null,null,null,null,null,null,null,null,null,null,null,"",null,null,null,null,null,null,""]
[null,{"$f":"IF(C184=\"\",\"\",IF(COUNTIF($C$4:C184, C184)>1, \"\", C184))","v":""},{"$f":"IF(G184=\"\",\"\",IF(F184=\"\",\"\",CONCATENATE(DIGITADOR!$M$1,G184,E184)))","v":""},"",{"$f":"IF(F184=\"\",\"\",VLOOKUP(F184,referentes!$N$2:$Q$161,3,FALSE))","v":""},null,null,"",null,null,null,null,null,null,null,{"$f":"IF(Q184=\"\",\"\",INDEX(referentes!$D$2:$E$65,MATCH(Q184,referentes!$E$2:$E$65,0),1))","v":""},null,null,{"$f":"IF(R184=\"\",\"\",'Otras referencias'!$B$7)","v":""},null,{"$f":"IF(T184=\"\",\"\",'Otras referencias'!$B$8)","v":""},null,null,null,null,null,null,null,null,null,null,null,"",null,null,null,null,null,null,""]
[null,{"$f":"IF(C185=\"\",\"\",IF(COUNTIF($C$4:C185, C185)>1, \"\", C185))","v":""},{"$f":"IF(G185=\"\",\"\",IF(F185=\"\",\"\",CONCATENATE(DIGITADOR!$M$1,G185,E185)))","v":""},"",{"$f":"IF(F185=\"\",\"\",VLOOKUP(F185,referentes!$N$2:$Q$161,3,FALSE))","v":""},null,null,"",null,null,null,null,null,null,null,{"$f":"IF(Q185=\"\",\"\",INDEX(referentes!$D$2:$E$65,MATCH(Q185,referentes!$E$2:$E$65,0),1))","v":""},null,null,{"$f":"IF(R185=\"\",\"\",'Otras referencias'!$B$7)","v":""},null,{"$f":"IF(T185=\"\",\"\",'Otras referencias'!$B$8)","v":""},null,null,null,null,null,null,null,null,null,null,null,"",null,null,null,null,null,null,""]
[null,{"$f":"IF(C186=\"\",\"\",IF(COUNTIF($C$4:C186, C186)>1, \"\", C186))","v":""},{"$f":"IF(G186=\"\",\"\",IF(F186=\"\",\"\",CONCATENATE(DIGITADOR!$M$1,G186,E186)))","v":""},"",{"$f":"IF(F186=\"\",\"\",VLOOKUP(F186,referentes!$N$2:$Q$161,3,FALSE))","v":""},null,null,"",null,null,null,null,null,null,null,{"$f":"IF(Q186=\"\",\"\",INDEX(referentes!$D$2:$E$65,MATCH(Q186,referentes!$E$2:$E$65,0),1))","v":""},null,null,{"$f":"IF(R186=\"\",\"\",'Otras referencias'!$B$7)","v":""},null,{"$f":"IF(T186=\"\",\"\",'Otras referencias'!$B$8)","v":""},null,null,null,null,null,null,null,null,null,null,null,"",null,null,null,null,null,null,""]
[null,{"$f":"IF(C187=\"\",\"\",IF(COUNTIF($C$4:C187, C187)>1, \"\", C187))","v":""},{"$f":"IF(G187=\"\",\"\",IF(F187=\"\",\"\",CONCATENATE(DIGITADOR!$M$1,G187,E187)))","v":""},"",{"$f":"IF(F187=\"\",\"\",VLOOKUP(F187,referentes!$N$2:$Q$161,3,FALSE))","v":""},null,null,"",null,null,null,null,null,null,null,{"$f":"IF(Q187=\"\",\"\",INDEX(referentes!$D$2:$E$65,MATCH(Q187,referentes!$E$2:$E$65,0),1))","v":""},null,null,{"$f":"IF(R187=\"\",\"\",'Otras referencias'!$B$7)","v":""},null,{"$f":"IF(T187=\"\",\"\",'Otras referencias'!$B$8)","v":""},null,null,null,null,null,null,null,null,null,null,null,"",null,null,null,null,null,null,""]
[null,{"$f":"IF(C188=\"\",\"\",IF(COUNTIF($C$4:C188, C188)>1, \"\", C188))","v":""},{"$f":"IF(G188=\"\",\"\",IF(F188=\"\",\"\",CONCATENATE(DIGITADOR!$M$1,G188,E188)))","v":""},"",{"$f":"IF(F188=\"\",\"\",VLOOKUP(F188,referentes!$N$2:$Q$161,3,FALSE))","v":""},null,null,"",null,null,null,null,null,null,null,{"$f":"IF(Q188=\"\",\"\",INDEX(referentes!$D$2:$E$65,MATCH(Q188,referentes!$E$2:$E$65,0),1))","v":""},null,null,{"$f":"IF(R188=\"\",\"\",'Otras referencias'!$B$7)","v":""},null,{"$f":"IF(T188=\"\",\"\",'Otras referencias'!$B$8)","v":""},null,null,null,null,null,null,null,null,null,null,null,"",null,null,null,null,null,null,""]
[null,{"$f":"IF(C189=\"\",\"\",IF(COUNTIF($C$4:C189, C189)>1, \"\", C189))","v":""},{"$f":"IF(G189=\"\",\"\",IF(F189=\"\",\"\",CONCATENATE(DIGITADOR!$M$1,G189,E189)))","v":""},"",{"$f":"IF(F189=\"\",\"\",VLOOKUP(F189,referentes!$N$2:$Q$161,3,FALSE))","v":""},null,null,"",null,null,null,null,null,null,null,{"$f":"IF(Q189=\"\",\"\",INDEX(referentes!$D$2:$E$65,MATCH(Q189,referentes!$E$2:$E$65,0),1))","v":""},null,null,{"$f":"IF(R189=\"\",\"\",'Otras referencias'!$B$7)","v":""},null,{"$f":"IF(T189=\"\",\"\",'Otras referencias'!$B$8)","v":""},null,null,null,null,null,null,null,null,null,null,null,"",null,null,null,null,null,null,""]
[null,{"$f":"IF(C190=\"\",\"\",IF(COUNTIF($C$4:C190, C190)>1, \"\", C190))","v":""},{"$f":"IF(G190=\"\",\"\",IF(F190=\"\",\"\",CONCATENATE(DIGITADOR!$M$1,G190,E190)))","v":""},"",{"$f":"IF(F190=\"\",\"\",VLOOKUP(F190,referentes!$N$2:$Q$161,3,FALSE))","v":""},null,null,"",null,null,null,null,null,null,null,{"$f":"IF(Q190=\"\",\"\",INDEX(referentes!$D$2:$E$65,MATCH(Q190,referentes!$E$2:$E$65,0),1))","v":""},null,null,{"$f":"IF(R190=\"\",\"\",'Otras referencias'!$B$7)","v":""},null,{"$f":"IF(T190=\"\",\"\",'Otras referencias'!$B$8)","v":""},null,null,null,null,null,null,null,null,null,null,null,"",null,null,null,null,null,null,""]
[null,{"$f":"IF(C191=\"\",\"\",IF(COUNTIF($C$4:C191, C191)>1, \"\", C191))","v":""},{"$f":"IF(G191=\"\",\"\",IF(F191=\"\",\"\",CONCATENATE(DIGITADOR!$M$1,G191,E191)))","v":""},"",{"$f":"IF(F191=\"\",\"\",VLOOKUP(F191,referentes!$N$2:$Q$161,3,FALSE))","v":""},null,null,"",null,null,null,null,null,null,null,{"$f":"IF(Q191=\"\",\"\",INDEX(referentes!$D$2:$E$65,MATCH(Q191,referentes!$E$2:$E$65,0),1))","v":""},null,null,{"$f":"IF(R191=\"\",\"\",'Otras referencias'!$B$7)","v":""},null,{"$f":"IF(T191=\"\",\"\",'Otras referencias'!$B$8)","v":""},null,null,null,null,null,null,null,null,null,null,null,"",null,null,null,null,null,null,""]
[null,{"$f":"IF(C192=\"\",\"\",IF(COUNTIF($C$4:C192, C192)>1, \"\", C192))","v":""},{"$f":"IF(G192=\"\",\"\",IF(F192=\"\",\"\",CONCATENATE(DIGITADOR!$M$1,G192,E192)))","v":""},"",{"$f":"IF(F192=\"\",\"\",VLOOKUP(F192,referentes!$N$2:$Q$161,3,FALSE))","v":""},null,null,"",null,null,null,null,null,null,null,{"$f":"IF(Q192=\"\",\"\",INDEX(referentes!$D$2:$E$65,MATCH(Q192,referentes!$E$2:$E$65,0),1))","v":""},null,null,{"$f":"IF(R192=\"\",\"\",'Otras referencias'!$B$7)","v":""},null,{"$f":"IF(T192=\"\",\"\",'Otras referencias'!$B$8)","v":""},null,null,null,null,null,null,null,null,null,null,null,"",null,null,null,null,null,null,""]
[null,{"$f":"IF(C193=\"\",\"\",IF(COUNTIF($C$4:C193, C193)>1, \"\", C193))","v":""},{"$f":"IF(G193=\"\",\"\",IF(F193=\"\",\"\",CONCATENATE(DIGITADOR!$M$1,G193,E193)))","v":""},"",{"$f":"IF(F193=\"\",\"\",VLOOKUP(F193,referentes!$N$2:$Q$161,3,FALSE))","v":""},null,null,"",null,null,null,null,null,null,null,{"$f":"IF(Q193=\"\",\"\",INDEX(referentes!$D$2:$E$65,MATCH(Q193,referentes!$E$2:$E$65,0),1))","v":""},null,null,{"$f":"IF(R193=\"\",\"\",'Otras referencias'!$B$7)","v":""},null,{"$f":"IF(T193=\"\",\"\",'Otras referencias'!$B$8)","v":""},null,null,null,null,null,null,null,null,null,null,null,"",null,null,null,null,null,null,""]
[null,{"$f":"IF(C194=\"\",\"\",IF(COUNTIF($C$4:C194, C194)>1, \"\", C194))","v":""},{"$f":"IF(G194=\"\",\"\",IF(F194=\"\",\"\",CONCATENATE(DIGITADOR!$M$1,G194,E194)))","v":""},"",{"$f":"IF(F194=\"\",\"\",VLOOKUP(F194,referentes!$N$2:$Q$161,3,FALSE))","v":""},null,null,"",null,null,null,null,null,null,null,{"$f":"IF(Q194=\"\",\"\",INDEX(referentes!$D$2:$E$65,MATCH(Q194,referentes!$E$2:$E$65,0),1))","v":""},null,null,{"$f":"IF(R194=\"\",\"\",'Otras referencias'!$B$7)","v":""},null,{"$f":"IF(T194=\"\",\"\",'Otras referencias'!$B$8)","v":""},null,null,null,null,null,null,null,null,null,null,null,"",null,null,null,null,null,null,""]
[null,{"$f":"IF(C195=\"\",\"\",IF(COUNTIF($C$4:C195, C195)>1, \"\", C195))","v":""},{"$f":"IF(G195=\"\",\"\",IF(F195=\"\",\"\",CONCATENATE(DIGITADOR!$M$1,G195,E195)))","v":""},"",{"$f":"IF(F195=\"\",\"\",VLOOKUP(F195,referentes!$N$2:$Q$161,3,FALSE))","v":""},null,null,"",null,null,null,null,null,null,null,{"$f":"IF(Q195=\"\",\"\",INDEX(referentes!$D$2:$E$65,MATCH(Q195,referentes!$E$2:$E$65,0),1))","v":""},null,null,{"$f":"IF(R195=\"\",\"\",'Otras referencias'!$B$7)","v":""},null,{"$f":"IF(T195=\"\",\"\",'Otras referencias'!$B$8)","v":""},null,null,null,null,null,null,null,null,null,null,null,"",null,null,null,null,null,null,""]
[null,{"$f":"IF(C196=\"\",\"\",IF(COUNTIF($C$4:C196, C196)>1, \"\", C196))","v":""},{"$f":"IF(G196=\"\",\"\",IF(F196=\"\",\"\",CONCATENATE(DIGITADOR!$M$1,G196,E196)))","v":""},"",{"$f":"IF(F196=\"\",\"\",VLOOKUP(F196,referentes!$N$2:$Q$161,3,FALSE))","v":""},null,null,"",null,null,null,null,null,null,null,{"$f":"IF(Q196=\"\",\"\",INDEX(referentes!$D$2:$E$65,MATCH(Q196,referentes!$E$2:$E$65,0),1))","v":""},null,null,{"$f":"IF(R196=\"\",\"\",'Otras referencias'!$B$7)","v":""},null,{"$f":"IF(T196=\"\",\"\",'Otras referencias'!$B$8)","v":""},null,null,null,null,null,null,null,null,null,null,null,"",null,null,null,null,null,null,""]
[null,{"$f":"IF(C197=\"\",\"\",IF(COUNTIF($C$4:C197, C197)>1, \"\", C197))","v":""},{"$f":"IF(G197=\"\",\"\",IF(F197=\"\",\"\",CONCATENATE(DIGITADOR!$M$1,G197,E197)))","v":""},{"$f":"IF(C197=\"\",\"\",CONCATENATE(C197,ROW()-2))","v":""},{"$f":"IF(F197=\"\",\"\",VLOOKUP(F197,referentes!$N$2:$Q$161,3,FALSE))","v":""},null,null,{"$f":"IF(I197=\"\",\"\",TEXT(I197,\"hh:mm\"))","v":""},null,null,null,null,null,null,null,{"$f":"IF(Q197=\"\",\"\",INDEX(referentes!$D$2:$E$65,MATCH(Q197,referentes!$E$2:$E$65,0),1))","v":""},null,null,{"$f":"IF(R197=\"\",\"\",'Otras referencias'!$B$7)","v":""},null,{"$f":"IF(T197=\"\",\"\",'Otras referencias'!$B$8)","v":""},null,null,null,null,null,null,null,null,null,null,null,{"$f":"CONCATENATE(\n                                IF(AA197<>\"\",CONCATENATE(Z197,\", \",\n                                                      IF(AB197<>\"\",CONCATENATE(AA197,\", \",\n                                                           IF(AC197<>\"\",CONCATENATE(AB197,\", \",\n                                                               IF(AD197<>\"\",CONCATENATE(AC197,\", \",\n                                                                   IF(AE197<>\"\",CONCATENATE(AD197,\", \",\n                                                                        IF(AF197<>\"\",CONCATENATE(AE197,\", \", AF197), AE197)\n                                                                      ), AD197)\n                                                                   ), AC197)\n                                                               ), AB197)\n                                                       ), AA197)\n                                ),Z197)\n)","v":""},null,null,null,null,null,null,{"$f":"CONCATENATE(\n                                IF(AI197<>\"\",CONCATENATE(AH197,\", \",\n                                                      IF(AJ197<>\"\",CONCATENATE(AI197,\", \",\n                                                           IF(AK197<>\"\",CONCATENATE(AJ197,\", \",\n                                                               IF(AL197<>\"\",CONCATENATE(AK197,\", \",\n                                                                       IF(AM197<>\"\",CONCATENATE(AL197,\", \", AM197), AL197)\n                                                                      ), AK197)\n                                                               ), AJ197)\n                                                       ), AI197)\n                                ),AH197)\n)","v":""}]
[null,{"$f":"IF(C198=\"\",\"\",IF(COUNTIF($C$4:C198, C198)>1, \"\", C198))","v":""},{"$f":"IF(G198=\"\",\"\",IF(F198=\"\",\"\",CONCATENATE(DIGITADOR!$M$1,G198,E198)))","v":""},"",{"$f":"IF(F198=\"\",\"\",VLOOKUP(F198,referentes!$N$2:$Q$161,3,FALSE))","v":""},null,null,"",null,null,null,null,null,null,null,{"$f":"IF(Q198=\"\",\"\",INDEX(referentes!$D$2:$E$65,MATCH(Q198,referentes!$E$2:$E$65,0),1))","v":""},null,null,{"$f":"IF(R198=\"\",\"\",'Otras referencias'!$B$7)","v":""},null,{"$f":"IF(T198=\"\",\"\",'Otras referencias'!$B$8)","v":""},null,null,null,null,null,null,null,null,null,null,null,"",null,null,null,null,null,null,""]
[null,{"$f":"IF(C199=\"\",\"\",IF(COUNTIF($C$4:C199, C199)>1, \"\", C199))","v":""},{"$f":"IF(G199=\"\",\"\",IF(F199=\"\",\"\",CONCATENATE(DIGITADOR!$M$1,G199,E199)))","v":""},"",{"$f":"IF(F199=\"\",\"\",VLOOKUP(F199,referentes!$N$2:$Q$161,3,FALSE))","v":""},null,null,"",null,null,null,null,null,null,null,{"$f":"IF(Q199=\"\",\"\",INDEX(referentes!$D$2:$E$65,MATCH(Q199,referentes!$E$2:$E$65,0),1))","v":""},null,null,{"$f":"IF(R199=\"\",\"\",'Otras referencias'!$B$7)","v":""},null,{"$f":"IF(T199=\"\",\"\",'Otras referencias'!$B$8)","v":""},null,null,null,null,null,null,null,null,null,null,null,"",null,null,null,null,null,null,""]
[null,{"$f":"IF(C200=\"\",\"\",IF(COUNTIF($C$4:C200, C200)>1, \"\", C200))","v":""},{"$f":"IF(G200=\"\",\"\",IF(F200=\"\",\"\",CONCATENATE(DIGITADOR!$M$1,G200,E200)))","v":""},"",{"$f":"IF(F200=\"\",\"\",VLOOKUP(F200,referentes!$N$2:$Q$161,3,FALSE))","v":""},null,null,"",null,null,null,null,null,null,null,{"$f":"IF(Q200=\"\",\"\",INDEX(referentes!$D$2:$E$65,MATCH(Q200,referentes!$E$2:$E$65,0),1))","v":""},null,null,{"$f":"IF(R200=\"\",\"\",'Otras referencias'!$B$7)","v":""},null,{"$f":"IF(T200=\"\",\"\",'Otras referencias'!$B$8)","v":""},null,null,null,null,null,null,null,null,null,null,null,"",null,null,null,null,null,null,""]
[null,{"$f":"IF(C201=\"\",\"\",IF(COUNTIF($C$4:C201, C201)>1, \"\", C201))","v":""},{"$f":"IF(G201=\"\",\"\",IF(F201=\"\",\"\",CONCATENATE(DIGITADOR!$M$1,G201,E201)))","v":""},"",{"$f":"IF(F201=\"\",\"\",VLOOKUP(F201,referentes!$N$2:$Q$161,3,FALSE))","v":""},null,null,"",null,null,null,null,null,null,null,{"$f":"IF(Q201=\"\",\"\",INDEX(referentes!$D$2:$E$65,MATCH(Q201,referentes!$E$2:$E$65,0),1))","v":""},null,null,{"$f":"IF(R201=\"\",\"\",'Otras referencias'!$B$7)","v":""},null,{"$f":"IF(T201=\"\",\"\",'Otras referencias'!$B$8)","v":""},null,null,null,null,null,null,null,null,null,null,null,"",null,null,null,null,null,null,""]
[null,{"$f":"IF(C202=\"\",\"\",IF(COUNTIF($C$4:C202, C202)>1, \"\", C202))","v":""},{"$f":"IF(G202=\"\",\"\",IF(F202=\"\",\"\",CONCATENATE(DIGITADOR!$M$1,G202,E202)))","v":""},"",{"$f":"IF(F202=\"\",\"\",VLOOKUP(F202,referentes!$N$2:$Q$161,3,FALSE))","v":""},null,null,"",null,null,null,null,null,null,null,{"$f":"IF(Q202=\"\",\"\",INDEX(referentes!$D$2:$E$65,MATCH(Q202,referentes!$E$2:$E$65,0),1))","v":""},null,null,{"$f":"IF(R202=\"\",\"\",'Otras referencias'!$B$7)","v":""},null,{"$f":"IF(T202=\"\",\"\",'Otras referencias'!$B$8)","v":""},null,null,null,null,null,null,null,null,null,null,null,"",null,null,null,null,null,null,""]
[null,{"$f":"IF(C203=\"\",\"\",IF(COUNTIF($C$4:C203, C203)>1, \"\", C203))","v":""},{"$f":"IF(G203=\"\",\"\",IF(F203=\"\",\"\",CONCATENATE(DIGITADOR!$M$1,G203,E203)))","v":""},"",{"$f":"IF(F203=\"\",\"\",VLOOKUP(F203,referentes!$N$2:$Q$161,3,FALSE))","v":""},null,null,"",null,null,null,null,null,null,null,{"$f":"IF(Q203=\"\",\"\",INDEX(referentes!$D$2:$E$65,MATCH(Q203,referentes!$E$2:$E$65,0),1))","v":""},null,null,{"$f":"IF(R203=\"\",\"\",'Otras referencias'!$B$7)","v":""},null,{"$f":"IF(T203=\"\",\"\",'Otras referencias'!$B$8)","v":""},null,null,null,null,null,null,null,null,null,null,null,"",null,null,null,null,null,null,""]
[null,{"$f":"IF(C204=\"\",\"\",IF(COUNTIF($C$4:C204, C204)>1, \"\", C204))","v":""},{"$f":"IF(G204=\"\",\"\",IF(F204=\"\",\"\",CONCATENATE(DIGITADOR!$M$1,G204,E204)))","v":""},"",{"$f":"IF(F204=\"\",\"\",VLOOKUP(F204,referentes!$N$2:$Q$161,3,FALSE))","v":""},null,null,"",null,null,null,null,null,null,null,{"$f":"IF(Q204=\"\",\"\",INDEX(referentes!$D$2:$E$65,MATCH(Q204,referentes!$E$2:$E$65,0),1))","v":""},null,null,{"$f":"IF(R204=\"\",\"\",'Otras referencias'!$B$7)","v":""},null,{"$f":"IF(T204=\"\",\"\",'Otras referencias'!$B$8)","v":""},null,null,null,null,null,null,null,null,null,null,null,"",null,null,null,null,null,null,""]
[null,{"$f":"IF(C205=\"\",\"\",IF(COUNTIF($C$4:C205, C205)>1, \"\", C205))","v":""},{"$f":"IF(G205=\"\",\"\",IF(F205=\"\",\"\",CONCATENATE(DIGITADOR!$M$1,G205,E205)))","v":""},"",{"$f":"IF(F205=\"\",\"\",VLOOKUP(F205,referentes!$N$2:$Q$161,3,FALSE))","v":""},null,null,"",null,null,null,null,null,null,null,{"$f":"IF(Q205=\"\",\"\",INDEX(referentes!$D$2:$E$65,MATCH(Q205,referentes!$E$2:$E$65,0),1))","v":""},null,null,{"$f":"IF(R205=\"\",\"\",'Otras referencias'!$B$7)","v":""},null,{"$f":"IF(T205=\"\",\"\",'Otras referencias'!$B$8)","v":""},null,null,null,null,null,null,null,null,null,null,null,"",null,null,null,null,null,null,""]
[null,{"$f":"IF(C206=\"\",\"\",IF(COUNTIF($C$4:C206, C206)>1, \"\", C206))","v":""},{"$f":"IF(G206=\"\",\"\",IF(F206=\"\",\"\",CONCATENATE(DIGITADOR!$M$1,G206,E206)))","v":""},"",{"$f":"IF(F206=\"\",\"\",VLOOKUP(F206,referentes!$N$2:$Q$161,3,FALSE))","v":""},null,null,"",null,null,null,null,null,null,null,{"$f":"IF(Q206=\"\",\"\",INDEX(referentes!$D$2:$E$65,MATCH(Q206,referentes!$E$2:$E$65,0),1))","v":""},null,null,{"$f":"IF(R206=\"\",\"\",'Otras referencias'!$B$7)","v":""},null,{"$f":"IF(T206=\"\",\"\",'Otras referencias'!$B$8)","v":""},null,null,null,null,null,null,null,null,null,null,null,"",null,null,null,null,null,null,""]
[null,{"$f":"IF(C207=\"\",\"\",IF(COUNTIF($C$4:C207, C207)>1, \"\", C207))","v":""},{"$f":"IF(G207=\"\",\"\",IF(F207=\"\",\"\",CONCATENATE(DIGITADOR!$M$1,G207,E207)))","v":""},"",{"$f":"IF(F207=\"\",\"\",VLOOKUP(F207,referentes!$N$2:$Q$161,3,FALSE))","v":""},null,null,"",null,null,null,null,null,null,null,{"$f":"IF(Q207=\"\",\"\",INDEX(referentes!$D$2:$E$65,MATCH(Q207,referentes!$E$2:$E$65,0),1))","v":""},null,null,{"$f":"IF(R207=\"\",\"\",'Otras referencias'!$B$7)","v":""},null,{"$f":"IF(T207=\"\",\"\",'Otras referencias'!$B$8)","v":""},null,null,null,null,null,null,null,null,null,null,null,"",null,null,null,null,null,null,""]
[null,{"$f":"IF(C208=\"\",\"\",IF(COUNTIF($C$4:C208, C208)>1, \"\", C208))","v":""},{"$f":"IF(G208=\"\",\"\",IF(F208=\"\",\"\",CONCATENATE(DIGITADOR!$M$1,G208,E208)))","v":""},"",{"$f":"IF(F208=\"\",\"\",VLOOKUP(F208,referentes!$N$2:$Q$161,3,FALSE))","v":""},null,null,"",null,null,null,null,null,null,null,{"$f":"IF(Q208=\"\",\"\",INDEX(referentes!$D$2:$E$65,MATCH(Q208,referentes!$E$2:$E$65,0),1))","v":""},null,null,{"$f":"IF(R208=\"\",\"\",'Otras referencias'!$B$7)","v":""},null,{"$f":"IF(T208=\"\",\"\",'Otras referencias'!$B$8)","v":""},null,null,null,null,null,null,null,null,null,null,null,"",null,null,null,null,null,null,""]
[null,{"$f":"IF(C209=\"\",\"\",IF(COUNTIF($C$4:C209, C209)>1, \"\", C209))","v":""},{"$f":"IF(G209=\"\",\"\",IF(F209=\"\",\"\",CONCATENATE(DIGITADOR!$M$1,G209,E209)))","v":""},"",{"$f":"IF(F209=\"\",\"\",VLOOKUP(F209,referentes!$N$2:$Q$161,3,FALSE))","v":""},null,null,"",null,null,null,null,null,null,null,{"$f":"IF(Q209=\"\",\"\",INDEX(referentes!$D$2:$E$65,MATCH(Q209,referentes!$E$2:$E$65,0),1))","v":""},null,null,{"$f":"IF(R209=\"\",\"\",'Otras referencias'!$B$7)","v":""},null,{"$f":"IF(T209=\"\",\"\",'Otras referencias'!$B$8)","v":""},null,null,null,null,null,null,null,null,null,null,null,"",null,null,null,null,null,null,""]
[null,{"$f":"IF(C210=\"\",\"\",IF(COUNTIF($C$4:C210, C210)>1, \"\", C210))","v":""},{"$f":"IF(G210=\"\",\"\",IF(F210=\"\",\"\",CONCATENATE(DIGITADOR!$M$1,G210,E210)))","v":""},"",{"$f":"IF(F210=\"\",\"\",VLOOKUP(F210,referentes!$N$2:$Q$161,3,FALSE))","v":""},null,null,"",null,null,null,null,null,null,null,{"$f":"IF(Q210=\"\",\"\",INDEX(referentes!$D$2:$E$65,MATCH(Q210,referentes!$E$2:$E$65,0),1))","v":""},null,null,{"$f":"IF(R210=\"\",\"\",'Otras referencias'!$B$7)","v":""},null,{"$f":"IF(T210=\"\",\"\",'Otras referencias'!$B$8)","v":""},null,null,null,null,null,null,null,null,null,null,null,"",null,null,null,null,null,null,""]
[null,{"$f":"IF(C211=\"\",\"\",IF(COUNTIF($C$4:C211, C211)>1, \"\", C211))","v":""},{"$f":"IF(G211=\"\",\"\",IF(F211=\"\",\"\",CONCATENATE(DIGITADOR!$M$1,G211,E211)))","v":""},"",{"$f":"IF(F211=\"\",\"\",VLOOKUP(F211,referentes!$N$2:$Q$161,3,FALSE))","v":""},null,null,"",null,null,null,null,null,null,null,{"$f":"IF(Q211=\"\",\"\",INDEX(referentes!$D$2:$E$65,MATCH(Q211,referentes!$E$2:$E$65,0),1))","v":""},null,null,{"$f":"IF(R211=\"\",\"\",'Otras referencias'!$B$7)","v":""},null,{"$f":"IF(T211=\"\",\"\",'Otras referencias'!$B$8)","v":""},null,null,null,null,null,null,null,null,null,null,null,"",null,null,null,null,null,null,""]
[null,{"$f":"IF(C212=\"\",\"\",IF(COUNTIF($C$4:C212, C212)>1, \"\", C212))","v":""},{"$f":"IF(G212=\"\",\"\",IF(F212=\"\",\"\",CONCATENATE(DIGITADOR!$M$1,G212,E212)))","v":""},"",{"$f":"IF(F212=\"\",\"\",VLOOKUP(F212,referentes!$N$2:$Q$161,3,FALSE))","v":""},null,null,"",null,null,null,null,null,null,null,{"$f":"IF(Q212=\"\",\"\",INDEX(referentes!$D$2:$E$65,MATCH(Q212,referentes!$E$2:$E$65,0),1))","v":""},null,null,{"$f":"IF(R212=\"\",\"\",'Otras referencias'!$B$7)","v":""},null,{"$f":"IF(T212=\"\",\"\",'Otras referencias'!$B$8)","v":""},null,null,null,null,null,null,null,null,null,null,null,"",null,null,null,null,null,null,""]
[null,{"$f":"IF(C213=\"\",\"\",IF(COUNTIF($C$4:C213, C213)>1, \"\", C213))","v":""},{"$f":"IF(G213=\"\",\"\",IF(F213=\"\",\"\",CONCATENATE(DIGITADOR!$M$1,G213,E213)))","v":""},"",{"$f":"IF(F213=\"\",\"\",VLOOKUP(F213,referentes!$N$2:$Q$161,3,FALSE))","v":""},null,null,"",null,null,null,null,null,null,null,{"$f":"IF(Q213=\"\",\"\",INDEX(referentes!$D$2:$E$65,MATCH(Q213,referentes!$E$2:$E$65,0),1))","v":""},null,null,{"$f":"IF(R213=\"\",\"\",'Otras referencias'!$B$7)","v":""},null,{"$f":"IF(T213=\"\",\"\",'Otras referencias'!$B$8)","v":""},null,null,null,null,null,null,null,null,null,null,null,"",null,null,null,null,null,null,""]
[null,{"$f":"IF(C214=\"\",\"\",IF(COUNTIF($C$4:C214, C214)>1, \"\", C214))","v":""},{"$f":"IF(G214=\"\",\"\",IF(F214=\"\",\"\",CONCATENATE(DIGITADOR!$M$1,G214,E214)))","v":""},"",{"$f":"IF(F214=\"\",\"\",VLOOKUP(F214,referentes!$N$2:$Q$161,3,FALSE))","v":""},null,null,"",null,null,null,null,null,null,null,{"$f":"IF(Q214=\"\",\"\",INDEX(referentes!$D$2:$E$65,MATCH(Q214,referentes!$E$2:$E$65,0),1))","v":""},null,null,{"$f":"IF(R214=\"\",\"\",'Otras referencias'!$B$7)","v":""},null,{"$f":"IF(T214=\"\",\"\",'Otras referencias'!$B$8)","v":""},null,null,null,null,null,null,null,null,null,null,null,"",null,null,null,null,null,null,""]
[null,{"$f":"IF(C215=\"\",\"\",IF(COUNTIF($C$4:C215, C215)>1, \"\", C215))","v":""},{"$f":"IF(G215=\"\",\"\",IF(F215=\"\",\"\",CONCATENATE(DIGITADOR!$M$1,G215,E215)))","v":""},"",{"$f":"IF(F215=\"\",\"\",VLOOKUP(F215,referentes!$N$2:$Q$161,3,FALSE))","v":""},null,null,"",null,null,null,null,null,null,null,{"$f":"IF(Q215=\"\",\"\",INDEX(referentes!$D$2:$E$65,MATCH(Q215,referentes!$E$2:$E$65,0),1))","v":""},null,null,{"$f":"IF(R215=\"\",\"\",'Otras referencias'!$B$7)","v":""},null,{"$f":"IF(T215=\"\",\"\",'Otras referencias'!$B$8)","v":""},null,null,null,null,null,null,null,null,null,null,null,"",null,null,null,null,null,null,""]
[null,{"$f":"IF(C216=\"\",\"\",IF(COUNTIF($C$4:C216, C216)>1, \"\", C216))","v":""},{"$f":"IF(G216=\"\",\"\",IF(F216=\"\",\"\",CONCATENATE(DIGITADOR!$M$1,G216,E216)))","v":""},"",{"$f":"IF(F216=\"\",\"\",VLOOKUP(F216,referentes!$N$2:$Q$161,3,FALSE))","v":""},null,null,"",null,null,null,null,null,null,null,{"$f":"IF(Q216=\"\",\"\",INDEX(referentes!$D$2:$E$65,MATCH(Q216,referentes!$E$2:$E$65,0),1))","v":""},null,null,{"$f":"IF(R216=\"\",\"\",'Otras referencias'!$B$7)","v":""},null,{"$f":"IF(T216=\"\",\"\",'Otras referencias'!$B$8)","v":""},null,null,null,null,null,null,null,null,null,null,null,"",null,null,null,null,null,null,""]
[null,{"$f":"IF(C217=\"\",\"\",IF(COUNTIF($C$4:C217, C217)>1, \"\", C217))","v":""},{"$f":"IF(G217=\"\",\"\",IF(F217=\"\",\"\",CONCATENATE(DIGITADOR!$M$1,G217,E217)))","v":""},"",{"$f":"IF(F217=\"\",\"\",VLOOKUP(F217,referentes!$N$2:$Q$161,3,FALSE))","v":""},null,null,"",null,null,null,null,null,null,null,{"$f":"IF(Q217=\"\",\"\",INDEX(referentes!$D$2:$E$65,MATCH(Q217,referentes!$E$2:$E$65,0),1))","v":""},null,null,{"$f":"IF(R217=\"\",\"\",'Otras referencias'!$B$7)","v":""},null,{"$f":"IF(T217=\"\",\"\",'Otras referencias'!$B$8)","v":""},null,null,null,null,null,null,null,null,null,null,null,"",null,null,null,null,null,null,""]
[null,{"$f":"IF(C218=\"\",\"\",IF(COUNTIF($C$4:C218, C218)>1, \"\", C218))","v":""},{"$f":"IF(G218=\"\",\"\",IF(F218=\"\",\"\",CONCATENATE(DIGITADOR!$M$1,G218,E218)))","v":""},"",{"$f":"IF(F218=\"\",\"\",VLOOKUP(F218,referentes!$N$2:$Q$161,3,FALSE))","v":""},null,null,"",null,null,null,null,null,null,null,{"$f":"IF(Q218=\"\",\"\",INDEX(referentes!$D$2:$E$65,MATCH(Q218,referentes!$E$2:$E$65,0),1))","v":""},null,null,{"$f":"IF(R218=\"\",\"\",'Otras referencias'!$B$7)","v":""},null,{"$f":"IF(T218=\"\",\"\",'Otras referencias'!$B$8)","v":""},null,null,null,null,null,null,null,null,null,null,null,"",null,null,null,null,null,null,""]
[null,{"$f":"IF(C219=\"\",\"\",IF(COUNTIF($C$4:C219, C219)>1, \"\", C219))","v":""},{"$f":"IF(G219=\"\",\"\",IF(F219=\"\",\"\",CONCATENATE(DIGITADOR!$M$1,G219,E219)))","v":""},"",{"$f":"IF(F219=\"\",\"\",VLOOKUP(F219,referentes!$N$2:$Q$161,3,FALSE))","v":""},null,null,"",null,null,null,null,null,null,null,{"$f":"IF(Q219=\"\",\"\",INDEX(referentes!$D$2:$E$65,MATCH(Q219,referentes!$E$2:$E$65,0),1))","v":""},null,null,{"$f":"IF(R219=\"\",\"\",'Otras referencias'!$B$7)","v":""},null,{"$f":"IF(T219=\"\",\"\",'Otras referencias'!$B$8)","v":""},null,null,null,null,null,null,null,null,null,null,null,"",null,null,null,null,null,null,""]
[null,{"$f":"IF(C220=\"\",\"\",IF(COUNTIF($C$4:C220, C220)>1, \"\", C220))","v":""},{"$f":"IF(G220=\"\",\"\",IF(F220=\"\",\"\",CONCATENATE(DIGITADOR!$M$1,G220,E220)))","v":""},"",{"$f":"IF(F220=\"\",\"\",VLOOKUP(F220,referentes!$N$2:$Q$161,3,FALSE))","v":""},null,null,"",null,null,null,null,null,null,null,{"$f":"IF(Q220=\"\",\"\",INDEX(referentes!$D$2:$E$65,MATCH(Q220,referentes!$E$2:$E$65,0),1))","v":""},null,null,{"$f":"IF(R220=\"\",\"\",'Otras referencias'!$B$7)","v":""},null,{"$f":"IF(T220=\"\",\"\",'Otras referencias'!$B$8)","v":""},null,null,null,null,null,null,null,null,null,null,null,"",null,null,null,null,null,null,""]
[null,{"$f":"IF(C221=\"\",\"\",IF(COUNTIF($C$4:C221, C221)>1, \"\", C221))","v":""},{"$f":"IF(G221=\"\",\"\",IF(F221=\"\",\"\",CONCATENATE(DIGITADOR!$M$1,G221,E221)))","v":""},"",{"$f":"IF(F221=\"\",\"\",VLOOKUP(F221,referentes!$N$2:$Q$161,3,FALSE))","v":""},null,null,"",null,null,null,null,null,null,null,{"$f":"IF(Q221=\"\",\"\",INDEX(referentes!$D$2:$E$65,MATCH(Q221,referentes!$E$2:$E$65,0),1))","v":""},null,null,{"$f":"IF(R221=\"\",\"\",'Otras referencias'!$B$7)","v":""},null,{"$f":"IF(T221=\"\",\"\",'Otras referencias'!$B$8)","v":""},null,null,null,null,null,null,null,null,null,null,null,"",null,null,null,null,null,null,""]
[null,{"$f":"IF(C222=\"\",\"\",IF(COUNTIF($C$4:C222, C222)>1, \"\", C222))","v":""},{"$f":"IF(G222=\"\",\"\",IF(F222=\"\",\"\",CONCATENATE(DIGITADOR!$M$1,G222,E222)))","v":""},"",{"$f":"IF(F222=\"\",\"\",VLOOKUP(F222,referentes!$N$2:$Q$161,3,FALSE))","v":""},null,null,"",null,null,null,null,null,null,null,{"$f":"IF(Q222=\"\",\"\",INDEX(referentes!$D$2:$E$65,MATCH(Q222,referentes!$E$2:$E$65,0),1))","v":""},null,null,{"$f":"IF(R222=\"\",\"\",'Otras referencias'!$B$7)","v":""},null,{"$f":"IF(T222=\"\",\"\",'Otras referencias'!$B$8)","v":""},null,null,null,null,null,null,null,null,null,null,null,"",null,null,null,null,null,null,""]
[null,{"$f":"IF(C223=\"\",\"\",IF(COUNTIF($C$4:C223, C223)>1, \"\", C223))","v":""},{"$f":"IF(G223=\"\",\"\",IF(F223=\"\",\"\",CONCATENATE(DIGITADOR!$M$1,G223,E223)))","v":""},"",{"$f":"IF(F223=\"\",\"\",VLOOKUP(F223,referentes!$N$2:$Q$161,3,FALSE))","v":""},null,null,"",null,null,null,null,null,null,null,{"$f":"IF(Q223=\"\",\"\",INDEX(referentes!$D$2:$E$65,MATCH(Q223,referentes!$E$2:$E$65,0),1))","v":""},null,null,{"$f":"IF(R223=\"\",\"\",'Otras referencias'!$B$7)","v":""},null,{"$f":"IF(T223=\"\",\"\",'Otras referencias'!$B$8)","v":""},null,null,null,null,null,null,null,null,null,null,null,"",null,null,null,null,null,null,""]
[null,{"$f":"IF(C224=\"\",\"\",IF(COUNTIF($C$4:C224, C224)>1, \"\", C224))","v":""},{"$f":"IF(G224=\"\",\"\",IF(F224=\"\",\"\",CONCATENATE(DIGITADOR!$M$1,G224,E224)))","v":""},"",{"$f":"IF(F224=\"\",\"\",VLOOKUP(F224,referentes!$N$2:$Q$161,3,FALSE))","v":""},null,null,"",null,null,null,null,null,null,null,{"$f":"IF(Q224=\"\",\"\",INDEX(referentes!$D$2:$E$65,MATCH(Q224,referentes!$E$2:$E$65,0),1))","v":""},null,null,{"$f":"IF(R224=\"\",\"\",'Otras referencias'!$B$7)","v":""},null,{"$f":"IF(T224=\"\",\"\",'Otras referencias'!$B$8)","v":""},null,null,null,null,null,null,null,null,null,null,null,"",null,null,null,null,null,null,""]
[null,{"$f":"IF(C225=\"\",\"\",IF(COUNTIF($C$4:C225, C225)>1, \"\", C225))","v":""},{"$f":"IF(G225=\"\",\"\",IF(F225=\"\",\"\",CONCATENATE(DIGITADOR!$M$1,G225,E225)))","v":""},"",{"$f":"IF(F225=\"\",\"\",VLOOKUP(F225,referentes!$N$2:$Q$161,3,FALSE))","v":""},null,null,"",null,null,null,null,null,null,null,{"$f":"IF(Q225=\"\",\"\",INDEX(referentes!$D$2:$E$65,MATCH(Q225,referentes!$E$2:$E$65,0),1))","v":""},null,null,{"$f":"IF(R225=\"\",\"\",'Otras referencias'!$B$7)","v":""},null,{"$f":"IF(T225=\"\",\"\",'Otras referencias'!$B$8)","v":""},null,null,null,null,null,null,null,null,null,null,null,"",null,null,null,null,null,null,""]
[null,{"$f":"IF(C226=\"\",\"\",IF(COUNTIF($C$4:C226, C226)>1, \"\", C226))","v":""},{"$f":"IF(G226=\"\",\"\",IF(F226=\"\",\"\",CONCATENATE(DIGITADOR!$M$1,G226,E226)))","v":""},"",{"$f":"IF(F226=\"\",\"\",VLOOKUP(F226,referentes!$N$2:$Q$161,3,FALSE))","v":""},null,null,"",null,null,null,null,null,null,null,{"$f":"IF(Q226=\"\",\"\",INDEX(referentes!$D$2:$E$65,MATCH(Q226,referentes!$E$2:$E$65,0),1))","v":""},null,null,{"$f":"IF(R226=\"\",\"\",'Otras referencias'!$B$7)","v":""},null,{"$f":"IF(T226=\"\",\"\",'Otras referencias'!$B$8)","v":""},null,null,null,null,null,null,null,null,null,null,null,"",null,null,null,null,null,null,""]
[null,{"$f":"IF(C227=\"\",\"\",IF(COUNTIF($C$4:C227, C227)>1, \"\", C227))","v":""},{"$f":"IF(G227=\"\",\"\",IF(F227=\"\",\"\",CONCATENATE(DIGITADOR!$M$1,G227,E227)))","v":""},"",{"$f":"IF(F227=\"\",\"\",VLOOKUP(F227,referentes!$N$2:$Q$161,3,FALSE))","v":""},null,null,"",null,null,null,null,null,null,null,{"$f":"IF(Q227=\"\",\"\",INDEX(referentes!$D$2:$E$65,MATCH(Q227,referentes!$E$2:$E$65,0),1))","v":""},null,null,{"$f":"IF(R227=\"\",\"\",'Otras referencias'!$B$7)","v":""},null,{"$f":"IF(T227=\"\",\"\",'Otras referencias'!$B$8)","v":""},null,null,null,null,null,null,null,null,null,null,null,"",null,null,null,null,null,null,""]
[null,{"$f":"IF(C228=\"\",\"\",IF(COUNTIF($C$4:C228, C228)>1, \"\", C228))","v":""},{"$f":"IF(G228=\"\",\"\",IF(F228=\"\",\"\",CONCATENATE(DIGITADOR!$M$1,G228,E228)))","v":""},"",{"$f":"IF(F228=\"\",\"\",VLOOKUP(F228,referentes!$N$2:$Q$161,3,FALSE))","v":""},null,null,"",null,null,null,null,null,null,null,{"$f":"IF(Q228=\"\",\"\",INDEX(referentes!$D$2:$E$65,MATCH(Q228,referentes!$E$2:$E$65,0),1))","v":""},null,null,{"$f":"IF(R228=\"\",\"\",'Otras referencias'!$B$7)","v":""},null,{"$f":"IF(T228=\"\",\"\",'Otras referencias'!$B$8)","v":""},null,null,null,null,null,null,null,null,null,null,null,"",null,null,null,null,null,null,""]
[null,{"$f":"IF(C229=\"\",\"\",IF(COUNTIF($C$4:C229, C229)>1, \"\", C229))","v":""},{"$f":"IF(G229=\"\",\"\",IF(F229=\"\",\"\",CONCATENATE(DIGITADOR!$M$1,G229,E229)))","v":""},"",{"$f":"IF(F229=\"\",\"\",VLOOKUP(F229,referentes!$N$2:$Q$161,3,FALSE))","v":""},null,null,"",null,null,null,null,null,null,null,{"$f":"IF(Q229=\"\",\"\",INDEX(referentes!$D$2:$E$65,MATCH(Q229,referentes!$E$2:$E$65,0),1))","v":""},null,null,{"$f":"IF(R229=\"\",\"\",'Otras referencias'!$B$7)","v":""},null,{"$f":"IF(T229=\"\",\"\",'Otras referencias'!$B$8)","v":""},null,null,null,null,null,null,null,null,null,null,null,"",null,null,null,null,null,null,""]
[null,{"$f":"IF(C230=\"\",\"\",IF(COUNTIF($C$4:C230, C230)>1, \"\", C230))","v":""},{"$f":"IF(G230=\"\",\"\",IF(F230=\"\",\"\",CONCATENATE(DIGITADOR!$M$1,G230,E230)))","v":""},"",{"$f":"IF(F230=\"\",\"\",VLOOKUP(F230,referentes!$N$2:$Q$161,3,FALSE))","v":""},null,null,"",null,null,null,null,null,null,null,{"$f":"IF(Q230=\"\",\"\",INDEX(referentes!$D$2:$E$65,MATCH(Q230,referentes!$E$2:$E$65,0),1))","v":""},null,null,{"$f":"IF(R230=\"\",\"\",'Otras referencias'!$B$7)","v":""},null,{"$f":"IF(T230=\"\",\"\",'Otras referencias'!$B$8)","v":""},null,null,null,null,null,null,null,null,null,null,null,"",null,null,null,null,null,null,""]
[null,{"$f":"IF(C231=\"\",\"\",IF(COUNTIF($C$4:C231, C231)>1, \"\", C231))","v":""},{"$f":"IF(G231=\"\",\"\",IF(F231=\"\",\"\",CONCATENATE(DIGITADOR!$M$1,G231,E231)))","v":""},"",{"$f":"IF(F231=\"\",\"\",VLOOKUP(F231,referentes!$N$2:$Q$161,3,FALSE))","v":""},null,null,"",null,null,null,null,null,null,null,{"$f":"IF(Q231=\"\",\"\",INDEX(referentes!$D$2:$E$65,MATCH(Q231,referentes!$E$2:$E$65,0),1))","v":""},null,null,{"$f":"IF(R231=\"\",\"\",'Otras referencias'!$B$7)","v":""},null,{"$f":"IF(T231=\"\",\"\",'Otras referencias'!$B$8)","v":""},null,null,null,null,null,null,null,null,null,null,null,"",null,null,null,null,null,null,""]
[null,{"$f":"IF(C232=\"\",\"\",IF(COUNTIF($C$4:C232, C232)>1, \"\", C232))","v":""},{"$f":"IF(G232=\"\",\"\",IF(F232=\"\",\"\",CONCATENATE(DIGITADOR!$M$1,G232,E232)))","v":""},"",{"$f":"IF(F232=\"\",\"\",VLOOKUP(F232,referentes!$N$2:$Q$161,3,FALSE))","v":""},null,null,"",null,null,null,null,null,null,null,{"$f":"IF(Q232=\"\",\"\",INDEX(referentes!$D$2:$E$65,MATCH(Q232,referentes!$E$2:$E$65,0),1))","v":""},null,null,{"$f":"IF(R232=\"\",\"\",'Otras referencias'!$B$7)","v":""},null,{"$f":"IF(T232=\"\",\"\",'Otras referencias'!$B$8)","v":""},null,null,null,null,null,null,null,null,null,null,null,"",null,null,null,null,null,null,""]
[null,{"$f":"IF(C233=\"\",\"\",IF(COUNTIF($C$4:C233, C233)>1, \"\", C233))","v":""},{"$f":"IF(G233=\"\",\"\",IF(F233=\"\",\"\",CONCATENATE(DIGITADOR!$M$1,G233,E233)))","v":""},"",{"$f":"IF(F233=\"\",\"\",VLOOKUP(F233,referentes!$N$2:$Q$161,3,FALSE))","v":""},null,null,"",null,null,null,null,null,null,null,{"$f":"IF(Q233=\"\",\"\",INDEX(referentes!$D$2:$E$65,MATCH(Q233,referentes!$E$2:$E$65,0),1))","v":""},null,null,{"$f":"IF(R233=\"\",\"\",'Otras referencias'!$B$7)","v":""},null,{"$f":"IF(T233=\"\",\"\",'Otras referencias'!$B$8)","v":""},null,null,null,null,null,null,null,null,null,null,null,"",null,null,null,null,null,null,""]
[null,{"$f":"IF(C234=\"\",\"\",IF(COUNTIF($C$4:C234, C234)>1, \"\", C234))","v":""},{"$f":"IF(G234=\"\",\"\",IF(F234=\"\",\"\",CONCATENATE(DIGITADOR!$M$1,G234,E234)))","v":""},"",{"$f":"IF(F234=\"\",\"\",VLOOKUP(F234,referentes!$N$2:$Q$161,3,FALSE))","v":""},null,null,"",null,null,null,null,null,null,null,{"$f":"IF(Q234=\"\",\"\",INDEX(referentes!$D$2:$E$65,MATCH(Q234,referentes!$E$2:$E$65,0),1))","v":""},null,null,{"$f":"IF(R234=\"\",\"\",'Otras referencias'!$B$7)","v":""},null,{"$f":"IF(T234=\"\",\"\",'Otras referencias'!$B$8)","v":""},null,null,null,null,null,null,null,null,null,null,null,"",null,null,null,null,null,null,""]
[null,{"$f":"IF(C235=\"\",\"\",IF(COUNTIF($C$4:C235, C235)>1, \"\", C235))","v":""},{"$f":"IF(G235=\"\",\"\",IF(F235=\"\",\"\",CONCATENATE(DIGITADOR!$M$1,G235,E235)))","v":""},"",{"$f":"IF(F235=\"\",\"\",VLOOKUP(F235,referentes!$N$2:$Q$161,3,FALSE))","v":""},null,null,"",null,null,null,null,null,null,null,{"$f":"IF(Q235=\"\",\"\",INDEX(referentes!$D$2:$E$65,MATCH(Q235,referentes!$E$2:$E$65,0),1))","v":""},null,null,{"$f":"IF(R235=\"\",\"\",'Otras referencias'!$B$7)","v":""},null,{"$f":"IF(T235=\"\",\"\",'Otras referencias'!$B$8)","v":""},null,null,null,null,null,null,null,null,null,null,null,"",null,null,null,null,null,null,""]
[null,{"$f":"IF(C236=\"\",\"\",IF(COUNTIF($C$4:C236, C236)>1, \"\", C236))","v":""},{"$f":"IF(G236=\"\",\"\",IF(F236=\"\",\"\",CONCATENATE(DIGITADOR!$M$1,G236,E236)))","v":""},"",{"$f":"IF(F236=\"\",\"\",VLOOKUP(F236,referentes!$N$2:$Q$161,3,FALSE))","v":""},null,null,"",null,null,null,null,null,null,null,{"$f":"IF(Q236=\"\",\"\",INDEX(referentes!$D$2:$E$65,MATCH(Q236,referentes!$E$2:$E$65,0),1))","v":""},null,null,{"$f":"IF(R236=\"\",\"\",'Otras referencias'!$B$7)","v":""},null,{"$f":"IF(T236=\"\",\"\",'Otras referencias'!$B$8)","v":""},null,null,null,null,null,null,null,null,null,null,null,"",null,null,null,null,null,null,""]
[null,{"$f":"IF(C237=\"\",\"\",IF(COUNTIF($C$4:C237, C237)>1, \"\", C237))","v":""},{"$f":"IF(G237=\"\",\"\",IF(F237=\"\",\"\",CONCATENATE(DIGITADOR!$M$1,G237,E237)))","v":""},"",{"$f":"IF(F237=\"\",\"\",VLOOKUP(F237,referentes!$N$2:$Q$161,3,FALSE))","v":""},null,null,"",null,null,null,null,null,null,null,{"$f":"IF(Q237=\"\",\"\",INDEX(referentes!$D$2:$E$65,MATCH(Q237,referentes!$E$2:$E$65,0),1))","v":""},null,null,{"$f":"IF(R237=\"\",\"\",'Otras referencias'!$B$7)","v":""},null,{"$f":"IF(T237=\"\",\"\",'Otras referencias'!$B$8)","v":""},null,null,null,null,null,null,null,null,null,null,null,"",null,null,null,null,null,null,""]
[null,{"$f":"IF(C238=\"\",\"\",IF(COUNTIF($C$4:C238, C238)>1, \"\", C238))","v":""},{"$f":"IF(G238=\"\",\"\",IF(F238=\"\",\"\",CONCATENATE(DIGITADOR!$M$1,G238,E238)))","v":""},"",{"$f":"IF(F238=\"\",\"\",VLOOKUP(F238,referentes!$N$2:$Q$161,3,FALSE))","v":""},null,null,"",null,null,null,null,null,null,null,{"$f":"IF(Q238=\"\",\"\",INDEX(referentes!$D$2:$E$65,MATCH(Q238,referentes!$E$2:$E$65,0),1))","v":""},null,null,{"$f":"IF(R238=\"\",\"\",'Otras referencias'!$B$7)","v":""},null,{"$f":"IF(T238=\"\",\"\",'Otras referencias'!$B$8)","v":""},null,null,null,null,null,null,null,null,null,null,null,"",null,null,null,null,null,null,""]
[null,{"$f":"IF(C239=\"\",\"\",IF(COUNTIF($C$4:C239, C239)>1, \"\", C239))","v":""},{"$f":"IF(G239=\"\",\"\",IF(F239=\"\",\"\",CONCATENATE(DIGITADOR!$M$1,G239,E239)))","v":""},"",{"$f":"IF(F239=\"\",\"\",VLOOKUP(F239,referentes!$N$2:$Q$161,3,FALSE))","v":""},null,null,"",null,null,null,null,null,null,null,{"$f":"IF(Q239=\"\",\"\",INDEX(referentes!$D$2:$E$65,MATCH(Q239,referentes!$E$2:$E$65,0),1))","v":""},null,null,{"$f":"IF(R239=\"\",\"\",'Otras referencias'!$B$7)","v":""},null,{"$f":"IF(T239=\"\",\"\",'Otras referencias'!$B$8)","v":""},null,null,null,null,null,null,null,null,null,null,null,"",null,null,null,null,null,null,""]
[null,{"$f":"IF(C240=\"\",\"\",IF(COUNTIF($C$4:C240, C240)>1, \"\", C240))","v":""},{"$f":"IF(G240=\"\",\"\",IF(F240=\"\",\"\",CONCATENATE(DIGITADOR!$M$1,G240,E240)))","v":""},"",{"$f":"IF(F240=\"\",\"\",VLOOKUP(F240,referentes!$N$2:$Q$161,3,FALSE))","v":""},null,null,"",null,null,null,null,null,null,null,{"$f":"IF(Q240=\"\",\"\",INDEX(referentes!$D$2:$E$65,MATCH(Q240,referentes!$E$2:$E$65,0),1))","v":""},null,null,{"$f":"IF(R240=\"\",\"\",'Otras referencias'!$B$7)","v":""},null,{"$f":"IF(T240=\"\",\"\",'Otras referencias'!$B$8)","v":""},null,null,null,null,null,null,null,null,null,null,null,"",null,null,null,null,null,null,""]
[null,{"$f":"IF(C241=\"\",\"\",IF(COUNTIF($C$4:C241, C241)>1, \"\", C241))","v":""},{"$f":"IF(G241=\"\",\"\",IF(F241=\"\",\"\",CONCATENATE(DIGITADOR!$M$1,G241,E241)))","v":""},"",{"$f":"IF(F241=\"\",\"\",VLOOKUP(F241,referentes!$N$2:$Q$161,3,FALSE))","v":""},null,null,"",null,null,null,null,null,null,null,{"$f":"IF(Q241=\"\",\"\",INDEX(referentes!$D$2:$E$65,MATCH(Q241,referentes!$E$2:$E$65,0),1))","v":""},null,null,{"$f":"IF(R241=\"\",\"\",'Otras referencias'!$B$7)","v":""},null,{"$f":"IF(T241=\"\",\"\",'Otras referencias'!$B$8)","v":""},null,null,null,null,null,null,null,null,null,null,null,"",null,null,null,null,null,null,""]
[null,{"$f":"IF(C242=\"\",\"\",IF(COUNTIF($C$4:C242, C242)>1, \"\", C242))","v":""},{"$f":"IF(G242=\"\",\"\",IF(F242=\"\",\"\",CONCATENATE(DIGITADOR!$M$1,G242,E242)))","v":""},"",{"$f":"IF(F242=\"\",\"\",VLOOKUP(F242,referentes!$N$2:$Q$161,3,FALSE))","v":""},null,null,"",null,null,null,null,null,null,null,{"$f":"IF(Q242=\"\",\"\",INDEX(referentes!$D$2:$E$65,MATCH(Q242,referentes!$E$2:$E$65,0),1))","v":""},null,null,{"$f":"IF(R242=\"\",\"\",'Otras referencias'!$B$7)","v":""},null,{"$f":"IF(T242=\"\",\"\",'Otras referencias'!$B$8)","v":""},null,null,null,null,null,null,null,null,null,null,null,"",null,null,null,null,null,null,""]
[null,{"$f":"IF(C243=\"\",\"\",IF(COUNTIF($C$4:C243, C243)>1, \"\", C243))","v":""},{"$f":"IF(G243=\"\",\"\",IF(F243=\"\",\"\",CONCATENATE(DIGITADOR!$M$1,G243,E243)))","v":""},"",{"$f":"IF(F243=\"\",\"\",VLOOKUP(F243,referentes!$N$2:$Q$161,3,FALSE))","v":""},null,null,"",null,null,null,null,null,null,null,{"$f":"IF(Q243=\"\",\"\",INDEX(referentes!$D$2:$E$65,MATCH(Q243,referentes!$E$2:$E$65,0),1))","v":""},null,null,{"$f":"IF(R243=\"\",\"\",'Otras referencias'!$B$7)","v":""},null,{"$f":"IF(T243=\"\",\"\",'Otras referencias'!$B$8)","v":""},null,null,null,null,null,null,null,null,null,null,null,"",null,null,null,null,null,null,""]
[null,{"$f":"IF(C244=\"\",\"\",IF(COUNTIF($C$4:C244, C244)>1, \"\", C244))","v":""},{"$f":"IF(G244=\"\",\"\",IF(F244=\"\",\"\",CONCATENATE(DIGITADOR!$M$1,G244,E244)))","v":""},"",{"$f":"IF(F244=\"\",\"\",VLOOKUP(F244,referentes!$N$2:$Q$161,3,FALSE))","v":""},null,null,"",null,null,null,null,null,null,null,{"$f":"IF(Q244=\"\",\"\",INDEX(referentes!$D$2:$E$65,MATCH(Q244,referentes!$E$2:$E$65,0),1))","v":""},null,null,{"$f":"IF(R244=\"\",\"\",'Otras referencias'!$B$7)","v":""},null,{"$f":"IF(T244=\"\",\"\",'Otras referencias'!$B$8)","v":""},null,null,null,null,null,null,null,null,null,null,null,"",null,null,null,null,null,null,""]
[null,{"$f":"IF(C245=\"\",\"\",IF(COUNTIF($C$4:C245, C245)>1, \"\", C245))","v":""},{"$f":"IF(G245=\"\",\"\",IF(F245=\"\",\"\",CONCATENATE(DIGITADOR!$M$1,G245,E245)))","v":""},"",{"$f":"IF(F245=\"\",\"\",VLOOKUP(F245,referentes!$N$2:$Q$161,3,FALSE))","v":""},null,null,"",null,null,null,null,null,null,null,{"$f":"IF(Q245=\"\",\"\",INDEX(referentes!$D$2:$E$65,MATCH(Q245,referentes!$E$2:$E$65,0),1))","v":""},null,null,{"$f":"IF(R245=\"\",\"\",'Otras referencias'!$B$7)","v":""},null,{"$f":"IF(T245=\"\",\"\",'Otras referencias'!$B$8)","v":""},null,null,null,null,null,null,null,null,null,null,null,"",null,null,null,null,null,null,""]
[null,{"$f":"IF(C246=\"\",\"\",IF(COUNTIF($C$4:C246, C246)>1, \"\", C246))","v":""},{"$f":"IF(G246=\"\",\"\",IF(F246=\"\",\"\",CONCATENATE(DIGITADOR!$M$1,G246,E246)))","v":""},"",{"$f":"IF(F246=\"\",\"\",VLOOKUP(F246,referentes!$N$2:$Q$161,3,FALSE))","v":""},null,null,"",null,null,null,null,null,null,null,{"$f":"IF(Q246=\"\",\"\",INDEX(referentes!$D$2:$E$65,MATCH(Q246,referentes!$E$2:$E$65,0),1))","v":""},null,null,{"$f":"IF(R246=\"\",\"\",'Otras referencias'!$B$7)","v":""},null,{"$f":"IF(T246=\"\",\"\",'Otras referencias'!$B$8)","v":""},null,null,null,null,null,null,null,null,null,null,null,"",null,null,null,null,null,null,""]
[null,{"$f":"IF(C247=\"\",\"\",IF(COUNTIF($C$4:C247, C247)>1, \"\", C247))","v":""},{"$f":"IF(G247=\"\",\"\",IF(F247=\"\",\"\",CONCATENATE(DIGITADOR!$M$1,G247,E247)))","v":""},"",{"$f":"IF(F247=\"\",\"\",VLOOKUP(F247,referentes!$N$2:$Q$161,3,FALSE))","v":""},null,null,"",null,null,null,null,null,null,null,{"$f":"IF(Q247=\"\",\"\",INDEX(referentes!$D$2:$E$65,MATCH(Q247,referentes!$E$2:$E$65,0),1))","v":""},null,null,{"$f":"IF(R247=\"\",\"\",'Otras referencias'!$B$7)","v":""},null,{"$f":"IF(T247=\"\",\"\",'Otras referencias'!$B$8)","v":""},null,null,null,null,null,null,null,null,null,null,null,"",null,null,null,null,null,null,""]
[null,{"$f":"IF(C248=\"\",\"\",IF(COUNTIF($C$4:C248, C248)>1, \"\", C248))","v":""},{"$f":"IF(G248=\"\",\"\",IF(F248=\"\",\"\",CONCATENATE(DIGITADOR!$M$1,G248,E248)))","v":""},"",{"$f":"IF(F248=\"\",\"\",VLOOKUP(F248,referentes!$N$2:$Q$161,3,FALSE))","v":""},null,null,"",null,null,null,null,null,null,null,{"$f":"IF(Q248=\"\",\"\",INDEX(referentes!$D$2:$E$65,MATCH(Q248,referentes!$E$2:$E$65,0),1))","v":""},null,null,{"$f":"IF(R248=\"\",\"\",'Otras referencias'!$B$7)","v":""},null,{"$f":"IF(T248=\"\",\"\",'Otras referencias'!$B$8)","v":""},null,null,null,null,null,null,null,null,null,null,null,"",null,null,null,null,null,null,""]
[null,{"$f":"IF(C249=\"\",\"\",IF(COUNTIF($C$4:C249, C249)>1, \"\", C249))","v":""},{"$f":"IF(G249=\"\",\"\",IF(F249=\"\",\"\",CONCATENATE(DIGITADOR!$M$1,G249,E249)))","v":""},"",{"$f":"IF(F249=\"\",\"\",VLOOKUP(F249,referentes!$N$2:$Q$161,3,FALSE))","v":""},null,null,"",null,null,null,null,null,null,null,{"$f":"IF(Q249=\"\",\"\",INDEX(referentes!$D$2:$E$65,MATCH(Q249,referentes!$E$2:$E$65,0),1))","v":""},null,null,{"$f":"IF(R249=\"\",\"\",'Otras referencias'!$B$7)","v":""},null,{"$f":"IF(T249=\"\",\"\",'Otras referencias'!$B$8)","v":""},null,null,null,null,null,null,null,null,null,null,null,"",null,null,null,null,null,null,""]
[null,{"$f":"IF(C250=\"\",\"\",IF(COUNTIF($C$4:C250, C250)>1, \"\", C250))","v":""},{"$f":"IF(G250=\"\",\"\",IF(F250=\"\",\"\",CONCATENATE(DIGITADOR!$M$1,G250,E250)))","v":""},"",{"$f":"IF(F250=\"\",\"\",VLOOKUP(F250,referentes!$N$2:$Q$161,3,FALSE))","v":""},null,null,"",null,null,null,null,null,null,null,{"$f":"IF(Q250=\"\",\"\",INDEX(referentes!$D$2:$E$65,MATCH(Q250,referentes!$E$2:$E$65,0),1))","v":""},null,null,{"$f":"IF(R250=\"\",\"\",'Otras referencias'!$B$7)","v":""},null,{"$f":"IF(T250=\"\",\"\",'Otras referencias'!$B$8)","v":""},null,null,null,null,null,null,null,null,null,null,null,"",null,null,null,null,null,null,""]
[null,{"$f":"IF(C251=\"\",\"\",IF(COUNTIF($C$4:C251, C251)>1, \"\", C251))","v":""},{"$f":"IF(G251=\"\",\"\",IF(F251=\"\",\"\",CONCATENATE(DIGITADOR!$M$1,G251,E251)))","v":""},"",{"$f":"IF(F251=\"\",\"\",VLOOKUP(F251,referentes!$N$2:$Q$161,3,FALSE))","v":""},null,null,"",null,null,null,null,null,null,null,{"$f":"IF(Q251=\"\",\"\",INDEX(referentes!$D$2:$E$65,MATCH(Q251,referentes!$E$2:$E$65,0),1))","v":""},null,null,{"$f":"IF(R251=\"\",\"\",'Otras referencias'!$B$7)","v":""},null,{"$f":"IF(T251=\"\",\"\",'Otras referencias'!$B$8)","v":""},null,null,null,null,null,null,null,null,null,null,null,"",null,null,null,null,null,null,""]
[null,{"$f":"IF(C252=\"\",\"\",IF(COUNTIF($C$4:C252, C252)>1, \"\", C252))","v":""},{"$f":"IF(G252=\"\",\"\",IF(F252=\"\",\"\",CONCATENATE(DIGITADOR!$M$1,G252,E252)))","v":""},"",{"$f":"IF(F252=\"\",\"\",VLOOKUP(F252,referentes!$N$2:$Q$161,3,FALSE))","v":""},null,null,"",null,null,null,null,null,null,null,{"$f":"IF(Q252=\"\",\"\",INDEX(referentes!$D$2:$E$65,MATCH(Q252,referentes!$E$2:$E$65,0),1))","v":""},null,null,{"$f":"IF(R252=\"\",\"\",'Otras referencias'!$B$7)","v":""},null,{"$f":"IF(T252=\"\",\"\",'Otras referencias'!$B$8)","v":""},null,null,null,null,null,null,null,null,null,null,null,"",null,null,null,null,null,null,""]
[null,{"$f":"IF(C253=\"\",\"\",IF(COUNTIF($C$4:C253, C253)>1, \"\", C253))","v":""},{"$f":"IF(G253=\"\",\"\",IF(F253=\"\",\"\",CONCATENATE(DIGITADOR!$M$1,G253,E253)))","v":""},"",{"$f":"IF(F253=\"\",\"\",VLOOKUP(F253,referentes!$N$2:$Q$161,3,FALSE))","v":""},null,null,"",null,null,null,null,null,null,null,{"$f":"IF(Q253=\"\",\"\",INDEX(referentes!$D$2:$E$65,MATCH(Q253,referentes!$E$2:$E$65,0),1))","v":""},null,null,{"$f":"IF(R253=\"\",\"\",'Otras referencias'!$B$7)","v":""},null,{"$f":"IF(T253=\"\",\"\",'Otras referencias'!$B$8)","v":""},null,null,null,null,null,null,null,null,null,null,null,"",null,null,null,null,null,null,""]
[null,{"$f":"IF(C254=\"\",\"\",IF(COUNTIF($C$4:C254, C254)>1, \"\", C254))","v":""},{"$f":"IF(G254=\"\",\"\",IF(F254=\"\",\"\",CONCATENATE(DIGITADOR!$M$1,G254,E254)))","v":""},"",{"$f":"IF(F254=\"\",\"\",VLOOKUP(F254,referentes!$N$2:$Q$161,3,FALSE))","v":""},null,null,"",null,null,null,null,null,null,null,{"$f":"IF(Q254=\"\",\"\",INDEX(referentes!$D$2:$E$65,MATCH(Q254,referentes!$E$2:$E$65,0),1))","v":""},null,null,{"$f":"IF(R254=\"\",\"\",'Otras referencias'!$B$7)","v":""},null,{"$f":"IF(T254=\"\",\"\",'Otras referencias'!$B$8)","v":""},null,null,null,null,null,null,null,null,null,null,null,"",null,null,null,null,null,null,""]
[null,{"$f":"IF(C255=\"\",\"\",IF(COUNTIF($C$4:C255, C255)>1, \"\", C255))","v":""},{"$f":"IF(G255=\"\",\"\",IF(F255=\"\",\"\",CONCATENATE(DIGITADOR!$M$1,G255,E255)))","v":""},"",{"$f":"IF(F255=\"\",\"\",VLOOKUP(F255,referentes!$N$2:$Q$161,3,FALSE))","v":""},null,null,"",null,null,null,null,null,null,null,{"$f":"IF(Q255=\"\",\"\",INDEX(referentes!$D$2:$E$65,MATCH(Q255,referentes!$E$2:$E$65,0),1))","v":""},null,null,{"$f":"IF(R255=\"\",\"\",'Otras referencias'!$B$7)","v":""},null,{"$f":"IF(T255=\"\",\"\",'Otras referencias'!$B$8)","v":""},null,null,null,null,null,null,null,null,null,null,null,"",null,null,null,null,null,null,""]
[null,{"$f":"IF(C256=\"\",\"\",IF(COUNTIF($C$4:C256, C256)>1, \"\", C256))","v":""},{"$f":"IF(G256=\"\",\"\",IF(F256=\"\",\"\",CONCATENATE(DIGITADOR!$M$1,G256,E256)))","v":""},"",{"$f":"IF(F256=\"\",\"\",VLOOKUP(F256,referentes!$N$2:$Q$161,3,FALSE))","v":""},null,null,"",null,null,null,null,null,null,null,{"$f":"IF(Q256=\"\",\"\",INDEX(referentes!$D$2:$E$65,MATCH(Q256,referentes!$E$2:$E$65,0),1))","v":""},null,null,{"$f":"IF(R256=\"\",\"\",'Otras referencias'!$B$7)","v":""},null,{"$f":"IF(T256=\"\",\"\",'Otras referencias'!$B$8)","v":""},null,null,null,null,null,null,null,null,null,null,null,"",null,null,null,null,null,null,""]
[null,{"$f":"IF(C257=\"\",\"\",IF(COUNTIF($C$4:C257, C257)>1, \"\", C257))","v":""},{"$f":"IF(G257=\"\",\"\",IF(F257=\"\",\"\",CONCATENATE(DIGITADOR!$M$1,G257,E257)))","v":""},"",{"$f":"IF(F257=\"\",\"\",VLOOKUP(F257,referentes!$N$2:$Q$161,3,FALSE))","v":""},null,null,"",null,null,null,null,null,null,null,{"$f":"IF(Q257=\"\",\"\",INDEX(referentes!$D$2:$E$65,MATCH(Q257,referentes!$E$2:$E$65,0),1))","v":""},null,null,{"$f":"IF(R257=\"\",\"\",'Otras referencias'!$B$7)","v":""},null,{"$f":"IF(T257=\"\",\"\",'Otras referencias'!$B$8)","v":""},null,null,null,null,null,null,null,null,null,null,null,"",null,null,null,null,null,null,""]
[null,{"$f":"IF(C258=\"\",\"\",IF(COUNTIF($C$4:C258, C258)>1, \"\", C258))","v":""},{"$f":"IF(G258=\"\",\"\",IF(F258=\"\",\"\",CONCATENATE(DIGITADOR!$M$1,G258,E258)))","v":""},"",{"$f":"IF(F258=\"\",\"\",VLOOKUP(F258,referentes!$N$2:$Q$161,3,FALSE))","v":""},null,null,"",null,null,null,null,null,null,null,{"$f":"IF(Q258=\"\",\"\",INDEX(referentes!$D$2:$E$65,MATCH(Q258,referentes!$E$2:$E$65,0),1))","v":""},null,null,{"$f":"IF(R258=\"\",\"\",'Otras referencias'!$B$7)","v":""},null,{"$f":"IF(T258=\"\",\"\",'Otras referencias'!$B$8)","v":""},null,null,null,null,null,null,null,null,null,null,null,"",null,null,null,null,null,null,""]
[null,{"$f":"IF(C259=\"\",\"\",IF(COUNTIF($C$4:C259, C259)>1, \"\", C259))","v":""},{"$f":"IF(G259=\"\",\"\",IF(F259=\"\",\"\",CONCATENATE(DIGITADOR!$M$1,G259,E259)))","v":""},"",{"$f":"IF(F259=\"\",\"\",VLOOKUP(F259,referentes!$N$2:$Q$161,3,FALSE))","v":""},null,null,"",null,null,null,null,null,null,null,{"$f":"IF(Q259=\"\",\"\",INDEX(referentes!$D$2:$E$65,MATCH(Q259,referentes!$E$2:$E$65,0),1))","v":""},null,null,{"$f":"IF(R259=\"\",\"\",'Otras referencias'!$B$7)","v":""},null,{"$f":"IF(T259=\"\",\"\",'Otras referencias'!$B$8)","v":""},null,null,null,null,null,null,null,null,null,null,null,"",null,null,null,null,null,null,""]
[null,{"$f":"IF(C260=\"\",\"\",IF(COUNTIF($C$4:C260, C260)>1, \"\", C260))","v":""},{"$f":"IF(G260=\"\",\"\",IF(F260=\"\",\"\",CONCATENATE(DIGITADOR!$M$1,G260,E260)))","v":""},"",{"$f":"IF(F260=\"\",\"\",VLOOKUP(F260,referentes!$N$2:$Q$161,3,FALSE))","v":""},null,null,"",null,null,null,null,null,null,null,{"$f":"IF(Q260=\"\",\"\",INDEX(referentes!$D$2:$E$65,MATCH(Q260,referentes!$E$2:$E$65,0),1))","v":""},null,null,{"$f":"IF(R260=\"\",\"\",'Otras referencias'!$B$7)","v":""},null,{"$f":"IF(T260=\"\",\"\",'Otras referencias'!$B$8)","v":""},null,null,null,null,null,null,null,null,null,null,null,"",null,null,null,null,null,null,""]
[null,{"$f":"IF(C261=\"\",\"\",IF(COUNTIF($C$4:C261, C261)>1, \"\", C261))","v":""},{"$f":"IF(G261=\"\",\"\",IF(F261=\"\",\"\",CONCATENATE(DIGITADOR!$M$1,G261,E261)))","v":""},{"$f":"IF(C261=\"\",\"\",CONCATENATE(C261,ROW()-2))","v":""},{"$f":"IF(F261=\"\",\"\",VLOOKUP(F261,referentes!$N$2:$Q$161,3,FALSE))","v":""},null,null,{"$f":"IF(I261=\"\",\"\",TEXT(I261,\"hh:mm\"))","v":""},null,null,null,null,null,null,null,{"$f":"IF(Q261=\"\",\"\",INDEX(referentes!$D$2:$E$65,MATCH(Q261,referentes!$E$2:$E$65,0),1))","v":""},null,null,{"$f":"IF(R261=\"\",\"\",'Otras referencias'!$B$7)","v":""},null,{"$f":"IF(T261=\"\",\"\",'Otras referencias'!$B$8)","v":""},null,null,null,null,null,null,null,null,null,null,null,{"$f":"CONCATENATE(\n                                IF(AA261<>\"\",CONCATENATE(Z261,\", \",\n                                                      IF(AB261<>\"\",CONCATENATE(AA261,\", \",\n                                                           IF(AC261<>\"\",CONCATENATE(AB261,\", \",\n                                                               IF(AD261<>\"\",CONCATENATE(AC261,\", \",\n                                                                   IF(AE261<>\"\",CONCATENATE(AD261,\", \",\n                                                                        IF(AF261<>\"\",CONCATENATE(AE261,\", \", AF261), AE261)\n                                                                      ), AD261)\n                                                                   ), AC261)\n                                                               ), AB261)\n                                                       ), AA261)\n                                ),Z261)\n)","v":""},null,null,null,null,null,null,{"$f":"CONCATENATE(\n                                IF(AI261<>\"\",CONCATENATE(AH261,\", \",\n                                                      IF(AJ261<>\"\",CONCATENATE(AI261,\", \",\n                                                           IF(AK261<>\"\",CONCATENATE(AJ261,\", \",\n                                                               IF(AL261<>\"\",CONCATENATE(AK261,\", \",\n                                                                       IF(AM261<>\"\",CONCATENATE(AL261,\", \", AM261), AL261)\n                                                                      ), AK261)\n                                                               ), AJ261)\n                                                       ), AI261)\n                                ),AH261)\n)","v":""}]
[null,{"$f":"IF(C262=\"\",\"\",IF(COUNTIF($C$4:C262, C262)>1, \"\", C262))","v":""},{"$f":"IF(G262=\"\",\"\",IF(F262=\"\",\"\",CONCATENATE(DIGITADOR!$M$1,G262,E262)))","v":""},"",{"$f":"IF(F262=\"\",\"\",VLOOKUP(F262,referentes!$N$2:$Q$161,3,FALSE))","v":""},null,null,"",null,null,null,null,null,null,null,{"$f":"IF(Q262=\"\",\"\",INDEX(referentes!$D$2:$E$65,MATCH(Q262,referentes!$E$2:$E$65,0),1))","v":""},null,null,{"$f":"IF(R262=\"\",\"\",'Otras referencias'!$B$7)","v":""},null,{"$f":"IF(T262=\"\",\"\",'Otras referencias'!$B$8)","v":""},null,null,null,null,null,null,null,null,null,null,null,"",null,null,null,null,null,null,""]
[null,{"$f":"IF(C263=\"\",\"\",IF(COUNTIF($C$4:C263, C263)>1, \"\", C263))","v":""},{"$f":"IF(G263=\"\",\"\",IF(F263=\"\",\"\",CONCATENATE(DIGITADOR!$M$1,G263,E263)))","v":""},"",{"$f":"IF(F263=\"\",\"\",VLOOKUP(F263,referentes!$N$2:$Q$161,3,FALSE))","v":""},null,null,"",null,null,null,null,null,null,null,{"$f":"IF(Q263=\"\",\"\",INDEX(referentes!$D$2:$E$65,MATCH(Q263,referentes!$E$2:$E$65,0),1))","v":""},null,null,{"$f":"IF(R263=\"\",\"\",'Otras referencias'!$B$7)","v":""},null,{"$f":"IF(T263=\"\",\"\",'Otras referencias'!$B$8)","v":""},null,null,null,null,null,null,null,null,null,null,null,"",null,null,null,null,null,null,""]
[null,{"$f":"IF(C264=\"\",\"\",IF(COUNTIF($C$4:C264, C264)>1, \"\", C264))","v":""},{"$f":"IF(G264=\"\",\"\",IF(F264=\"\",\"\",CONCATENATE(DIGITADOR!$M$1,G264,E264)))","v":""},"",{"$f":"IF(F264=\"\",\"\",VLOOKUP(F264,referentes!$N$2:$Q$161,3,FALSE))","v":""},null,null,"",null,null,null,null,null,null,null,{"$f":"IF(Q264=\"\",\"\",INDEX(referentes!$D$2:$E$65,MATCH(Q264,referentes!$E$2:$E$65,0),1))","v":""},null,null,{"$f":"IF(R264=\"\",\"\",'Otras referencias'!$B$7)","v":""},null,{"$f":"IF(T264=\"\",\"\",'Otras referencias'!$B$8)","v":""},null,null,null,null,null,null,null,null,null,null,null,"",null,null,null,null,null,null,""]
[null,{"$f":"IF(C265=\"\",\"\",IF(COUNTIF($C$4:C265, C265)>1, \"\", C265))","v":""},{"$f":"IF(G265=\"\",\"\",IF(F265=\"\",\"\",CONCATENATE(DIGITADOR!$M$1,G265,E265)))","v":""},"",{"$f":"IF(F265=\"\",\"\",VLOOKUP(F265,referentes!$N$2:$Q$161,3,FALSE))","v":""},null,null,"",null,null,null,null,null,null,null,{"$f":"IF(Q265=\"\",\"\",INDEX(referentes!$D$2:$E$65,MATCH(Q265,referentes!$E$2:$E$65,0),1))","v":""},null,null,{"$f":"IF(R265=\"\",\"\",'Otras referencias'!$B$7)","v":""},null,{"$f":"IF(T265=\"\",\"\",'Otras referencias'!$B$8)","v":""},null,null,null,null,null,null,null,null,null,null,null,"",null,null,null,null,null,null,""]
[null,{"$f":"IF(C266=\"\",\"\",IF(COUNTIF($C$4:C266, C266)>1, \"\", C266))","v":""},{"$f":"IF(G266=\"\",\"\",IF(F266=\"\",\"\",CONCATENATE(DIGITADOR!$M$1,G266,E266)))","v":""},"",{"$f":"IF(F266=\"\",\"\",VLOOKUP(F266,referentes!$N$2:$Q$161,3,FALSE))","v":""},null,null,"",null,null,null,null,null,null,null,{"$f":"IF(Q266=\"\",\"\",INDEX(referentes!$D$2:$E$65,MATCH(Q266,referentes!$E$2:$E$65,0),1))","v":""},null,null,{"$f":"IF(R266=\"\",\"\",'Otras referencias'!$B$7)","v":""},null,{"$f":"IF(T266=\"\",\"\",'Otras referencias'!$B$8)","v":""},null,null,null,null,null,null,null,null,null,null,null,"",null,null,null,null,null,null,""]
[null,{"$f":"IF(C267=\"\",\"\",IF(COUNTIF($C$4:C267, C267)>1, \"\", C267))","v":""},{"$f":"IF(G267=\"\",\"\",IF(F267=\"\",\"\",CONCATENATE(DIGITADOR!$M$1,G267,E267)))","v":""},"",{"$f":"IF(F267=\"\",\"\",VLOOKUP(F267,referentes!$N$2:$Q$161,3,FALSE))","v":""},null,null,"",null,null,null,null,null,null,null,{"$f":"IF(Q267=\"\",\"\",INDEX(referentes!$D$2:$E$65,MATCH(Q267,referentes!$E$2:$E$65,0),1))","v":""},null,null,{"$f":"IF(R267=\"\",\"\",'Otras referencias'!$B$7)","v":""},null,{"$f":"IF(T267=\"\",\"\",'Otras referencias'!$B$8)","v":""},null,null,null,null,null,null,null,null,null,null,null,"",null,null,null,null,null,null,""]
[null,{"$f":"IF(C268=\"\",\"\",IF(COUNTIF($C$4:C268, C268)>1, \"\", C268))","v":""},{"$f":"IF(G268=\"\",\"\",IF(F268=\"\",\"\",CONCATENATE(DIGITADOR!$M$1,G268,E268)))","v":""},"",{"$f":"IF(F268=\"\",\"\",VLOOKUP(F268,referentes!$N$2:$Q$161,3,FALSE))","v":""},null,null,"",null,null,null,null,null,null,null,{"$f":"IF(Q268=\"\",\"\",INDEX(referentes!$D$2:$E$65,MATCH(Q268,referentes!$E$2:$E$65,0),1))","v":""},null,null,{"$f":"IF(R268=\"\",\"\",'Otras referencias'!$B$7)","v":""},null,{"$f":"IF(T268=\"\",\"\",'Otras referencias'!$B$8)","v":""},null,null,null,null,null,null,null,null,null,null,null,"",null,null,null,null,null,null,""]
[null,{"$f":"IF(C269=\"\",\"\",IF(COUNTIF($C$4:C269, C269)>1, \"\", C269))","v":""},{"$f":"IF(G269=\"\",\"\",IF(F269=\"\",\"\",CONCATENATE(DIGITADOR!$M$1,G269,E269)))","v":""},"",{"$f":"IF(F269=\"\",\"\",VLOOKUP(F269,referentes!$N$2:$Q$161,3,FALSE))","v":""},null,null,"",null,null,null,null,null,null,null,{"$f":"IF(Q269=\"\",\"\",INDEX(referentes!$D$2:$E$65,MATCH(Q269,referentes!$E$2:$E$65,0),1))","v":""},null,null,{"$f":"IF(R269=\"\",\"\",'Otras referencias'!$B$7)","v":""},null,{"$f":"IF(T269=\"\",\"\",'Otras referencias'!$B$8)","v":""},null,null,null,null,null,null,null,null,null,null,null,"",null,null,null,null,null,null,""]
[null,{"$f":"IF(C270=\"\",\"\",IF(COUNTIF($C$4:C270, C270)>1, \"\", C270))","v":""},{"$f":"IF(G270=\"\",\"\",IF(F270=\"\",\"\",CONCATENATE(DIGITADOR!$M$1,G270,E270)))","v":""},"",{"$f":"IF(F270=\"\",\"\",VLOOKUP(F270,referentes!$N$2:$Q$161,3,FALSE))","v":""},null,null,"",null,null,null,null,null,null,null,{"$f":"IF(Q270=\"\",\"\",INDEX(referentes!$D$2:$E$65,MATCH(Q270,referentes!$E$2:$E$65,0),1))","v":""},null,null,{"$f":"IF(R270=\"\",\"\",'Otras referencias'!$B$7)","v":""},null,{"$f":"IF(T270=\"\",\"\",'Otras referencias'!$B$8)","v":""},null,null,null,null,null,null,null,null,null,null,null,"",null,null,null,null,null,null,""]
[null,{"$f":"IF(C271=\"\",\"\",IF(COUNTIF($C$4:C271, C271)>1, \"\", C271))","v":""},{"$f":"IF(G271=\"\",\"\",IF(F271=\"\",\"\",CONCATENATE(DIGITADOR!$M$1,G271,E271)))","v":""},"",{"$f":"IF(F271=\"\",\"\",VLOOKUP(F271,referentes!$N$2:$Q$161,3,FALSE))","v":""},null,null,"",null,null,null,null,null,null,null,{"$f":"IF(Q271=\"\",\"\",INDEX(referentes!$D$2:$E$65,MATCH(Q271,referentes!$E$2:$E$65,0),1))","v":""},null,null,{"$f":"IF(R271=\"\",\"\",'Otras referencias'!$B$7)","v":""},null,{"$f":"IF(T271=\"\",\"\",'Otras referencias'!$B$8)","v":""},null,null,null,null,null,null,null,null,null,null,null,"",null,null,null,null,null,null,""]
[null,{"$f":"IF(C272=\"\",\"\",IF(COUNTIF($C$4:C272, C272)>1, \"\", C272))","v":""},{"$f":"IF(G272=\"\",\"\",IF(F272=\"\",\"\",CONCATENATE(DIGITADOR!$M$1,G272,E272)))","v":""},"",{"$f":"IF(F272=\"\",\"\",VLOOKUP(F272,referentes!$N$2:$Q$161,3,FALSE))","v":""},null,null,"",null,null,null,null,null,null,null,{"$f":"IF(Q272=\"\",\"\",INDEX(referentes!$D$2:$E$65,MATCH(Q272,referentes!$E$2:$E$65,0),1))","v":""},null,null,{"$f":"IF(R272=\"\",\"\",'Otras referencias'!$B$7)","v":""},null,{"$f":"IF(T272=\"\",\"\",'Otras referencias'!$B$8)","v":""},null,null,null,null,null,null,null,null,null,null,null,"",null,null,null,null,null,null,""]
[null,{"$f":"IF(C273=\"\",\"\",IF(COUNTIF($C$4:C273, C273)>1, \"\", C273))","v":""},{"$f":"IF(G273=\"\",\"\",IF(F273=\"\",\"\",CONCATENATE(DIGITADOR!$M$1,G273,E273)))","v":""},"",{"$f":"IF(F273=\"\",\"\",VLOOKUP(F273,referentes!$N$2:$Q$161,3,FALSE))","v":""},null,null,"",null,null,null,null,null,null,null,{"$f":"IF(Q273=\"\",\"\",INDEX(referentes!$D$2:$E$65,MATCH(Q273,referentes!$E$2:$E$65,0),1))","v":""},null,null,{"$f":"IF(R273=\"\",\"\",'Otras referencias'!$B$7)","v":""},null,{"$f":"IF(T273=\"\",\"\",'Otras referencias'!$B$8)","v":""},null,null,null,null,null,null,null,null,null,null,null,"",null,null,null,null,null,null,""]
[null,{"$f":"IF(C274=\"\",\"\",IF(COUNTIF($C$4:C274, C274)>1, \"\", C274))","v":""},{"$f":"IF(G274=\"\",\"\",IF(F274=\"\",\"\",CONCATENATE(DIGITADOR!$M$1,G274,E274)))","v":""},"",{"$f":"IF(F274=\"\",\"\",VLOOKUP(F274,referentes!$N$2:$Q$161,3,FALSE))","v":""},null,null,"",null,null,null,null,null,null,null,{"$f":"IF(Q274=\"\",\"\",INDEX(referentes!$D$2:$E$65,MATCH(Q274,referentes!$E$2:$E$65,0),1))","v":""},null,null,{"$f":"IF(R274=\"\",\"\",'Otras referencias'!$B$7)","v":""},null,{"$f":"IF(T274=\"\",\"\",'Otras referencias'!$B$8)","v":""},null,null,null,null,null,null,null,null,null,null,null,"",null,null,null,null,null,null,""]
[null,{"$f":"IF(C275=\"\",\"\",IF(COUNTIF($C$4:C275, C275)>1, \"\", C275))","v":""},{"$f":"IF(G275=\"\",\"\",IF(F275=\"\",\"\",CONCATENATE(DIGITADOR!$M$1,G275,E275)))","v":""},"",{"$f":"IF(F275=\"\",\"\",VLOOKUP(F275,referentes!$N$2:$Q$161,3,FALSE))","v":""},null,null,"",null,null,null,null,null,null,null,{"$f":"IF(Q275=\"\",\"\",INDEX(referentes!$D$2:$E$65,MATCH(Q275,referentes!$E$2:$E$65,0),1))","v":""},null,null,{"$f":"IF(R275=\"\",\"\",'Otras referencias'!$B$7)","v":""},null,{"$f":"IF(T275=\"\",\"\",'Otras referencias'!$B$8)","v":""},null,null,null,null,null,null,null,null,null,null,null,"",null,null,null,null,null,null,""]
[null,{"$f":"IF(C276=\"\",\"\",IF(COUNTIF($C$4:C276, C276)>1, \"\", C276))","v":""},{"$f":"IF(G276=\"\",\"\",IF(F276=\"\",\"\",CONCATENATE(DIGITADOR!$M$1,G276,E276)))","v":""},"",{"$f":"IF(F276=\"\",\"\",VLOOKUP(F276,referentes!$N$2:$Q$161,3,FALSE))","v":""},null,null,"",null,null,null,null,null,null,null,{"$f":"IF(Q276=\"\",\"\",INDEX(referentes!$D$2:$E$65,MATCH(Q276,referentes!$E$2:$E$65,0),1))","v":""},null,null,{"$f":"IF(R276=\"\",\"\",'Otras referencias'!$B$7)","v":""},null,{"$f":"IF(T276=\"\",\"\",'Otras referencias'!$B$8)","v":""},null,null,null,null,null,null,null,null,null,null,null,"",null,null,null,null,null,null,""]
[null,{"$f":"IF(C277=\"\",\"\",IF(COUNTIF($C$4:C277, C277)>1, \"\", C277))","v":""},{"$f":"IF(G277=\"\",\"\",IF(F277=\"\",\"\",CONCATENATE(DIGITADOR!$M$1,G277,E277)))","v":""},"",{"$f":"IF(F277=\"\",\"\",VLOOKUP(F277,referentes!$N$2:$Q$161,3,FALSE))","v":""},null,null,"",null,null,null,null,null,null,null,{"$f":"IF(Q277=\"\",\"\",INDEX(referentes!$D$2:$E$65,MATCH(Q277,referentes!$E$2:$E$65,0),1))","v":""},null,null,{"$f":"IF(R277=\"\",\"\",'Otras referencias'!$B$7)","v":""},null,{"$f":"IF(T277=\"\",\"\",'Otras referencias'!$B$8)","v":""},null,null,null,null,null,null,null,null,null,null,null,"",null,null,null,null,null,null,""]
[null,{"$f":"IF(C278=\"\",\"\",IF(COUNTIF($C$4:C278, C278)>1, \"\", C278))","v":""},{"$f":"IF(G278=\"\",\"\",IF(F278=\"\",\"\",CONCATENATE(DIGITADOR!$M$1,G278,E278)))","v":""},"",{"$f":"IF(F278=\"\",\"\",VLOOKUP(F278,referentes!$N$2:$Q$161,3,FALSE))","v":""},null,null,"",null,null,null,null,null,null,null,{"$f":"IF(Q278=\"\",\"\",INDEX(referentes!$D$2:$E$65,MATCH(Q278,referentes!$E$2:$E$65,0),1))","v":""},null,null,{"$f":"IF(R278=\"\",\"\",'Otras referencias'!$B$7)","v":""},null,{"$f":"IF(T278=\"\",\"\",'Otras referencias'!$B$8)","v":""},null,null,null,null,null,null,null,null,null,null,null,"",null,null,null,null,null,null,""]
[null,{"$f":"IF(C279=\"\",\"\",IF(COUNTIF($C$4:C279, C279)>1, \"\", C279))","v":""},{"$f":"IF(G279=\"\",\"\",IF(F279=\"\",\"\",CONCATENATE(DIGITADOR!$M$1,G279,E279)))","v":""},"",{"$f":"IF(F279=\"\",\"\",VLOOKUP(F279,referentes!$N$2:$Q$161,3,FALSE))","v":""},null,null,"",null,null,null,null,null,null,null,{"$f":"IF(Q279=\"\",\"\",INDEX(referentes!$D$2:$E$65,MATCH(Q279,referentes!$E$2:$E$65,0),1))","v":""},null,null,{"$f":"IF(R279=\"\",\"\",'Otras referencias'!$B$7)","v":""},null,{"$f":"IF(T279=\"\",\"\",'Otras referencias'!$B$8)","v":""},null,null,null,null,null,null,null,null,null,null,null,"",null,null,null,null,null,null,""]
[null,{"$f":"IF(C280=\"\",\"\",IF(COUNTIF($C$4:C280, C280)>1, \"\", C280))","v":""},{"$f":"IF(G280=\"\",\"\",IF(F280=\"\",\"\",CONCATENATE(DIGITADOR!$M$1,G280,E280)))","v":""},"",{"$f":"IF(F280=\"\",\"\",VLOOKUP(F280,referentes!$N$2:$Q$161,3,FALSE))","v":""},null,null,"",null,null,null,null,null,null,null,{"$f":"IF(Q280=\"\",\"\",INDEX(referentes!$D$2:$E$65,MATCH(Q280,referentes!$E$2:$E$65,0),1))","v":""},null,null,{"$f":"IF(R280=\"\",\"\",'Otras referencias'!$B$7)","v":""},null,{"$f":"IF(T280=\"\",\"\",'Otras referencias'!$B$8)","v":""},null,null,null,null,null,null,null,null,null,null,null,"",null,null,null,null,null,null,""]
[null,{"$f":"IF(C281=\"\",\"\",IF(COUNTIF($C$4:C281, C281)>1, \"\", C281))","v":""},{"$f":"IF(G281=\"\",\"\",IF(F281=\"\",\"\",CONCATENATE(DIGITADOR!$M$1,G281,E281)))","v":""},"",{"$f":"IF(F281=\"\",\"\",VLOOKUP(F281,referentes!$N$2:$Q$161,3,FALSE))","v":""},null,null,"",null,null,null,null,null,null,null,{"$f":"IF(Q281=\"\",\"\",INDEX(referentes!$D$2:$E$65,MATCH(Q281,referentes!$E$2:$E$65,0),1))","v":""},null,null,{"$f":"IF(R281=\"\",\"\",'Otras referencias'!$B$7)","v":""},null,{"$f":"IF(T281=\"\",\"\",'Otras referencias'!$B$8)","v":""},null,null,null,null,null,null,null,null,null,null,null,"",null,null,null,null,null,null,""]
[null,{"$f":"IF(C282=\"\",\"\",IF(COUNTIF($C$4:C282, C282)>1, \"\", C282))","v":""},{"$f":"IF(G282=\"\",\"\",IF(F282=\"\",\"\",CONCATENATE(DIGITADOR!$M$1,G282,E282)))","v":""},"",{"$f":"IF(F282=\"\",\"\",VLOOKUP(F282,referentes!$N$2:$Q$161,3,FALSE))","v":""},null,null,"",null,null,null,null,null,null,null,{"$f":"IF(Q282=\"\",\"\",INDEX(referentes!$D$2:$E$65,MATCH(Q282,referentes!$E$2:$E$65,0),1))","v":""},null,null,{"$f":"IF(R282=\"\",\"\",'Otras referencias'!$B$7)","v":""},null,{"$f":"IF(T282=\"\",\"\",'Otras referencias'!$B$8)","v":""},null,null,null,null,null,null,null,null,null,null,null,"",null,null,null,null,null,null,""]
[null,{"$f":"IF(C283=\"\",\"\",IF(COUNTIF($C$4:C283, C283)>1, \"\", C283))","v":""},{"$f":"IF(G283=\"\",\"\",IF(F283=\"\",\"\",CONCATENATE(DIGITADOR!$M$1,G283,E283)))","v":""},"",{"$f":"IF(F283=\"\",\"\",VLOOKUP(F283,referentes!$N$2:$Q$161,3,FALSE))","v":""},null,null,"",null,null,null,null,null,null,null,{"$f":"IF(Q283=\"\",\"\",INDEX(referentes!$D$2:$E$65,MATCH(Q283,referentes!$E$2:$E$65,0),1))","v":""},null,null,{"$f":"IF(R283=\"\",\"\",'Otras referencias'!$B$7)","v":""},null,{"$f":"IF(T283=\"\",\"\",'Otras referencias'!$B$8)","v":""},null,null,null,null,null,null,null,null,null,null,null,"",null,null,null,null,null,null,""]
[null,{"$f":"IF(C284=\"\",\"\",IF(COUNTIF($C$4:C284, C284)>1, \"\", C284))","v":""},{"$f":"IF(G284=\"\",\"\",IF(F284=\"\",\"\",CONCATENATE(DIGITADOR!$M$1,G284,E284)))","v":""},"",{"$f":"IF(F284=\"\",\"\",VLOOKUP(F284,referentes!$N$2:$Q$161,3,FALSE))","v":""},null,null,"",null,null,null,null,null,null,null,{"$f":"IF(Q284=\"\",\"\",INDEX(referentes!$D$2:$E$65,MATCH(Q284,referentes!$E$2:$E$65,0),1))","v":""},null,null,{"$f":"IF(R284=\"\",\"\",'Otras referencias'!$B$7)","v":""},null,{"$f":"IF(T284=\"\",\"\",'Otras referencias'!$B$8)","v":""},null,null,null,null,null,null,null,null,null,null,null,"",null,null,null,null,null,null,""]
[null,{"$f":"IF(C285=\"\",\"\",IF(COUNTIF($C$4:C285, C285)>1, \"\", C285))","v":""},{"$f":"IF(G285=\"\",\"\",IF(F285=\"\",\"\",CONCATENATE(DIGITADOR!$M$1,G285,E285)))","v":""},"",{"$f":"IF(F285=\"\",\"\",VLOOKUP(F285,referentes!$N$2:$Q$161,3,FALSE))","v":""},null,null,"",null,null,null,null,null,null,null,{"$f":"IF(Q285=\"\",\"\",INDEX(referentes!$D$2:$E$65,MATCH(Q285,referentes!$E$2:$E$65,0),1))","v":""},null,null,{"$f":"IF(R285=\"\",\"\",'Otras referencias'!$B$7)","v":""},null,{"$f":"IF(T285=\"\",\"\",'Otras referencias'!$B$8)","v":""},null,null,null,null,null,null,null,null,null,null,null,"",null,null,null,null,null,null,""]
[null,{"$f":"IF(C286=\"\",\"\",IF(COUNTIF($C$4:C286, C286)>1, \"\", C286))","v":""},{"$f":"IF(G286=\"\",\"\",IF(F286=\"\",\"\",CONCATENATE(DIGITADOR!$M$1,G286,E286)))","v":""},"",{"$f":"IF(F286=\"\",\"\",VLOOKUP(F286,referentes!$N$2:$Q$161,3,FALSE))","v":""},null,null,"",null,null,null,null,null,null,null,{"$f":"IF(Q286=\"\",\"\",INDEX(referentes!$D$2:$E$65,MATCH(Q286,referentes!$E$2:$E$65,0),1))","v":""},null,null,{"$f":"IF(R286=\"\",\"\",'Otras referencias'!$B$7)","v":""},null,{"$f":"IF(T286=\"\",\"\",'Otras referencias'!$B$8)","v":""},null,null,null,null,null,null,null,null,null,null,null,"",null,null,null,null,null,null,""]
[null,{"$f":"IF(C287=\"\",\"\",IF(COUNTIF($C$4:C287, C287)>1, \"\", C287))","v":""},{"$f":"IF(G287=\"\",\"\",IF(F287=\"\",\"\",CONCATENATE(DIGITADOR!$M$1,G287,E287)))","v":""},"",{"$f":"IF(F287=\"\",\"\",VLOOKUP(F287,referentes!$N$2:$Q$161,3,FALSE))","v":""},null,null,"",null,null,null,null,null,null,null,{"$f":"IF(Q287=\"\",\"\",INDEX(referentes!$D$2:$E$65,MATCH(Q287,referentes!$E$2:$E$65,0),1))","v":""},null,null,{"$f":"IF(R287=\"\",\"\",'Otras referencias'!$B$7)","v":""},null,{"$f":"IF(T287=\"\",\"\",'Otras referencias'!$B$8)","v":""},null,null,null,null,null,null,null,null,null,null,null,"",null,null,null,null,null,null,""]
[null,{"$f":"IF(C288=\"\",\"\",IF(COUNTIF($C$4:C288, C288)>1, \"\", C288))","v":""},{"$f":"IF(G288=\"\",\"\",IF(F288=\"\",\"\",CONCATENATE(DIGITADOR!$M$1,G288,E288)))","v":""},"",{"$f":"IF(F288=\"\",\"\",VLOOKUP(F288,referentes!$N$2:$Q$161,3,FALSE))","v":""},null,null,"",null,null,null,null,null,null,null,{"$f":"IF(Q288=\"\",\"\",INDEX(referentes!$D$2:$E$65,MATCH(Q288,referentes!$E$2:$E$65,0),1))","v":""},null,null,{"$f":"IF(R288=\"\",\"\",'Otras referencias'!$B$7)","v":""},null,{"$f":"IF(T288=\"\",\"\",'Otras referencias'!$B$8)","v":""},null,null,null,null,null,null,null,null,null,null,null,"",null,null,null,null,null,null,""]
[null,{"$f":"IF(C289=\"\",\"\",IF(COUNTIF($C$4:C289, C289)>1, \"\", C289))","v":""},{"$f":"IF(G289=\"\",\"\",IF(F289=\"\",\"\",CONCATENATE(DIGITADOR!$M$1,G289,E289)))","v":""},"",{"$f":"IF(F289=\"\",\"\",VLOOKUP(F289,referentes!$N$2:$Q$161,3,FALSE))","v":""},null,null,"",null,null,null,null,null,null,null,{"$f":"IF(Q289=\"\",\"\",INDEX(referentes!$D$2:$E$65,MATCH(Q289,referentes!$E$2:$E$65,0),1))","v":""},null,null,{"$f":"IF(R289=\"\",\"\",'Otras referencias'!$B$7)","v":""},null,{"$f":"IF(T289=\"\",\"\",'Otras referencias'!$B$8)","v":""},null,null,null,null,null,null,null,null,null,null,null,"",null,null,null,null,null,null,""]
[null,{"$f":"IF(C290=\"\",\"\",IF(COUNTIF($C$4:C290, C290)>1, \"\", C290))","v":""},{"$f":"IF(G290=\"\",\"\",IF(F290=\"\",\"\",CONCATENATE(DIGITADOR!$M$1,G290,E290)))","v":""},"",{"$f":"IF(F290=\"\",\"\",VLOOKUP(F290,referentes!$N$2:$Q$161,3,FALSE))","v":""},null,null,"",null,null,null,null,null,null,null,{"$f":"IF(Q290=\"\",\"\",INDEX(referentes!$D$2:$E$65,MATCH(Q290,referentes!$E$2:$E$65,0),1))","v":""},null,null,{"$f":"IF(R290=\"\",\"\",'Otras referencias'!$B$7)","v":""},null,{"$f":"IF(T290=\"\",\"\",'Otras referencias'!$B$8)","v":""},null,null,null,null,null,null,null,null,null,null,null,"",null,null,null,null,null,null,""]
[null,{"$f":"IF(C291=\"\",\"\",IF(COUNTIF($C$4:C291, C291)>1, \"\", C291))","v":""},{"$f":"IF(G291=\"\",\"\",IF(F291=\"\",\"\",CONCATENATE(DIGITADOR!$M$1,G291,E291)))","v":""},"",{"$f":"IF(F291=\"\",\"\",VLOOKUP(F291,referentes!$N$2:$Q$161,3,FALSE))","v":""},null,null,"",null,null,null,null,null,null,null,{"$f":"IF(Q291=\"\",\"\",INDEX(referentes!$D$2:$E$65,MATCH(Q291,referentes!$E$2:$E$65,0),1))","v":""},null,null,{"$f":"IF(R291=\"\",\"\",'Otras referencias'!$B$7)","v":""},null,{"$f":"IF(T291=\"\",\"\",'Otras referencias'!$B$8)","v":""},null,null,null,null,null,null,null,null,null,null,null,"",null,null,null,null,null,null,""]
[null,{"$f":"IF(C292=\"\",\"\",IF(COUNTIF($C$4:C292, C292)>1, \"\", C292))","v":""},{"$f":"IF(G292=\"\",\"\",IF(F292=\"\",\"\",CONCATENATE(DIGITADOR!$M$1,G292,E292)))","v":""},"",{"$f":"IF(F292=\"\",\"\",VLOOKUP(F292,referentes!$N$2:$Q$161,3,FALSE))","v":""},null,null,"",null,null,null,null,null,null,null,{"$f":"IF(Q292=\"\",\"\",INDEX(referentes!$D$2:$E$65,MATCH(Q292,referentes!$E$2:$E$65,0),1))","v":""},null,null,{"$f":"IF(R292=\"\",\"\",'Otras referencias'!$B$7)","v":""},null,{"$f":"IF(T292=\"\",\"\",'Otras referencias'!$B$8)","v":""},null,null,null,null,null,null,null,null,null,null,null,"",null,null,null,null,null,null,""]
[null,{"$f":"IF(C293=\"\",\"\",IF(COUNTIF($C$4:C293, C293)>1, \"\", C293))","v":""},{"$f":"IF(G293=\"\",\"\",IF(F293=\"\",\"\",CONCATENATE(DIGITADOR!$M$1,G293,E293)))","v":""},"",{"$f":"IF(F293=\"\",\"\",VLOOKUP(F293,referentes!$N$2:$Q$161,3,FALSE))","v":""},null,null,"",null,null,null,null,null,null,null,{"$f":"IF(Q293=\"\",\"\",INDEX(referentes!$D$2:$E$65,MATCH(Q293,referentes!$E$2:$E$65,0),1))","v":""},null,null,{"$f":"IF(R293=\"\",\"\",'Otras referencias'!$B$7)","v":""},null,{"$f":"IF(T293=\"\",\"\",'Otras referencias'!$B$8)","v":""},null,null,null,null,null,null,null,null,null,null,null,"",null,null,null,null,null,null,""]
[null,{"$f":"IF(C294=\"\",\"\",IF(COUNTIF($C$4:C294, C294)>1, \"\", C294))","v":""},{"$f":"IF(G294=\"\",\"\",IF(F294=\"\",\"\",CONCATENATE(DIGITADOR!$M$1,G294,E294)))","v":""},"",{"$f":"IF(F294=\"\",\"\",VLOOKUP(F294,referentes!$N$2:$Q$161,3,FALSE))","v":""},null,null,"",null,null,null,null,null,null,null,{"$f":"IF(Q294=\"\",\"\",INDEX(referentes!$D$2:$E$65,MATCH(Q294,referentes!$E$2:$E$65,0),1))","v":""},null,null,{"$f":"IF(R294=\"\",\"\",'Otras referencias'!$B$7)","v":""},null,{"$f":"IF(T294=\"\",\"\",'Otras referencias'!$B$8)","v":""},null,null,null,null,null,null,null,null,null,null,null,"",null,null,null,null,null,null,""]
[null,{"$f":"IF(C295=\"\",\"\",IF(COUNTIF($C$4:C295, C295)>1, \"\", C295))","v":""},{"$f":"IF(G295=\"\",\"\",IF(F295=\"\",\"\",CONCATENATE(DIGITADOR!$M$1,G295,E295)))","v":""},"",{"$f":"IF(F295=\"\",\"\",VLOOKUP(F295,referentes!$N$2:$Q$161,3,FALSE))","v":""},null,null,"",null,null,null,null,null,null,null,{"$f":"IF(Q295=\"\",\"\",INDEX(referentes!$D$2:$E$65,MATCH(Q295,referentes!$E$2:$E$65,0),1))","v":""},null,null,{"$f":"IF(R295=\"\",\"\",'Otras referencias'!$B$7)","v":""},null,{"$f":"IF(T295=\"\",\"\",'Otras referencias'!$B$8)","v":""},null,null,null,null,null,null,null,null,null,null,null,"",null,null,null,null,null,null,""]
[null,{"$f":"IF(C296=\"\",\"\",IF(COUNTIF($C$4:C296, C296)>1, \"\", C296))","v":""},{"$f":"IF(G296=\"\",\"\",IF(F296=\"\",\"\",CONCATENATE(DIGITADOR!$M$1,G296,E296)))","v":""},"",{"$f":"IF(F296=\"\",\"\",VLOOKUP(F296,referentes!$N$2:$Q$161,3,FALSE))","v":""},null,null,"",null,null,null,null,null,null,null,{"$f":"IF(Q296=\"\",\"\",INDEX(referentes!$D$2:$E$65,MATCH(Q296,referentes!$E$2:$E$65,0),1))","v":""},null,null,{"$f":"IF(R296=\"\",\"\",'Otras referencias'!$B$7)","v":""},null,{"$f":"IF(T296=\"\",\"\",'Otras referencias'!$B$8)","v":""},null,null,null,null,null,null,null,null,null,null,null,"",null,null,null,null,null,null,""]
[null,{"$f":"IF(C297=\"\",\"\",IF(COUNTIF($C$4:C297, C297)>1, \"\", C297))","v":""},{"$f":"IF(G297=\"\",\"\",IF(F297=\"\",\"\",CONCATENATE(DIGITADOR!$M$1,G297,E297)))","v":""},"",{"$f":"IF(F297=\"\",\"\",VLOOKUP(F297,referentes!$N$2:$Q$161,3,FALSE))","v":""},null,null,"",null,null,null,null,null,null,null,{"$f":"IF(Q297=\"\",\"\",INDEX(referentes!$D$2:$E$65,MATCH(Q297,referentes!$E$2:$E$65,0),1))","v":""},null,null,{"$f":"IF(R297=\"\",\"\",'Otras referencias'!$B$7)","v":""},null,{"$f":"IF(T297=\"\",\"\",'Otras referencias'!$B$8)","v":""},null,null,null,null,null,null,null,null,null,null,null,"",null,null,null,null,null,null,""]
[null,{"$f":"IF(C298=\"\",\"\",IF(COUNTIF($C$4:C298, C298)>1, \"\", C298))","v":""},{"$f":"IF(G298=\"\",\"\",IF(F298=\"\",\"\",CONCATENATE(DIGITADOR!$M$1,G298,E298)))","v":""},"",{"$f":"IF(F298=\"\",\"\",VLOOKUP(F298,referentes!$N$2:$Q$161,3,FALSE))","v":""},null,null,"",null,null,null,null,null,null,null,{"$f":"IF(Q298=\"\",\"\",INDEX(referentes!$D$2:$E$65,MATCH(Q298,referentes!$E$2:$E$65,0),1))","v":""},null,null,{"$f":"IF(R298=\"\",\"\",'Otras referencias'!$B$7)","v":""},null,{"$f":"IF(T298=\"\",\"\",'Otras referencias'!$B$8)","v":""},null,null,null,null,null,null,null,null,null,null,null,"",null,null,null,null,null,null,""]
[null,{"$f":"IF(C299=\"\",\"\",IF(COUNTIF($C$4:C299, C299)>1, \"\", C299))","v":""},{"$f":"IF(G299=\"\",\"\",IF(F299=\"\",\"\",CONCATENATE(DIGITADOR!$M$1,G299,E299)))","v":""},"",{"$f":"IF(F299=\"\",\"\",VLOOKUP(F299,referentes!$N$2:$Q$161,3,FALSE))","v":""},null,null,"",null,null,null,null,null,null,null,{"$f":"IF(Q299=\"\",\"\",INDEX(referentes!$D$2:$E$65,MATCH(Q299,referentes!$E$2:$E$65,0),1))","v":""},null,null,{"$f":"IF(R299=\"\",\"\",'Otras referencias'!$B$7)","v":""},null,{"$f":"IF(T299=\"\",\"\",'Otras referencias'!$B$8)","v":""},null,null,null,null,null,null,null,null,null,null,null,"",null,null,null,null,null,null,""]
[null,{"$f":"IF(C300=\"\",\"\",IF(COUNTIF($C$4:C300, C300)>1, \"\", C300))","v":""},{"$f":"IF(G300=\"\",\"\",IF(F300=\"\",\"\",CONCATENATE(DIGITADOR!$M$1,G300,E300)))","v":""},"",{"$f":"IF(F300=\"\",\"\",VLOOKUP(F300,referentes!$N$2:$Q$161,3,FALSE))","v":""},null,null,"",null,null,null,null,null,null,null,{"$f":"IF(Q300=\"\",\"\",INDEX(referentes!$D$2:$E$65,MATCH(Q300,referentes!$E$2:$E$65,0),1))","v":""},null,null,{"$f":"IF(R300=\"\",\"\",'Otras referencias'!$B$7)","v":""},null,{"$f":"IF(T300=\"\",\"\",'Otras referencias'!$B$8)","v":""},null,null,null,null,null,null,null,null,null,null,null,"",null,null,null,null,null,null,""]
[null,{"$f":"IF(C301=\"\",\"\",IF(COUNTIF($C$4:C301, C301)>1, \"\", C301))","v":""},{"$f":"IF(G301=\"\",\"\",IF(F301=\"\",\"\",CONCATENATE(DIGITADOR!$M$1,G301,E301)))","v":""},"",{"$f":"IF(F301=\"\",\"\",VLOOKUP(F301,referentes!$N$2:$Q$161,3,FALSE))","v":""},null,null,"",null,null,null,null,null,null,null,{"$f":"IF(Q301=\"\",\"\",INDEX(referentes!$D$2:$E$65,MATCH(Q301,referentes!$E$2:$E$65,0),1))","v":""},null,null,{"$f":"IF(R301=\"\",\"\",'Otras referencias'!$B$7)","v":""},null,{"$f":"IF(T301=\"\",\"\",'Otras referencias'!$B$8)","v":""},null,null,null,null,null,null,null,null,null,null,null,"",null,null,null,null,null,null,""]
[null,{"$f":"IF(C302=\"\",\"\",IF(COUNTIF($C$4:C302, C302)>1, \"\", C302))","v":""},{"$f":"IF(G302=\"\",\"\",IF(F302=\"\",\"\",CONCATENATE(DIGITADOR!$M$1,G302,E302)))","v":""},"",{"$f":"IF(F302=\"\",\"\",VLOOKUP(F302,referentes!$N$2:$Q$161,3,FALSE))","v":""},null,null,"",null,null,null,null,null,null,null,{"$f":"IF(Q302=\"\",\"\",INDEX(referentes!$D$2:$E$65,MATCH(Q302,referentes!$E$2:$E$65,0),1))","v":""},null,null,{"$f":"IF(R302=\"\",\"\",'Otras referencias'!$B$7)","v":""},null,{"$f":"IF(T302=\"\",\"\",'Otras referencias'!$B$8)","v":""},null,null,null,null,null,null,null,null,null,null,null,"",null,null,null,null,null,null,""]
[null,{"$f":"IF(C303=\"\",\"\",IF(COUNTIF($C$4:C303, C303)>1, \"\", C303))","v":""},{"$f":"IF(G303=\"\",\"\",IF(F303=\"\",\"\",CONCATENATE(DIGITADOR!$M$1,G303,E303)))","v":""},"",{"$f":"IF(F303=\"\",\"\",VLOOKUP(F303,referentes!$N$2:$Q$161,3,FALSE))","v":""},null,null,"",null,null,null,null,null,null,null,{"$f":"IF(Q303=\"\",\"\",INDEX(referentes!$D$2:$E$65,MATCH(Q303,referentes!$E$2:$E$65,0),1))","v":""},null,null,{"$f":"IF(R303=\"\",\"\",'Otras referencias'!$B$7)","v":""},null,{"$f":"IF(T303=\"\",\"\",'Otras referencias'!$B$8)","v":""},null,null,null,null,null,null,null,null,null,null,null,"",null,null,null,null,null,null,""]
[null,{"$f":"IF(C304=\"\",\"\",IF(COUNTIF($C$4:C304, C304)>1, \"\", C304))","v":""},{"$f":"IF(G304=\"\",\"\",IF(F304=\"\",\"\",CONCATENATE(DIGITADOR!$M$1,G304,E304)))","v":""},"",{"$f":"IF(F304=\"\",\"\",VLOOKUP(F304,referentes!$N$2:$Q$161,3,FALSE))","v":""},null,null,"",null,null,null,null,null,null,null,{"$f":"IF(Q304=\"\",\"\",INDEX(referentes!$D$2:$E$65,MATCH(Q304,referentes!$E$2:$E$65,0),1))","v":""},null,null,{"$f":"IF(R304=\"\",\"\",'Otras referencias'!$B$7)","v":""},null,{"$f":"IF(T304=\"\",\"\",'Otras referencias'!$B$8)","v":""},null,null,null,null,null,null,null,null,null,null,null,"",null,null,null,null,null,null,""]

{"sheet":"referentes","index":4,"n_rows":161,"n_cols":30,"rows_kept":161,"cut":false,"hidden":false,"merged":[]}
["AG_ESPECIES",3572873,null,"cod_letras","descripcion",null,"phylum","clase","orden","familia","genero",null,null,null,null,null,null,null,"secuencia_loc","prefijo_cdg_est_loc","codigo_estacion_loc","descripcion_estacion_loc","lugar"]
["MESP","Morfoespecie sp1.",null,"ADUB","Amaranthus dubius",null,"Plantae","Magnoliophyta","Caryophyllales","Amaranthaceae","Amaranthus",null,null,"Ciénaga P1","4718921PVEG1P",56243,1,null,55958,"Bahia_Cocinetas",96321,null,"Bahia Cocinetas1",null,3546,"Administrador SIGMA"]
["AMER","Adonidia merrillii",null,"AHER","Anthephora hermaphrodita",null,"Plantae","Magnoliophyta","Poales","Poaceae","Anthephora",null,null,"Ciénaga P10","4718921PVEG1P",56252,10,null,55957,"Bahia_Hondita",96321,null,"Bahia Hondita1",null,3444,"Alexandra Rodríguez",null,null,"AD Pto. Moin C.R.","Administración Desarrollo Complejo Portuario  Limón Moin Costa Rica"]
["ADUB","Amaranthus dubius",null,"AIND","Azadirachta indica",null,"Plantae","Magnoliophyta","Sapindales","Meliaceae","Azadirachta",null,null,"Ciénaga P11","4718921PVEG1P",56253,11,null,55959,"Bahia_Tukakas",96321,null,"Bahia Tukakaspl1",null,8258,"Daniel Fernando Jiménez Rincón",null,null,"ANADARKO","Anadarko Colombia Company"]
["AHER","Anthephora hermaphrodita",null,"AMER","Adonidia merrillii",null,"Plantae","Magnoliophyta","Arecales","Arecaceae","Adonidia",null,null,"Ciénaga P12","4718921PVEG1P",56254,12,null,55967,"Boca_Laenea1",96321,null,"Boca La enea1",null,8378,"David Alejandro Navarrete Rodríguez",null,null,"AQUABIOSFERA","Aquabiosfera SAS"]
["AIND","Azadirachta indica",null,"BMAR","Batis maritima",null,"Plantae","Magnoliophyta","Brassicales","Bataceae","Batis",null,null,"Ciénaga P13","4718921PVEG1P",56255,13,null,55968,"Boca_Laenea2",96321,null,"Boca La enea2",null,4918,"Edgar Fernando Dorado Roncancio",null,null,"CALIDRIS","Asociación Calidris"]
["BMAR","Batis maritima",null,"BVER","Blutaparon vermiculare",null,"Plantae","Magnoliophyta","Caryophyllales","Amaranthaceae","Blutaparon",null,null,"Ciénaga P14","4718921PVEG1P",56256,14,null,56558,"Bocas_Atrato",96321,null,"Bocas del Atrato1",null,3403,"Eliana Marcela Barrios Vasquez",null,null,"ASOCARS","Asociación de Corporaciones Autónomas Regionales"]
["BVER","Blutaparon vermiculare",null,"CBON","Caesalpinia bonduc",null,"Plantae","Magnoliophyta","Fabales","Fabaceae","Caesalpinia",null,null,"Ciénaga P15","4718921PVEG1P",56257,15,null,55972,"Broqueles",96321,null,"Broqueles1",null,7840,"Fair Fernando Dager Osorio",null,null,"ANLA","Autoridad Nacional de Licencias Ambientales"]
["CBON","Caesalpinia bonduc",null,"CERE","Conocarpus erectus",null,"Plantae","Magnoliophyta","Myrtales","Combretaceae","Conocarpus",null,null,"Ciénaga P16","4718921PVEG1P",56258,16,null,57245,"Buenavista1",96321,null,"Buenavista1",null,5685,"Henry Fabian Bustos Ordoñez",null,null,"ARAP","Autoridad de Recursos Acuáticos de Panamá"]
["CPRO","Calotropis procera",null,"CFIL","Cassytha filiformis",null,"Plantae","Magnoliophyta","Laurales","Lauraceae","Cassytha",null,null,"Ciénaga P17","4718921PVEG1P",56259,17,null,57246,"Buenavista2",96321,null,"Buenavista2",null,7841,"Jean David Varilla Gonzalez",null,null,"CWOP","Caribbean-Wide Orca Project"]
["CROS","Canavalia rosea",null,"CLIG","Cyperus ligularis",null,"Plantae","Magnoliophyta","Poales","Cyperaceae","Cyperus",null,null,"Ciénaga P18","4718921PVEG1P",56260,18,null,56551,"Camaronera",96321,null,"Camaronera1",null,8277,"Jeffry Bolaños",null,null,"CEAC","Centro de Estudios Ambientales de Cienfuegos"]
["CODO","Capparis odoratissima",null,"CLON","Cnidoscolus longipes",null,"Plantae","Magnoliophyta","Malpighiales","Euphorbiaceae","Cnidoscolus",null,null,"Ciénaga P19","4718921PVEG1P",56261,19,null,55970,"Cristo_Rey",96321,null,"Cristo Rey1",null,8263,"Johan Casadiego Estévez",null,null,"CECIMAR","Centro de Estudios en Ciencias del Mar - Universidad Nacional"]
["CFIL","Cassytha filiformis",null,"CNUC","Cocos nucifera",null,"Plantae","Magnoliophyta","Arecales","Arecaceae","Cocos",null,null,"Ciénaga P2","4718921PVEG1P",56244,2,null,55961,"Dibulla1_Occidente",96321,null,"Dibulla1 Occidente -Rio Jerez",null,7141,"Juan Camilo Rodríguez Atara",null,null,"CIEMAT","Centro de Investigaciones Energéticas, Medioambientales y Tecnológicas"]
["CSPI","Cenchrus spinifex",null,"CODO","Capparis odoratissima",null,"Plantae","Magnoliophyta","Brassicales","Capparaceae","Capparis",null,null,"Ciénaga P20","4718921PVEG1P",56262,20,null,55962,"Dibulla2_Occidente",96321,null,"Dibulla2 Occidente -Rio Jerez",null,8264,"Juan Fernando Cortina Munera",null,null,"CIOH","Centro de Investigaciones Oceanográficas e Hidrográficas"]
["CPAR","Cissampelos pareira",null,"CPAR","Cissampelos pareira",null,"Plantae","Magnoliophyta","Ranunculales","Menispermaceae","Cissampelos",null,null,"Ciénaga P3","4718921PVEG1P",56245,3,null,55974,"Laguna_Bocacorea",96321,null,"Laguna Bocacorea1",null,8217,"Juan Lazarus",null,null,"C.C.C.P.","Centro de Investigaciones Oceanográficas e Hidrográficas del Pacífico"]
["CVER","Cissus verticillata",null,"CPRO","Calotropis procera",null,"Plantae","Magnoliophyta","Gentianales","Apocynaceae","Calotropis",null,null,"Ciénaga P4","4718921PVEG1P",56246,4,null,56887,"4484701OCEA",100,null,"PMO - BAHIA COCINETAS",null,8265,"Kevin Samuel Moreno",null,null,"CEINER","Centro de Investigación Educación y Recreación Islas del Rosario"]
["CLON","Cnidoscolus longipes",null,"CPUN","Croton punctatus",null,"Plantae","Magnoliophyta","Malpighiales","Euphorbiaceae","Croton",null,null,"Ciénaga P5","4718921PVEG1P",56247,5,null,56888,"4484703OCEA",100,null,"PMO - BAHIA HONDITA",null,8377,"Lady Liliana Espinosa Leal",null,null,"CIRA","Centro de Investigación de los Recursos Acuáticos de Nicaragua (CIRA)"]
["CUVI","Coccoloba uvifera",null,"CROS","Canavalia rosea",null,"Plantae","Magnoliophyta","Fabales","Fabaceae","Canavalia",null,null,"Ciénaga P6","4718921PVEG1P",56248,6,null,56886,"4484702OCEA",100,null,"PMO - BAHIA TUKAKAS",null,7757,"Laura  Martínez Lacharme",null,null,"CICA","Centro de Investigación en Contaminación Ambiental"]
["CNUC","Cocos nucifera",null,"CROT","Cyperus rotundus",null,"Plantae","Magnoliophyta","Poales","Cyperaceae","Cyperus",null,null,"Ciénaga P7","4718921PVEG1P",56249,7,null,56921,"0583740OCEA",100,null,"PMO - BAHÍA EL UNO",null,4227,"Laura Sanchez Valencia",null,null,"CRBMUV","Colección de Referencia Biología Marina Universidad del Valle"]
["CERE","Conocarpus erectus",null,"CSPI","Cenchrus spinifex",null,"Plantae","Magnoliophyta","Poales","Poaceae","Cenchrus",null,null,"Ciénaga P8","4718921PVEG1P",56250,8,null,56895,"4456009OCEA",100,null,"PMO - BALLENAS",null,3281,"Leonardo José Arias Alemán (2022)",null,null,"Coleccion_Personal","Colección personal"]
["CPUN","Croton punctatus",null,"CUVI","Coccoloba uvifera",null,"Plantae","Magnoliophyta","Caryophyllales","Polygonaceae","Coccoloba",null,null,"Ciénaga P9","4718921PVEG1P",56251,9,null,56902,"4409015OCEA",100,null,"PMO - BELLO HORIZONTE",null,8099,"Marco Elias Gonzalez Arteaga",null,null,"CPPS","Comisión Permanente del Pacífico Sur"]
["CLIG","Cyperus ligularis",null,"CVER","Cissus verticillata",null,"Plantae","Magnoliophyta","Vitales","Vitaceae","Cissus",null,null,"Cristo Rey P1","2357431PVEG1P",57145,1,null,56914,"2350029OCEA",100,null,"PMO - BROQUELES",null,7197,"Miller Jose Florian Sanchez",null,null,"CI","Conservación Internacional Colombia "]
["CROT","Cyperus rotundus",null,"DBRO","Dalbergia brownei",null,"Plantae","Magnoliophyta","Fabales","Fabaceae","Dalbergia",null,null,"Cristo Rey P10","2357431PVEG1P",57154,10,null,56898,"4456011OCEA",100,null,"PMO - BUENAVISTA",null,8262,"Paula Andrea López Muñoz",null,null,"CONSULTOR","Consultor independiente "]
["DBRO","Dalbergia brownei",null,"EAZU","Eichhornia azurea",null,"Plantae","Magnoliophyta","Commelinales","Pontederiaceae","Eichhornia",null,null,"Cristo Rey P11","2357431PVEG1P",57155,11,null,56889,"4484704OCEA",100,null,"PMO - CABO DE LA VELA",null,8297,"SARAH DANIELA VELASCO MARULANDA",null,null,"CMS","Consultoria y Monitoreo Ambiental"]
["EPROS","Eclipta prostrata",null,"EGLO","Eucalyptus globulus",null,"Plantae","Magnoliophyta","Myrtales","Myrtaceae","Eucalyptus",null,null,"Cristo Rey P12","2357431PVEG1P",57156,12,null,56890,"4484705OCEA",100,null,"PMO - CARRIZAL",null,5745,"Sara Eilyn Guzman Henao",null,null,"CVC","Corporacion  Autonoma Regional del Valle del Cauca"]
["EAZU","Eichhornia azurea",null,"EMES","Euphorbia mesembryanthemifolia",null,"Plantae","Magnoliophyta","Malpighiales","Euphorbiaceae","Euphorbia",null,null,"Cristo Rey P13","2357431PVEG1P",57157,13,null,56906,"4718921OCEA",100,null,"PMO - CIENAGA",null,8266,"Zulay Saudith González Herrera",null,null,"CORPONARIÑO","Corporacion Autonoma Regional de Nariño"]
["EGLO","Eucalyptus globulus",null,"EPROS","Eclipta prostrata",null,"Plantae","Magnoliophyta","Asterales","Asteraceae","Eclipta",null,null,"Cristo Rey P14","2357431PVEG1P",57158,14,null,56916,"2357431OCEA",100,null,"PMO - CRISTO REY",null,null,null,null,null,"CARSUCRE","Corporacion Autonoma Regional de Sucre"]
["EMES","Euphorbia mesembryanthemifolia",null,"FCYM","Fimbristylis cymosa",null,"Plantae","Magnoliophyta","Poales","Cyperaceae","Fimbristylis",null,null,"Cristo Rey P15","2357431PVEG1P",57159,15,null,56919,"0565934OCEA",100,null,"PMO - DAMAQUIEL",null,null,null,null,null,"CRA","Corporacion Autonoma Regional del Atlàntico"]
["FCYM","Fimbristylis cymosa",null,"FSPA","Fimbristylis spadicea",null,"Plantae","Magnoliophyta","Poales","Cyperaceae","Fimbristylis",null,null,"Cristo Rey P16","2357431PVEG1P",57160,16,null,56901,"4409014OCEA",100,null,"PMO - DIBULLA",null,null,null,null,null,"CARDIQUE","Corporacion Autonoma Regional del Canal del Dique"]
["FSPA","Fimbristylis spadicea",null,"GOFF","Guaiacum officinale",null,"Plantae","Magnoliophyta","Zygophyllales","Zygophyllaceae","Guaiacum",null,null,"Cristo Rey P17","2357431PVEG1P",57161,17,null,56924,"0549036OCEA",100,null,"PMO - ENSENADA RIONEGRO",null,null,null,null,null,"CRC","Corporacion Autonoma Regional del Cauca"]
["GSPI","Geoffroea spinosa",null,"GSEP","Gliricidia sepium",null,"Plantae","Magnoliophyta","Fabales","Fabaceae","Gliricidia",null,null,"Cristo Rey P18","2357431PVEG1P",57162,18,null,56905,"4700119OCEA",100,null,"PMO - INCA INCA",null,null,null,null,null,"CODECHOCO","Corporacion para el Desarrollo Sostenible del Choco"]
["GSEP","Gliricidia sepium",null,"GSPI","Geoffroea spinosa",null,"Plantae","Magnoliophyta","Fabales","Fabaceae","Geoffroea",null,null,"Cristo Rey P19","2357431PVEG1P",57163,19,null,56900,"4400113OCEA",100,null,"PMO - LA ENEA",null,null,null,null,null,"CORPOGUAJIRA","Corporación Autónoma Regional de la Guajira"]
["GOFF","Guaiacum officinale",null,"HLIT","Hymenocallis littoralis",null,"Plantae","Magnoliophyta","Asparagales","Amaryllidaceae","Hymenocallis",null,null,"Cristo Rey P2","2357431PVEG1P",57146,2,null,56912,"2367527OCEA",100,null,"PMO - LAGUNA BOCA COREA",null,null,null,null,null,"CORALINA","Corporación Autónoma Regional de las Islas de San Andrés, Providencia y Santa Catalina"]
["HTIL","Hibiscus tiliaceus",null,"HTIL","Hibiscus tiliaceus",null,"Plantae","Magnoliophyta","Malvales","Malvaceae","Hibiscus",null,null,"Cristo Rey P20","2357431PVEG1P",57164,20,null,56892,"4456007OCEA",100,null,"PMO - MANAURE",null,null,null,null,null,"CORPAMAG","Corporación Autónoma Regional del Magdalena"]
["HLIT","Hymenocallis littoralis",null,"IPES","Ipomoea pes-caprae",null,"Plantae","Magnoliophyta","Solanales","Convolvulaceae","Ipomoea",null,null,"Cristo Rey P3","2357431PVEG1P",57147,3,null,56923,"0583745OCEA",100,null,"PMO - MATUNTUGO",null,null,null,null,null,"CORPOURABA","Corporación Autónoma Regional del Uraba"]
["IPES","Ipomoea pes-caprae",null,"LRAC","Laguncularia racemosa",null,"Plantae","Magnoliophyta","Myrtales","Combretaceae","Laguncularia",null,null,"Cristo Rey P4","2357431PVEG1P",57148,4,null,56897,"4456010OCEA",100,null,"PMO - MAYAPO 1",null,null,null,null,null,"CVC-UNPA","Corporación Autónoma Regional del Valle del Cauca-Universidad del Pacifico"]
["LRAC","Laguncularia racemosa",null,"MCRE","Melochia crenata",null,"Plantae","Magnoliophyta","Malvales","Malvaceae","Melochia",null,null,"Cristo Rey P5","2357431PVEG1P",57149,5,null,56896,"4456010OCEA",200,null,"PMO - MAYAPO 2",null,null,null,null,null,"CORALINA OMACHA","Corporación Coralina - Fundación Omacha"]
["MCRE","Melochia crenata",null,"MESP","Morfoespecie sp1.",null,"Plantae","Magnoliophyta","Fabales","Fabaceae","Morfoespecie",null,null,"Cristo Rey P6","2357431PVEG1P",57150,6,null,56894,"4456008OCEA",100,null,"PMO - MUSICHI 1",null,null,null,null,null,"CORPOURABA - OMACHA","Corporación Corpouraba - Fundación Omacha"]
["MPAR","Melochia parvifolia",null,"MPAR","Melochia parvifolia",null,"Plantae","Magnoliophyta","Malvales","Malvaceae","Melochia",null,null,"Cristo Rey P7","2357431PVEG1P",57151,7,null,56893,"4456008OCEA",200,null,"PMO - MUSICHI 2",null,null,null,null,null,"CVS","Corporación Regional de Valle del Sinu y San Jorge"]
["NPLE","Neptunia plena",null,"NPLE","Neptunia plena",null,"Plantae","Magnoliophyta","Fabales","Fabaceae","Neptunia",null,null,"Cristo Rey P8","2357431PVEG1P",57152,8,null,56913,"2350028OCEA",100,null,"PMO - PASO NUEVO",null,null,null,null,null,"DADSA","DEPARTAMENT0 ADMiNISTRATIVO DISTRITAL DE SOSTENIBILIDAD AMBIENTAL"]
["PFOE","Passiflora foetida",null,"PANG","Physalis angulata",null,"Plantae","Magnoliophyta","Solanales","Solanaceae","Physalis",null,null,"Cristo Rey P9","2357431PVEG1P",57153,9,null,56909,"2367246OCEA",100,null,"PMO - PLAYA BLANCA",null,null,null,null,null,"DAMARENA","Departamento Administrativo del Medio Ambiente de Cartagena -  EPA Cartagena"]
["PNOD","Phyla nodiflora",null,"PFOE","Passiflora foetida",null,"Plantae","Magnoliophyta","Malpighiales","Passifloraceae","Passiflora",null,null,"La Enea P1","4400113PVEG1P",57104,1,null,56920,"0583739OCEA",100,null,"PMO - PLAYA LA MARTINA",null,null,null,null,null,"DAMAB","Departamento Técnico Administrativo del Medio Ambiente Barranquilla"]
["PNIR","Phyllanthus niruri",null,"PHAL","Portulaca halimoides",null,"Plantae","Magnoliophyta","Caryophyllales","Portulacaceae","Portulaca",null,null,"La Enea P10","4400113PVEG1P",57095,10,null,56911,"2367525OCEA",100,null,"PMO - PLAYA MIREYA",null,null,null,null,null,"DIMAR","Dirección General Maritima"]
["PANG","Physalis angulata",null,"PJUL","Prosopis juliflora",null,"Plantae","Magnoliophyta","Fabales","Fabaceae","Prosopis",null,null,"La Enea P11","4400113PVEG1P",57094,11,null,56907,"4757022OCEA",100,null,"PMO - PUEBLO VIEJO",null,null,null,null,null,"ECOREEF","ECOREEF Colombia LTDA"]
["PHAL","Portulaca halimoides",null,"PNIR","Phyllanthus niruri",null,"Plantae","Magnoliophyta","Malpighiales","Phyllanthaceae","Phyllanthus",null,null,"La Enea P12","4400113PVEG1P",57093,12,null,56917,"2357432OCEA",100,null,"PMO - PUERTO ESCONDIDO",null,null,null,null,null,"ETH Zurich","EIDGENÖSSISCHE TECHNISCHE HOCHSCHULE ZÜRICH (Politécnico)\r\r\nEIDGENÖSSISCHE TECHNISCHE HOCHSCHULE ZÜRICH"]
["POLE","Portulaca oleracea",null,"PNOD","Phyla nodiflora",null,"Plantae","Magnoliophyta","Asterales","Asteraceae","Phyla",null,null,"La Enea P13","4400113PVEG1P",57092,13,null,56910,"2367224OCEA",100,null,"PMO - PUNTA MESTIZO",null,null,null,null,null,"ECOMAR","Ecomar Consultoría  Ambiental S.A.S."]
["PJUL","Prosopis juliflora",null,"POFF","Pterocarpus officinalis",null,"Plantae","Magnoliophyta","Fabales","Fabaceae","Pterocarpus",null,null,"La Enea P14","4400113PVEG1P",57091,14,null,56918,"0505133OCEA",100,null,"PMO - RIO HOBO",null,null,null,null,null,"EPA BARRANQUILLA","Establecimiento Publico Ambiental Barranquilla"]
["POFF","Pterocarpus officinalis",null,"POLE","Portulaca oleracea",null,"Plantae","Magnoliophyta","Caryophyllales","Portulacaceae","Portulaca",null,null,"La Enea P15","4400113PVEG1P",57090,15,null,56922,"0583743OCEA",100,null,"PMO - RIO LEON",null,null,null,null,null,"EPA BUENAVENTURA","Establecimiento Publico Ambiental Buenaventura"]
["RMAN","Rhizophora mangle",null,"RMAN","Rhizophora mangle",null,"Plantae","Magnoliophyta","Malpighiales","Rhizophoraceae","Rhizophora",null,null,"La Enea P16","4400113PVEG1P",57089,16,null,56899,"4400112OCEA",100,null,"PMO - RIOHACHA",null,null,null,null,null,"EPA CARTAGENA","Establecimiento Publico Ambiental Cartagena"]
["SDUL","Scoparia dulcis",null,"SACU","Sida acuta",null,"Plantae","Magnoliophyta","Malvales","Malvaceae","Sida",null,null,"La Enea P17","4400113PVEG1P",57088,17,null,56915,"2350030OCEA",100,null,"PMO - RÍO CEDRO",null,null,null,null,null,"ZOOCALI","FUNDACIÓN ZOOLÓGICA DE CALI"]
["SPOR","Sesuvium portulacastrum",null,"SDUL","Scoparia dulcis",null,"Plantae","Magnoliophyta","Lamiales","Plantaginaceae","Scoparia",null,null,"La Enea P18","4400113PVEG1P",57087,18,null,56904,"4700118OCEA",100,null,"PMO - SANTA MARTA",null,null,null,null,null,"Fundabas","Fundacion Para El Desarrollo De La Biologia Aplicada"]
["SPAR","Setaria parviflora",null,"SHAM","Stylosanthes hamata",null,"Plantae","Magnoliophyta","Fabales","Fabaceae","Stylosanthes",null,null,"La Enea P19","4400113PVEG1P",57086,19,null,56891,"4456006OCEA",100,null,"PMO - SANTA ROSA",null,null,null,null,null,"F. Bucea Colombia","Fundación Bucea Colombia"]
["SACU","Sida acuta",null,"SPAR","Setaria parviflora",null,"Plantae","Magnoliophyta","Poales","Poaceae","Setaria",null,null,"La Enea P2","4400113PVEG1P",57103,2,null,56903,"4700117OCEA",100,null,"PMO - TAGANGA",null,null,null,null,null,"F.CORALES","Fundación Corales de Paz"]
["STRI","Sphagneticola trilobata",null,"SPOR","Sesuvium portulacastrum",null,"Plantae","Magnoliophyta","Caryophyllales","Aizoaceae","Sesuvium",null,null,"La Enea P20","4400113PVEG1P",57085,20,null,56908,"4757023OCEA",100,null,"PMO - TASAJERA",null,null,null,null,null,"F. Malpelo","Fundación Malpelo / Marviva"]
["SPUR","Spondias purpurea",null,"SPUR","Spondias purpurea",null,"Plantae","Magnoliophyta","Sapindales","Anacardiaceae","Spondias",null,null,"La Enea P3","4400113PVEG1P",57102,3,null,55973,"Paso_Nuevo",96321,null,"Paso Nuevo1",null,null,null,null,null,"OMACHA","Fundación Omacha"]
["SVIR","Sporobolus virginicus",null,"STRI","Sphagneticola trilobata",null,"Plantae","Magnoliophyta","Asterales","Asteraceae","Sphagneticola",null,null,"La Enea P4","4400113PVEG1P",57101,4,null,56689,"playa_Mireya",96321,null,"Playa Mireya",null,null,null,null,null,"OMACHA - OFM","Fundación Omacha - Observadores Fauna Marina"]
["SHAM","Stylosanthes hamata",null,"SVIR","Sporobolus virginicus",null,"Plantae","Magnoliophyta","Poales","Poaceae","Sporobolus",null,null,"La Enea P5","4400113PVEG1P",57100,5,null,55969,"Puerto_Escondido",96321,null,"Puerto Escondido1",null,null,null,null,null,"OMACHA - OFM - AQUAB","Fundación Omacha - Observadores Fauna Marina - Aquabiosfera"]
["TCIN","Tephrosia cinerea",null,"TAMA","Terminalia amazonia",null,"Plantae","Magnoliophyta","Myrtales","Combretaceae","Terminalia",null,null,"La Enea P6","4400113PVEG1P",57099,6,null,55975,"Punta_Mestizos",96321,null,"Punta Mestizo1",null,null,null,null,null,"Sila Kangama","Fundación Sila Kangama"]
["TAMA","Terminalia amazonia",null,"TCAT","Terminalia catappa",null,"Plantae","Magnoliophyta","Myrtales","Combretaceae","Terminalia",null,null,"La Enea P7","4400113PVEG1P",57098,7,null,55960,"Rincon_Mosquito",96321,null,"Rincon Mosquito - Bello Horizonte",null,null,null,null,null,"CIAA-UJTL","Fundación Universidad Jorge Tadeo Lozano - Centro de Investigaciones y Asesorías Agroindustriales,"]
["TCAT","Terminalia catappa",null,"TCIN","Tephrosia cinerea",null,"Plantae","Magnoliophyta","Fabales","Fabaceae","Tephrosia",null,null,"La Enea P8","4400113PVEG1P",57097,8,null,55971,"Rio_Cedro",96321,null,"Rio Cedro1",null,null,null,null,null,"UJTL","Fundación Universidad de Bogotá Jorge Tadeo Lozano"]
["TPOP","Thespesia populnea",null,"TCIS","Tribulus cistoides",null,"Plantae","Magnoliophyta","Zygophyllales","Zygophyllaceae","Tribulus",null,null,"La Enea P9","4400113PVEG1P",57096,9,null,55978,"Rio_Currulao",96321,null,"Rio Currulao1",null,null,null,null,null,"CERG","Geochemical & Environmental Research Group"]
["TCIS","Tribulus cistoides",null,"TPOP","Thespesia populnea",null,"Plantae","Magnoliophyta","Malvales","Malvaceae","Thespesia",null,null,"La Martina P1","0583739PVEG1P",56283,1,null,55983,"Rio_Hobo",96321,null,"Rio Jobo1",null,null,null,null,null,"IED_San José","INSTITUCIÓN EDUCATIVA DEPARTAMENTAL SAN JOSÉ"]
["VLUT","Vigna luteola",null,"VLUT","Vigna luteola",null,"Plantae","Magnoliophyta","Fabales","Fabaceae","Vigna",null,null,"La Martina P10","0583739PVEG1P",56292,10,null,null,null,null,null,null,null,null,null,null,null,"IRD","Institut de Recherche pour le Developpement"]
["WIND","Waltheria indica",null,"WIND","Waltheria indica",null,"Plantae","Magnoliophyta","Malvales","Malvaceae","Waltheria",null,null,"La Martina P11","0583739PVEG1P",56293,11,null,null,null,null,null,null,null,null,null,null,null,"COLCIENCIAS","Instituto Colombiano para el Desarrollo de la Ciencia y la Tecnología"]
["ZMAT","Zoysia matrella",null,"ZMAT","Zoysia matrella",null,"Plantae","Magnoliophyta","Poales","Poaceae","Zoysia",null,null,"La Martina P12","0583739PVEG1P",56294,12,null,null,null,null,null,null,null,null,null,null,null,"ICAL","Instituto Colombo Alemán de Investigaciones Científicas de Punta de Betín"]
[null,null,null,null,null,null,null,null,null,null,null,null,null,"La Martina P13","0583739PVEG1P",56295,13,null,null,null,null,null,null,null,null,null,null,null,"INVEMAR - OMACHA","Instituto INVEMAR - Fundación Omacha"]
[null,null,null,null,null,null,null,null,null,null,null,null,null,"La Martina P14","0583739PVEG1P",56296,14,null,null,null,null,null,null,null,null,null,null,null,"INDERENA","Instituto Nacional de los Recursos Naturales Renovables y del Ambiente"]
[null,null,null,null,null,null,null,null,null,null,null,null,null,"La Martina P15","0583739PVEG1P",56297,15,null,null,null,null,null,null,null,null,null,null,null,"ICML","Instituto de Ciencias del Mar y Limnología (ICML)"]
[null,null,null,null,null,null,null,null,null,null,null,null,null,"La Martina P16","0583739PVEG1P",56298,16,null,null,null,null,null,null,null,null,null,null,null,"IIAP","Instituto de Investigaciones Ambientales del Pacifico"]
[null,null,null,null,null,null,null,null,null,null,null,null,null,"La Martina P17","0583739PVEG1P",56299,17,null,null,null,null,null,null,null,null,null,null,null,"INVEMAR","Instituto de Investigaciones Marinas y Costeras"]
[null,null,null,null,null,null,null,null,null,null,null,null,null,"La Martina P18","0583739PVEG1P",56300,18,null,null,null,null,null,null,null,null,null,null,null,"INVEMAR-AGR","Instituto de Investigaciones Marinas y Costeras - AGR"]
[null,null,null,null,null,null,null,null,null,null,null,null,null,"La Martina P19","0583739PVEG1P",56301,19,null,null,null,null,null,null,null,null,null,null,null,"INVEMAR-BVT","Instituto de Investigaciones Marinas y Costeras - BVT"]
[null,null,null,null,null,null,null,null,null,null,null,null,null,"La Martina P2","0583739PVEG1P",56284,2,null,null,null,null,null,null,null,null,null,null,null,"INVEMAR-CPT","Instituto de Investigaciones Marinas y Costeras - CPT"]
[null,null,null,null,null,null,null,null,null,null,null,null,null,"La Martina P20","0583739PVEG1P",56302,20,null,null,null,null,null,null,null,null,null,null,null,"IAvH","Instituto de Investigación Recursos Biológicos Alexander von Humboldt"]
[null,null,null,null,null,null,null,null,null,null,null,null,null,"La Martina P3","0583739PVEG1P",56285,3,null,null,null,null,null,null,null,null,null,null,null,"IDO_Cuba","Instituto de Oceanologia Cuba"]
[null,null,null,null,null,null,null,null,null,null,null,null,null,"La Martina P4","0583739PVEG1P",56286,4,null,null,null,null,null,null,null,null,null,null,null,"IATTC","Inter-American Tropical Tuna Commission"]
[null,null,null,null,null,null,null,null,null,null,null,null,null,"La Martina P5","0583739PVEG1P",56287,5,null,null,null,null,null,null,null,null,null,null,null,"LABORMAR","Laboratorio Microbiológico Ortiz Martinez "]
[null,null,null,null,null,null,null,null,null,null,null,null,null,"La Martina P6","0583739PVEG1P",56288,6,null,null,null,null,null,null,null,null,null,null,null,"Literature report","Literature report"]
[null,null,null,null,null,null,null,null,null,null,null,null,null,"La Martina P7","0583739PVEG1P",56289,7,null,null,null,null,null,null,null,null,null,null,null,"MCS Consultoría","MCS Consultoría y Monitoreo ambiental S.A.S"]
[null,null,null,null,null,null,null,null,null,null,null,null,null,"La Martina P8","0583739PVEG1P",56290,8,null,null,null,null,null,null,null,null,null,null,null,"MAKARELA","Makarela S.A.S"]
[null,null,null,null,null,null,null,null,null,null,null,null,null,"La Martina P9","0583739PVEG1P",56291,9,null,null,null,null,null,null,null,null,null,null,null,"MHNMC","Makuriwa - Museo de Historia Natural Marina de Colombia"]
[null,null,null,null,null,null,null,null,null,null,null,null,null,"Playa Blanca P1","2367246PVEG1P",57125,1,null,null,null,null,null,null,null,null,null,null,null,"MMU","Manchester Metropolitan University"]
[null,null,null,null,null,null,null,null,null,null,null,null,null,"Playa Blanca P10","2367246PVEG1P",57134,10,null,null,null,null,null,null,null,null,null,null,null,"M_P","Marine & Port Consultants"]
[null,null,null,null,null,null,null,null,null,null,null,null,null,"Playa Blanca P11","2367246PVEG1P",57135,11,null,null,null,null,null,null,null,null,null,null,null,"IAEA-MEL","Marine Environment Laboratories"]
[null,null,null,null,null,null,null,null,null,null,null,null,null,"Playa Blanca P12","2367246PVEG1P",57136,12,null,null,null,null,null,null,null,null,null,null,null,"MINCIENCIAS","Ministerio de Ciencia, Tecnología e Innovación"]
[null,null,null,null,null,null,null,null,null,null,null,null,null,"Playa Blanca P13","2367246PVEG1P",57137,13,null,null,null,null,null,null,null,null,null,null,null,"MA","Ministerio del Ambiente Haiti"]
[null,null,null,null,null,null,null,null,null,null,null,null,null,"Playa Blanca P14","2367246PVEG1P",57138,14,null,null,null,null,null,null,null,null,null,null,null,"MADS","Ministerio del Ambiente y Desarrollo Sostenible"]
[null,null,null,null,null,null,null,null,null,null,null,null,null,"Playa Blanca P15","2367246PVEG1P",57139,15,null,null,null,null,null,null,null,null,null,null,null,"MINAMBIENTE","Ministerio del Ambiente y Desarrollo Sostenible"]
[null,null,null,null,null,null,null,null,null,null,null,null,null,"Playa Blanca P16","2367246PVEG1P",57140,16,null,null,null,null,null,null,null,null,null,null,null,"MHN-UC","Museo Historia Natural Universidad del Cauca"]
[null,null,null,null,null,null,null,null,null,null,null,null,null,"Playa Blanca P17","2367246PVEG1P",57141,17,null,null,null,null,null,null,null,null,null,null,null,"MZUSP","Museu de Zoologia da Universidade de São Paulo"]
[null,null,null,null,null,null,null,null,null,null,null,null,null,"Playa Blanca P18","2367246PVEG1P",57142,18,null,null,null,null,null,null,null,null,null,null,null,"NOAA FISHERIES","NOAA Southwest Fisheries Science Center"]
[null,null,null,null,null,null,null,null,null,null,null,null,null,"Playa Blanca P19","2367246PVEG1P",57143,19,null,null,null,null,null,null,null,null,null,null,null,"NEPA","National Environment and Planning Agency"]
[null,null,null,null,null,null,null,null,null,null,null,null,null,"Playa Blanca P2","2367246PVEG1P",57126,2,null,null,null,null,null,null,null,null,null,null,null,"NOAA","National Oceanic and Atmospheric Administration"]
[null,null,null,null,null,null,null,null,null,null,null,null,null,"Playa Blanca P20","2367246PVEG1P",57144,20,null,null,null,null,null,null,null,null,null,null,null,"OBIMAR","OBIMAR. Empresa Portuaria Quetzal"]
[null,null,null,null,null,null,null,null,null,null,null,null,null,"Playa Blanca P3","2367246PVEG1P",57127,3,null,null,null,null,null,null,null,null,null,null,null,"OBIS-SEAMAP","OBIS-SEAMAP"]
[null,null,null,null,null,null,null,null,null,null,null,null,null,"Playa Blanca P4","2367246PVEG1P",57128,4,null,null,null,null,null,null,null,null,null,null,null,"OBIS","Ocean Biogeographic Information System"]
[null,null,null,null,null,null,null,null,null,null,null,null,null,"Playa Blanca P5","2367246PVEG1P",57129,5,null,null,null,null,null,null,null,null,null,null,null,"OIR","Oceanario de las Islas del Rosario - CEINER"]
[null,null,null,null,null,null,null,null,null,null,null,null,null,"Playa Blanca P6","2367246PVEG1P",57130,6,null,null,null,null,null,null,null,null,null,null,null,"OIEA","Orgánismo Internacional de Energía Atómica"]
[null,null,null,null,null,null,null,null,null,null,null,null,null,"Playa Blanca P7","2367246PVEG1P",57131,7,null,null,null,null,null,null,null,null,null,null,null,"PNN_GORGONA","Parque Nacional Natural Gorgona"]
[null,null,null,null,null,null,null,null,null,null,null,null,null,"Playa Blanca P8","2367246PVEG1P",57132,8,null,null,null,null,null,null,null,null,null,null,null,"UAESPNN","Parques Nacionales Naturales de Colombia"]
[null,null,null,null,null,null,null,null,null,null,null,null,null,"Playa Blanca P9","2367246PVEG1P",57133,9,null,null,null,null,null,null,null,null,null,null,null,"PNN","Parques Nacionales Naturales de Colombia "]
[null,null,null,null,null,null,null,null,null,null,null,null,null,"Pueblo Viejo P1","4757022PVEG1P",57105,1,null,null,null,null,null,null,null,null,null,null,null,"PARTICULAR","Particular"]
[null,null,null,null,null,null,null,null,null,null,null,null,null,"Pueblo Viejo P10","4757022PVEG1P",57114,10,null,null,null,null,null,null,null,null,null,null,null,"PUJ","Pontificia Universidad Javeriana"]
[null,null,null,null,null,null,null,null,null,null,null,null,null,"Pueblo Viejo P11","4757022PVEG1P",57115,11,null,null,null,null,null,null,null,null,null,null,null,"RAC-CIMAB","RAC-CIMAB"]
[null,null,null,null,null,null,null,null,null,null,null,null,null,"Pueblo Viejo P12","4757022PVEG1P",57116,12,null,null,null,null,null,null,null,null,null,null,null,"REPSOL","Repsol Exploración Colombia S.A."]
[null,null,null,null,null,null,null,null,null,null,null,null,null,"Pueblo Viejo P13","4757022PVEG1P",57117,13,null,null,null,null,null,null,null,null,null,null,null,"SERNA","Secretaría de Recursos Naturales y Ambiente (SERNA)/Centro de Estudios y Control de Contaminantes (CESCCO)"]
[null,null,null,null,null,null,null,null,null,null,null,null,null,"Pueblo Viejo P14","4757022PVEG1P",57118,14,null,null,null,null,null,null,null,null,null,null,null,"SERAMBIENTE","Servicios de Ingeniería Ambiental"]
[null,null,null,null,null,null,null,null,null,null,null,null,null,"Pueblo Viejo P15","4757022PVEG1P",57119,15,null,null,null,null,null,null,null,null,null,null,null,"SEPC","Shell Exploration & Production Colombia GMBH"]
[null,null,null,null,null,null,null,null,null,null,null,null,null,"Pueblo Viejo P16","4757022PVEG1P",57120,16,null,null,null,null,null,null,null,null,null,null,null,"NMHN Smithsonian","Smithsonian Institution"]
[null,null,null,null,null,null,null,null,null,null,null,null,null,"Pueblo Viejo P17","4757022PVEG1P",57121,17,null,null,null,null,null,null,null,null,null,null,null,"SPRC - CNR","Sociedad Portuaria Rio Cordoba - Colombian Natural Resources S.A.S."]
[null,null,null,null,null,null,null,null,null,null,null,null,null,"Pueblo Viejo P18","4757022PVEG1P",57122,18,null,null,null,null,null,null,null,null,null,null,null,"SPSM","Sociedad Portuaria de Santa Marta"]
[null,null,null,null,null,null,null,null,null,null,null,null,null,"Pueblo Viejo P19","4757022PVEG1P",57123,19,null,null,null,null,null,null,null,null,null,null,null,"UPR Humacao","UNIVERSIDAD DE PUERTO RICO EN HUMACAO"]
[null,null,null,null,null,null,null,null,null,null,null,null,null,"Pueblo Viejo P2","4757022PVEG1P",57106,2,null,null,null,null,null,null,null,null,null,null,null,"UR Camelia, IRD","UR Camelia, IRD"]
[null,null,null,null,null,null,null,null,null,null,null,null,null,"Pueblo Viejo P20","4757022PVEG1P",57124,20,null,null,null,null,null,null,null,null,null,null,null,"UNEP CAR/RCU","United Nations Environment Programme - Caribbean Regional Coordinating Unit"]
[null,null,null,null,null,null,null,null,null,null,null,null,null,"Pueblo Viejo P3","4757022PVEG1P",57107,3,null,null,null,null,null,null,null,null,null,null,null,"UASD","Universidad Autónoma de Santo Domingo"]
[null,null,null,null,null,null,null,null,null,null,null,null,null,"Pueblo Viejo P4","4757022PVEG1P",57108,4,null,null,null,null,null,null,null,null,null,null,null,"UFB","Universidad Federal de Bahía"]
[null,null,null,null,null,null,null,null,null,null,null,null,null,"Pueblo Viejo P5","4757022PVEG1P",57109,5,null,null,null,null,null,null,null,null,null,null,null,"UJTL-MM","Universidad Jorje Tadeo Lozano-Museo del Mar"]
[null,null,null,null,null,null,null,null,null,null,null,null,null,"Pueblo Viejo P6","4757022PVEG1P",57110,6,null,null,null,null,null,null,null,null,null,null,null,"UNMSM","Universidad Nacional Mayor de San Marcos"]
[null,null,null,null,null,null,null,null,null,null,null,null,null,"Pueblo Viejo P7","4757022PVEG1P",57111,7,null,null,null,null,null,null,null,null,null,null,null,"UNal","Universidad Nacional de Colombia"]
[null,null,null,null,null,null,null,null,null,null,null,null,null,"Pueblo Viejo P8","4757022PVEG1P",57112,8,null,null,null,null,null,null,null,null,null,null,null,"USB","Universidad Simón Bolivar"]
[null,null,null,null,null,null,null,null,null,null,null,null,null,"Pueblo Viejo P9","4757022PVEG1P",57113,9,null,null,null,null,null,null,null,null,null,null,null,"UDEA","Universidad de Antioquia"]
[null,null,null,null,null,null,null,null,null,null,null,null,null,"Riohacha P1","4400112PVEG1P",56223,1,null,null,null,null,null,null,null,null,null,null,null,"UJTL-FCM","Universidad de Bogotá Jorge Tadeo Lozano, Fac. de Ciencias Naturales e Ingenieria"]
[null,null,null,null,null,null,null,null,null,null,null,null,null,"Riohacha P10","4400112PVEG1P",56232,10,null,null,null,null,null,null,null,null,null,null,null,"UCartagena","Universidad de Cartagena"]
[null,null,null,null,null,null,null,null,null,null,null,null,null,"Riohacha P11","4400112PVEG1P",56233,11,null,null,null,null,null,null,null,null,null,null,null,"UCO","Universidad de Córdoba"]
[null,null,null,null,null,null,null,null,null,null,null,null,null,"Riohacha P12","4400112PVEG1P",56234,12,null,null,null,null,null,null,null,null,null,null,null,"UF","Universidad de Florida"]
[null,null,null,null,null,null,null,null,null,null,null,null,null,"Riohacha P13","4400112PVEG1P",56235,13,null,null,null,null,null,null,null,null,null,null,null,"UniGie","Universidad de Giessen"]
[null,null,null,null,null,null,null,null,null,null,null,null,null,"Riohacha P14","4400112PVEG1P",56236,14,null,null,null,null,null,null,null,null,null,null,null,"UNIBAGUE","Universidad de Ibague"]
[null,null,null,null,null,null,null,null,null,null,null,null,null,"Riohacha P15","4400112PVEG1P",56237,15,null,null,null,null,null,null,null,null,null,null,null,"UDES","Universidad de La Sabana"]
[null,null,null,null,null,null,null,null,null,null,null,null,null,"Riohacha P16","4400112PVEG1P",56238,16,null,null,null,null,null,null,null,null,null,null,null,"UDO - NS","Universidad de Oriente - Núcleo de Sucre"]
[null,null,null,null,null,null,null,null,null,null,null,null,null,"Riohacha P17","4400112PVEG1P",56239,17,null,null,null,null,null,null,null,null,null,null,null,"UNIGUAJIRA","Universidad de la Guajira"]
[null,null,null,null,null,null,null,null,null,null,null,null,null,"Riohacha P18","4400112PVEG1P",56240,18,null,null,null,null,null,null,null,null,null,null,null,"UniMagdalena","Universidad del Magdalena"]
[null,null,null,null,null,null,null,null,null,null,null,null,null,"Riohacha P19","4400112PVEG1P",56241,19,null,null,null,null,null,null,null,null,null,null,null,"UNINORTE","Universidad del Norte"]
[null,null,null,null,null,null,null,null,null,null,null,null,null,"Riohacha P2","4400112PVEG1P",56224,2,null,null,null,null,null,null,null,null,null,null,null,"UPacifico","Universidad del Pacífico"]
[null,null,null,null,null,null,null,null,null,null,null,null,null,"Riohacha P20","4400112PVEG1P",56242,20,null,null,null,null,null,null,null,null,null,null,null,"UT","Universidad del Tolima"]
[null,null,null,null,null,null,null,null,null,null,null,null,null,"Riohacha P3","4400112PVEG1P",56225,3,null,null,null,null,null,null,null,null,null,null,null,"UNIVALLE","Universidad del Valle"]
[null,null,null,null,null,null,null,null,null,null,null,null,null,"Riohacha P4","4400112PVEG1P",56226,4,null,null,null,null,null,null,null,null,null,null,null,"UC","Universidae do Cerá, Estaçao de Biologia Marinha"]
[null,null,null,null,null,null,null,null,null,null,null,null,null,"Riohacha P5","4400112PVEG1P",56227,5,null,null,null,null,null,null,null,null,null,null,null,"UNH","University of New Hampshire"]
[null,null,null,null,null,null,null,null,null,null,null,null,null,"Riohacha P6","4400112PVEG1P",56228,6,null,null,null,null,null,null,null,null,null,null,null,"UM Francia","Université de Montpellier"]
[null,null,null,null,null,null,null,null,null,null,null,null,null,"Riohacha P7","4400112PVEG1P",56229,7,null,null,null,null,null,null,null,null,null,null,null,"VIMS-SI","Virginia Institute of Marine Science / Smithsonian Institution"]
[null,null,null,null,null,null,null,null,null,null,null,null,null,"Riohacha P8","4400112PVEG1P",56230,8,null,null,null,null,null,null,null,null,null,null,null,"WCS","Wildlife Conservation Society"]
[null,null,null,null,null,null,null,null,null,null,null,null,null,"Riohacha P9","4400112PVEG1P",56231,9]
[null,null,null,null,null,null,null,null,null,null,null,null,null,"Uveros-Damaquiel P1","0565934PVEG1P",56263,1]
[null,null,null,null,null,null,null,null,null,null,null,null,null,"Uveros-Damaquiel P10","0565934PVEG1P",56272,10]
[null,null,null,null,null,null,null,null,null,null,null,null,null,"Uveros-Damaquiel P11","0565934PVEG1P",56273,11]
[null,null,null,null,null,null,null,null,null,null,null,null,null,"Uveros-Damaquiel P12","0565934PVEG1P",56274,12]
[null,null,null,null,null,null,null,null,null,null,null,null,null,"Uveros-Damaquiel P13","0565934PVEG1P",56275,13]
[null,null,null,null,null,null,null,null,null,null,null,null,null,"Uveros-Damaquiel P14","0565934PVEG1P",56276,14]
[null,null,null,null,null,null,null,null,null,null,null,null,null,"Uveros-Damaquiel P15","0565934PVEG1P",56277,15]
[null,null,null,null,null,null,null,null,null,null,null,null,null,"Uveros-Damaquiel P16","0565934PVEG1P",56278,16]
[null,null,null,null,null,null,null,null,null,null,null,null,null,"Uveros-Damaquiel P17","0565934PVEG1P",56279,17]
[null,null,null,null,null,null,null,null,null,null,null,null,null,"Uveros-Damaquiel P18","0565934PVEG1P",56280,18]
[null,null,null,null,null,null,null,null,null,null,null,null,null,"Uveros-Damaquiel P19","0565934PVEG1P",56281,19]
[null,null,null,null,null,null,null,null,null,null,null,null,null,"Uveros-Damaquiel P2","0565934PVEG1P",56264,2]
[null,null,null,null,null,null,null,null,null,null,null,null,null,"Uveros-Damaquiel P20","0565934PVEG1P",56282,20]
[null,null,null,null,null,null,null,null,null,null,null,null,null,"Uveros-Damaquiel P3","0565934PVEG1P",56265,3]
[null,null,null,null,null,null,null,null,null,null,null,null,null,"Uveros-Damaquiel P4","0565934PVEG1P",56266,4]
[null,null,null,null,null,null,null,null,null,null,null,null,null,"Uveros-Damaquiel P5","0565934PVEG1P",56267,5]
[null,null,null,null,null,null,null,null,null,null,null,null,null,"Uveros-Damaquiel P6","0565934PVEG1P",56268,6]
[null,null,null,null,null,null,null,null,null,null,null,null,null,"Uveros-Damaquiel P7","0565934PVEG1P",56269,7]
[null,null,null,null,null,null,null,null,null,null,null,null,null,"Uveros-Damaquiel P8","0565934PVEG1P",56270,8]
[null,null,null,null,null,null,null,null,null,null,null,null,null,"Uveros-Damaquiel P9","0565934PVEG1P",56271,9]

{"sheet":"Otras referencias","index":5,"n_rows":35,"n_cols":16,"rows_kept":35,"cut":false,"hidden":false,"merged":[[0,0,2,6],[4,0,4,1],[4,10,4,11],[20,7,20,8],[10,7,10,8],[22,3,22,5],[4,13,4,15],[4,3,4,5],[4,7,4,8],[10,10,10,11]]}
["Estas son listas para variables con valores que no se encuentran codificados, pero que deben manejarse de manera estandarizada. \nSi se requiere agregar un valor nuevo hagalo debajo de la lista correspondiente"]
[]
[]
[]
["UNIDADES DE MEDIDA",null,null,"PROYECTO",null,null,null,"ROLES",null,null,"METODOLOGIAS",null,null,"TEMATICAS"]
["CODIGO","DESCRIPCION",null,"COD","PROYECTO","PROYECTO DESC",null,4,"Captura en campo",null,"CODIGO","DESCRIPCION",null,"COD METODOLOGIA","COD TEMATICA","DESCRIPCION"]
[10,"cm",null,3572,"KFW","KFW",null,6,"Revisar datos",null,871,"Playas - MEGAFAUNA",null,870,268,"PLAYAS MACROFAUNA"]
[11,"m",null,null,null,null,null,3497,"Coordinador actividad de campo",null,870,"Playas - MACROFAUNA",null,871,269,"PLAYAS MEGAFAUNA"]
[69,"g",null,null,null,null,null,4526,"Procesamiento en laboratorio",null,873,"Playas - VEGETACION",null,869,267,"OLEAJE"]
[142,"Ind/Estación",null,null,null,null,null,null,null,null,null,null,null,873,270,"PLAYAS VEGETACION"]
[null,null,null,null,null,null,null,"MICROHABITAT",null,null,"SUBCUADRANTE"]
[null,null,null,null,null,null,null,4507,"Madrigueras de cangrejos",null,"CODIGO","DESCRIPCION"]
[null,null,null,null,null,null,null,4508,"Nidos",null,null,"A"]
[" m²",null,null,null,null,null,null,4509,"Refugios en árboles vivos",null,null,"B"]
[132,null,null,null,null,null,null,4510,"Troncos en descomposición"]
[28,null,null,null,null,null,null,4511,"Caños"]
[1,null,null,null,null,null,null,4512,"Hormigueros"]
[null,null,null,null,null,null,null,4513,"Termiteros"]
[]
[]
[null,null,null,null,null,null,null,"ESTADO PLAYA"]
[null,null,null,null,null,null,null,4514,"Presencia de basuras"]
[null,null,null,"CODIGOS LOV",null,null,null,4515,"Desagüe de tuberias"]
[null,null,null,"DESCRIPCIÓN","CÓDIGO","GRUPO",null,4516,"Erosión"]
[null,null,null,"Departamento",10,2,null,4517,"Construcciones"]
[null,null,null,"Sector",20,2,null,4518,"Turismo"]
[null,null,null,"Punto",30,2,null,4539,"Restos de material vegetal"]
[null,null,null,"Parcela",35,2]
[null,null,null,"Estaciones",40,2]
[null,null,null,"Region",50,2]
[null,null,null,"Unidad_de_Manejo",60,2]
[null,null,null,"Unidad_Ambiental_Costera",70,2]
[null,null,null,"Localidad",80,2]
[null,null,null,"Bloque_Exploracion",85,2]
[null,null,null,"Area",90,2]

{"sheet":"AGD_MUESTREOS","index":6,"n_rows":0,"n_cols":0,"rows_kept":0,"cut":false,"hidden":true,"merged":[]}

{"sheet":"AGD_PARAMETRO","index":7,"n_rows":0,"n_cols":0,"rows_kept":0,"cut":false,"hidden":true,"merged":[]}

{"sheet":"AGD_MUESTRAS","index":8,"n_rows":0,"n_cols":0,"rows_kept":0,"cut":false,"hidden":true,"merged":[]}

{"sheet":"AGD_MUESTRAS_VARIABLES","index":9,"n_rows":0,"n_cols":0,"rows_kept":0,"cut":false,"hidden":true,"merged":[]}

{"sheet":"AGD_AUTORIAS","index":10,"n_rows":0,"n_cols":0,"rows_kept":0,"cut":false,"hidden":true,"merged":[]}